Workbook

Sheet Summ GHG Rpt Expanded
B1: Maryland GHG Emissions by Sectors | D1: Final
F2: Global Warming Potential
G3: (Change this Column) | H3: AR2 | I3: AR5
F4: CO2_GWP= | G4: 1 | H4: 1 | I4: 1
F5: CH4_GWP = | G5: 28 | H5: 21 | I5: 28
F6: N2O_GWP= | G6: 265 | H6: 310 | I6: 265
F7: SF6_GWP = | G7: 23500 | H7: 23900 | I7: 23500
F8: PFCs_GWP= | G8: 11100 | H8: 9200 | I8: 11100
B9: MMtCO2e | D9: 2006
B10: Energy Use (CO2, CH4, N2O) | D10: =D11+D31+D48+D81 -> 96.01506752
B11: Electricity Use (Consumption)b | D11: =D12+D30 -> 42.45741421
C12: Electricity Production (in-state) | D12: =D13+D17+D21 -> 32.1465873
C13: Coal | D13: =SUM(D14:D16) -> 28.25937708
C14: CO2 | D14: ='EGU Production RGGI Units'!F261 -> 28.13057387
C15: CH4 | D15: ='EGU Production RGGI Units'!G280 -> 0.008475887316
C16: N2O | D16: ='EGU Production RGGI Units'!G292 -> 0.1203273289
C17: Natural Gas | D17: =SUM(D18:D20) -> 3.64995138
C18: CO2 | D18: ='EGU Production RGGI Units'!F265+'EGU Production Non-RGGI Units'!I105 -> 3.64841301
C19: CH4 | D19: ='EGU Production RGGI Units'!G283+'EGU Production Non-RGGI Units'!G117 -> 0.0007903549834
C20: N2O | D20: ='EGU Production RGGI Units'!G295+'EGU Production Non-RGGI Units'!G129 -> 0.0007480145379
C21: Oil | D21: =SUM(D22:D24) -> 0.237258832
C22: CO2 | D22: ='EGU Production RGGI Units'!F263+'EGU Production Non-RGGI Units'!I103+'EGU Production Non-RGGI Units'!I104 -> 0.2365726086
C23: CH4 | D23: ='EGU Production RGGI Units'!G281+'EGU Production RGGI Units'!G282+'EGU Production Non-RGGI Units'!G115+'EGU Production Non-RGGI Units'!G116 -> 0.000237213049
C24: N2O | D24: ='EGU Production RGGI Units'!G293+'EGU Production RGGI Units'!G294+'EGU Production Non-RGGI Units'!G127+'EGU Production Non-RGGI Units'!G128 -> 0.0004490104141
C25: Wood | D25: =SUM(D26:D28) -> 0
C26: CO2 | D26: 0
C27: CH4 | D27: 0
C28: N2O | D28: 0
C29: MSW/LFG
C30: Net Imported Electricity | D30: ='Imported Electricity'!K76 -> 10.31082691
B31: Residential/Commercial/Industrial (RCI) Fuel Use | D31: =D32+D36+D40+D44 -> 16.8935415
C32: Coal | D32: =SUM(D33:D35) -> 2.998058228
C33: CO2 | D33: =Residential!G7+Commercial!G8+Industrial!J9 -> 2.976126985
C34: CH4 | D34: =Residential!G31+Commercial!G37+Industrial!H70 -> 0.009513105321
C35: N2O | D35: =Residential!G18+Commercial!G22+Industrial!H39 -> 0.01241813758
C36: Natural Gas & LPG | D36: =SUM(D37:D39) -> 9.214820612
C37: CO2 | D37: =Residential!G11+Residential!G10+Commercial!G14+Commercial!G11+Industrial!J29+Industrial!J17 -> 9.18802397
C38: CH4 | D38: =Residential!G35+Residential!G34+Commercial!G43+Commercial!G40+Industrial!H90+Industrial!H78 -> 0.02133404728
C39: N2O | D39: =Residential!G22+Residential!G21+Commercial!G28+Commercial!G25+Industrial!H59+Industrial!H47 -> 0.005462594184
C40: Petroleum | D40: =SUM(D41:D43) -> 4.577831198
C41: CO2 | D41: =Residential!G8+Residential!G9+Commercial!G12+Commercial!G13+Commercial!G9+Commercial!G10+Industrial!J13+Industrial!J14+Industrial!J15+Industrial!J16+Industrial!J18+Industrial!J21+Industrial!J23+Industrial!J24+Industrial!J26+Industrial!J28+Industrial!J19 -> 4.557477225
C42: CH4 | D42: =Residential!G32+Residential!G33+Commercial!G38+Commercial!G39+Commercial!G41+Commercial!G42+Industrial!H74+Industrial!H75+Industrial!H76+Industrial!H77+Industrial!H80+Industrial!H84+Industrial!H85+Industrial!H87 -> 0.01134513104
C43: N2O | D43: =Residential!G19+Residential!G20+Commercial!G23+Commercial!G24+Commercial!G26+Commercial!G27+Industrial!H43+Industrial!H44+Industrial!H45+Industrial!H46+Industrial!H49+Industrial!H53+Industrial!H54+Industrial!H56 -> 0.009008841719
C44: Wood | D44: =SUM(D45:D47) -> 0.1028314584
C45: CO2 | D45: 0
C46: CH4 | D46: =Residential!G36+Commercial!G44+Industrial!H91 -> 0.081523696
C47: N2O | D47: =Residential!G23+Commercial!G29+Industrial!H60 -> 0.02130776237
B48: Transportation | D48: =D49+D53+D57+D61+D65+D69+D73+D77 -> 35.40834269
C49: Onroad Gasoline | D49: =SUM(D50:D52) -> 23.6996629
C50: CO2 | D50: =Transportation!E96 -> 23.195
C51: CH4 | D51: =(Transportation!G96)*($G$5/21) -> 0.0616
C52: N2O | D52: =Transportation!I96*($G$6/310) -> 0.4430629032
C53: Nonroad Gasoline | D53: =SUM(D54:D56) -> 1.043895023
C54: CO2 | D54: =Transportation!O64+Transportation!O65+Transportation!O66+Transportation!O67 -> 1.039550516
C55: CH4 | D55: =(Transportation!AE64+Transportation!AE65+Transportation!AE66+Transportation!AE67)/1000000 -> 0.001227272984
C56: N2O | D56: =SUM(Transportation!X64:X67)/1000000 -> 0.00311723416
C57: Onroad Diesel | D57: =SUM(D58:D60) -> 5.909964516
C58: CO2 | D58: =Transportation!E97 -> 5.907
C59: CH4 | D59: =Transportation!G97*($G$5/21) -> 0.0004
C60: N2O | D60: =Transportation!I97*($G$6/310) -> 0.002564516129
C61: Nonroad Diesel | D61: =SUM(D62:D64) -> 1.503646271
C62: CO2 | D62: =SUM(Transportation!O56:O58) -> 1.488082933
C63: CH4 | D63: =SUM(Transportation!AE56:AE58)/1000000 -> 0.005628545501
C64: N2O | D64: =SUM(Transportation!X56:X58)/1000000 -> 0.009934792076
C65: Rail | D65: =SUM(D66:D68) -> 0.2387017467
C66: CO2 | D66: =Transportation!O59 -> 0.2366005791
C67: CH4 | D67: =Transportation!AE59/1000000 -> 0.0005215664277
C68: N2O | D68: =Transportation!X59/1000000 -> 0.001579601181
C69: Marine Vessels (Gas & Oil) | D69: =SUM(D70:D72) -> 0.9970291409
C70: CO2 | D70: =Transportation!O60+Transportation!O68+Transportation!O69 -> 0.9885981383
C71: CH4 | D71: =(Transportation!AE60+Transportation!AE68+Transportation!AE69)/1000000 -> 0.001964387004
C72: N2O | D72: =(Transportation!X60+Transportation!X68+Transportation!X69)/1000000 -> 0.006466615603
C73: Lubricants, Natural Gas, and LPG | D73: =SUM(D74:D76) -> 0.2959551458
C74: CO2 | D74: =Transportation!O63+Transportation!O70+Transportation!S79 -> 0.2959551458
C75: CH4 | D75: 0
C76: N2O | D76: 0
C77: Jet Fuel and Aviation Gasoline | D77: =SUM(D78:D80) -> 1.719487948
C78: CO2 | D78: =Transportation!O55+Transportation!O61+Transportation!O62 -> 1.703343607
C79: CH4 | D79: =(Transportation!AE55+Transportation!AE61+Transportation!AE62)/1000000 -> 0.002168032598
C80: N2O | D80: =(Transportation!X55+Transportation!X61+Transportation!X62)/1000000 -> 0.01397630793
B81: Fossil Fuel Industry | D81: =D82+D86+D90 -> 1.255769124
C82: Natural Gas Industry | D82: =SUM(D83:D85) -> 1.081971428
C83: CO2 | D83: ='Natural Gas and Oil'!H70 -> 0.0001286356102
C84: CH4 | D84: ='Natural Gas and Oil'!J70+'Natural Gas and Oil'!F51+'Natural Gas and Oil'!F34+'Natural Gas and Oil'!F10 -> 1.081781726
C85: N2O | D85: ='Natural Gas and Oil'!I70 -> 6.106689114e-05
C86: Oil Industry | D86: =SUM(D87:D89) -> 0
C87: CO2 | D87: 0
C88: CH4 | D88: 0
C89: N2O | D89: 0
C90: Coal Mining | D90: =SUM(D91:D93) -> 0.1737976959
C91: CO2 | D91: 0
C92: CH4 | D92: =Mining!C35+Mining!C36 -> 0.1737976959
C93: N2O | D93: 0
B94: Industrial Processes | D94: =D95+D99+D103+D107+D111+D115+D119+D123+D127 -> 7.437239446
C95: Cement Manufacture | D95: =SUM(D96:D98) -> 1.483241728
C96: CO2 | D96: =Cement!G48 -> 1.483241728
C97: CH4 | D97: 0
C98: N2O | D98: 0
C99: Limestone and Dolomite | D99: =SUM(D100:D102) -> 0.1139411916
C100: CO2 | D100: ='LimeT&DSodaODS'!D43/1000000 -> 0.1139411916
C101: CH4 | D101: 0
C102: N2O | D102: 0
C103: Soda Ash | D103: =SUM(D104:D106) -> 0.04761102008
C104: CO2 | D104: ='LimeT&DSodaODS'!D44/1000000 -> 0.04761102008
C105: CH4 | D105: 0
C106: N2O | D106: 0
C107: Iron and Steel | D107: =SUM(D108:D110) -> 3.597116387
C108: CO2 | D108: ='Iron And Steel'!M15 -> 3.597116387
C109: CH4 | D109: 0
C110: N2O | D110: 0
C111: ODS Substitutes | D111: =SUM(D112:D114) -> 1.971282442
C112: CO2 | D112: 0
C113: CH4 | D113: 0
C114: HFC, PFC, SF6 | D114: ='LimeT&DSodaODS'!D51/1000000 -> 1.971282442
C115: Electricity Transmission and Dist. | D115: =SUM(D116:D118) -> 0.223419697
C116: CO2 | D116: 0
C117: CH4 | D117: 0
C118: HFC, PFC, SF6 | D118: ='LimeT&DSodaODS'!D54/1000000 -> 0.223419697
C119: Semiconductor Manufacturing | D119: =SUM(D120:D122) -> 0
C120: CO2 | D120: 0
C121: CH4 | D121: 0
C122: HFC, PFC, SF6 | D122: 0
C123: Ammonia and Urea Production (Nonfertilizer Usage) | D123: =SUM(D124:D126) -> 0.000626980797
C124: CO2 | D124: ='LimeT&DSodaODS'!D45/1000000 -> 0.000626980797
C125: CH4 | D125: 0
C126: HFC, PFC, SF6 | D126: 0
C127: Aluminum Production | D127: =SUM(D128:D130) -> 0
C128: CO2 | D128: 0
C129: CH4 | D129: 0
C130: HFC, PFC, SF6 | D130: 0
B131: Agriculture | D131: =D132+D136+D140+D144+D148 -> 1.761147021
C132: Enteric Fermentation | D132: =SUM(D133:D135) -> 0.5587572394
C133: CO2 | D133: 0
C134: CH4 | D134: =Agricultural!M25 -> 0.5587572394
C135: N2O | D135: 0
C136: Manure Management | D136: =SUM(D137:D139) -> 0.3183596616
C137: CO2 | D137: 0
C138: CH4 | D138: =Agricultural!W59 -> 0.1218584486
C139: N2O | D139: =Agricultural!U85 -> 0.196501213
C140: Agricultural Soils | D140: =SUM(D141:D143) -> 0.8716565835
C141: CO2 | D141: 0
C142: CH4 | D142: 0
C143: N2O | D143: =Agricultural!E221 -> 0.8716565835
C144: Agricultural Burning | D144: =SUM(D145:D147) -> 0.007225279518
C145: CO2 | D145: 0
C146: CH4 | D146: =Agricultural!E231 -> 0.005190811533
C147: N2O | D147: =Agricultural!E235 -> 0.002034467985
C148: Urea Fertilizer Usage | D148: =SUM(D149:D151) -> 0.005148256796
C149: CO2 | D149: ='Land Use'!T15 -> 0.005148256796
C150: CH4 | D150: 0
C151: N2O | D151: 0
B152: Waste Management | D152: =D153+D157+D161+D165 -> 4.65255144
C153: Waste Combustion | D153: =SUM(D154:D156) -> 1.289379539
C154: CO2 | D154: =Incinerators!C34 -> 1.272171161
C155: CH4 | D155: 0
C156: N2O | D156: =Incinerators!C45 -> 0.01720837876
C157: Landfills | D157: =SUM(D158:D160) -> 2.685571856
C158: CO2 | D158: =Landfills!V101 -> 0.5348102678
C159: CH4 | D159: =Landfills!V97/1000000 -> 2.150761589
C160: N2O | D160: 0
C161: Wastewater Management | D161: =SUM(D162:D164) -> 0.6446000441
C162: CO2 | D162: 0
C163: CH4 | D163: =Wastewater!C28+Wastewater!C30 -> 0.5030818921
C164: N2O | D164: =Wastewater!C29 -> 0.1415181519
C165: Residential Open Burning | D165: =SUM(D166:D168) -> 0.033
C166: CO2 | D166: =OpenBurn!D7 -> 0.033
C167: CH4 | D167: 0
C168: N2O | D168: 0
B169: Gross Emissions (Consumption Basis, Excludes Sinks) | D169: =D152+D131+D94+D81+D48+D31+D11 -> 109.8660054
B171: Emissions Sinks | D171: =SUM(D172:D175) -> -11.79034917
C172: Forested Landscape | D172: ='Land Use'!T6+'Land Use'!T7+'Land Use'!T8+'Land Use'!T9+'Land Use'!T11 -> -10.44657783
C173: Urban Forestry and Land Use | D173: ='Land Use'!T16+'Land Use'!T17+'Land Use'!T25 -> -1.331309142
C174: Agricultural Soils (Cultivation Practices) | D174: ='Land Use'!T10 -> -0.05142044495
C175: Forest Fires | D175: =SUM(D176:D177) -> 0.0389582475
C176: CH4 | D176: ='Land Use'!T23 -> 0.03245248727
C177: N2O | D177: ='Land Use'!T24 -> 0.006505760234
B178: Net Emissions (Consumptions Basis) (Including forestry, land use, and ag sinks) | D178: =D169+D171 -> 98.07565626
D182: =D9 -> 2006
C183: Electricity Use (Consumption) | D183: =D11 -> 42.45741421
C184: RCI Fuel Use | D184: =D31 -> 16.8935415
C185: Transportation - Onroad | D185: =D49+D57 -> 29.60962742
C186: Transportation - Nonroad | D186: =D53+D61+D65+D69+D73+D77 -> 5.798715274
C187: =B81 -> Fossil Fuel Industry | D187: =D81 -> 1.255769124
C188: =B94 -> Industrial Processes | D188: =D94 -> 7.437239446
C189: =B131 -> Agriculture | D189: =D131 -> 1.761147021
C190: =B152 -> Waste Management | D190: =D152 -> 4.65255144

Sheet EGU Production RGGI Units
A1: Electric Power Production (RGGI Units) and CO2 Emissions in Maryland
B3: RGGI COAL COMBUSTION BY UNIT
G4: Red = RGGI Data
B7: Plant ID | C7: Plant Name | D7: Equipment Description | E7: Fuel Type | F7: Usage | G7: Heat Content | H7: Heat Content | I7: Fuel Heat Input | J7: Fuel Heat Input | K7: CO2 Emmission
F8: (tons) | H8: Units | I8: (MMBTU) | J8: (MMBTU) | K8: (tons)
I9: (ECR) | J9: RGGI | K9: RGGI
B11: 001-0203 | C11: AES WARRIOR RUN COGEN
C12: 001-3-0127 | D12: ACF Boiler | E12: Coal | F12: 637044 | G12: 11356 | H12: Btu/lb | I12: =F12*G12*2000/1000000 -> 14468543.33 | J12: 14751582 | K12: 1546789
B14: 003-0468 | C14: Brandon Shores
D15: Unit 1 | E15: P-Coal | F15: 1905266 | G15: 11356 | H15: Btu/lb | I15: =(F15*G15*2000)/1000000 -> 43272401.39 | J15: 39865596 | K15: 4090213.4
D16: Unit 2 | E16: P-Coal | F16: 1676361 | G16: 11356 | H16: Btu/lb | I16: 38073511.03 | J16: 39027527 | K16: 4004228.7
F17: =SUM(F15:F16) -> 3581627 | J17: =SUM(J15:J16) -> 78893123 | K17: 8094442.1
B19: 24-005-0079 | C19: C.P.Crane
C20: 3-0108 | D20: Boiler Unit 1 | E20: P-Coal | F20: 404552 | G20: 11356 | H20: Btu/lb | I20: =(F20*G20*2000)/1000000 -> 9188185.024 | J20: 10825025 | K20: 1110643.8
C21: 3-0109 | D21: Boiler Unit 2 | E21: P-Coal | F21: 369913 | G21: 11356 | H21: Btu/lb | I21: 8401464.056 | J21: 9519110 | K21: 976658.5
F22: =SUM(F20:F21) -> 774465 | J22: =SUM(J20:J21) -> 20344135 | K22: 2087302.3
B23: 033-00014 | C23: Chalk Point
C24: 1600-14-30004 | D24: Unit 1 | E24: Coal | F24: 726410 | G24: 12810 | H24: Btu/ lb | I24: =(F24*G24*2000)/1000000 -> 18610624.2 | J24: 19830382 | K24: 2031754
C25: 1600-14-30005 | D25: Unit 2 | E25: Coal | F25: 780539 | G25: 12802 | H25: Btu/ lb | I25: 19984920.56 | J25: 21186709 | K25: 2170183
J26: =SUM(J24:J25) -> 41017091 | K26: 4201937
B27: 003-0014 | C27: HERBERT A WAGNER
C28: 4-0308 | D28: Unit 2 | E28: P-Coal | F28: 301760 | G28: 24 | H28: MMBtu/ tons | I28: =(F28*G28) -> 7242240 | J28: 8755729 | K28: 898338.2
C29: 3-0003 | D29: Unit 3 | E29: P-Coal | F29: 735196 | G29: 24 | H29: MMBtu/ tons | I29: 17644704 | J29: 18039441 | K29: 1850845.3
F30: =SUM(F28:F29) -> 1036956 | J30: =SUM(J28:J29) -> 26795170 | K30: 2749183.5
B31: 043-0005 | C31: R P SMITH
C32: 043-0005-3-0005 | D32: Unit 3 (9) | E32: Coal | F32: 53689.5 | G32: 11736 | H32: Btu/lb | I32: =(F32*G32*2000)/1000000 -> 1260199.944 | J32: 1260200 | K32: 129294
C33: 043-0005-3-0006 | D33: Unit 4 (11) | E33: Coal | F33: 201790.9 | G33: 11736 | H33: Btu/lb | I33: 4736436.005 | J33: 4736436 | K33: 485957
F34: =SUM(F32:F33) -> 255480.4 | J34: =SUM(J32:J33) -> 5996636 | K34: 615251
B35: 031-0019 | C35: Mirant Dickerson
C36: 1500-19-30001 | D36: Boiler 1 | E36: Coal | F36: 401640 | G36: 12910 | H36: Btu/lb | I36: =(F36*G36*2000)/1000000 -> 10370344.8 | J36: 10305447 | K36: 1057336
C37: 1500-19-30002 | D37: Boiler 2 | E37: Coal | F37: 342990 | G37: 12910 | H37: Btu/lb | I37: 8856001.8 | J37: 8948983 | K37: 918164
C38: 1500-19-30003 | D38: Boiler 3 | E38: Coal | F38: 418238 | G38: 12910 | H38: Btu/lb | I38: 10798905.16 | J38: 11940584 | K38: 1225103
F39: =SUM(F36:F38) -> 1162868 | J39: =SUM(J36:J38) -> 31195014 | K39: 3200603
B40: 017-0014 | C40: Mirant Morgantown
C41: 0800-14-30002 | D41: 1 | E41: Coal (Sc) | F41: 1325700 | G41: 13282 | H41: Btu/lb | I41: =(F41*G41*2000)/1000000 -> 35215894.8 | J41: 35354741 | K41: 3625815.6
C42: 080-14-30003 | D42: 2 | E42: Coal | F42: 1321775 | G42: 13282 | H42: Btu/lb | I42: 35111631.1 | J42: 35112681 | K42: 3600876.8
F43: =SUM(F41:F42) -> 2647475 | J43: =SUM(J41:J42) -> 70467422 | K43: 7226692.4
C45: Luke | D45: Penwood Boiler (24-26) | E45: Coal | J45: 12554530.31 | K45: 1285927.861
H49: Coal (MMBTU) | J49: =J45+J43+J39+J34+J30+J26+J22+J17+J12 -> 302014703.3 | K49: 31008128.16
B56: RGGI OIL COMBUSTION BY UNIT
E58: DFO = #2 Oil
D62: Equipment Description | E62: Fuel Type | F62: Usage | G62: Heat Content | H62: Heat Content | I62: Fuel Heat Input | J62: Fuel Heat Input | K62: CO2 Emmission
F63: (gallons) | H63: Unit | I63: (MMBTU) | J63: (MMBTU) | K63: (tons)
I64: (ECR) | J64: RGGI | K64: RGGI
B66: 001-0203 | C66: AES WARRIOR RUN COGEN | D66: ACF Boiler | E66: Diesel (#2) | F66: 242200 | G66: 140000 | H66: Btu/gal | I66: =F66*G66/1000000 -> 33908
C67: 001-3-0127 | D67: Emergency Engine (Boiler Feed Pump) | E67: Diesel (#2) | F67: 623 | G67: 140000 | H67: Btu/gal | I67: 87.22
F68: =SUM(F66:F67) -> 242823 | I68: =SUM(I66:I67) -> 33995.22
B70: 003-0468 | C70: Brandon Shores
C71: 3-0015 | D71: Unit 1 | E71: S-No. 2 Oil | F71: 851000 | G71: 139 | H71: MMBtu/ 1E+03 gal | I71: =(F71*G71)/1000 -> 118289
C72: 3-0016 | D72: Unit 2 | E72: S-No. 2 Oil | F72: 667000 | G72: 139 | H72: MMBtu/ 1E+03 gal | I72: 92713
F73: =SUM(F71:F72) -> 1518000 | I73: =SUM(I71:I72) -> 211002
B76: 033-00014 | C76: Chalk Point | D76: Unit 1 | E76: #2 Oli | F76: 609840 | G76: 133631 | H76: Btu/gal | I76: =(F76*G76)/1000000 -> 81493.52904
C77: 1600-14-30004 | D77: Unit 2 | E77: #2 Oli | F77: 691824 | G77: 133470 | H77: Btu/gal | I77: 92337.74928
C78: 1600-14-30005 | D78: Unit 3 | E78: #2 Oli | F78: 862585 | G78: 132252 | H78: Btu/gal | I78: 114078.5914
C79: 1600-14-40998 | D79: Unit 4 | E79: #2 Oli | F79: 581096 | G79: 132424 | H79: Btu/gal | I79: 76951.0567
C80: 1600-14-40999 | D80: CT 1 | E80: #2 Oli | F80: 255034 | G80: 132725 | H80: Btu/gal | I80: 33849.38765
C81: 1600-14-41145 | D81: CT2 | E81: #2 Oli | F81: 188951 | G81: 133243 | H81: Btu/gal | I81: 25176.39809 | J81: 13108 | K81: 1029
C82: 1600-14-90752 | D82: CT3** | E82: #2 Oli | F82: 116978 | G82: 135480 | H82: Btu/gal | I82: 15848.17944
C83: 1600-14-90753 | D83: CT4** | E83: #2 Oli | F83: 145371 | G83: 135572 | H83: Btu/gal | I83: 19708.23721
C84: 1600-14-90754 | D84: CT5** | E84: #2 Oli | F84: 136900 | G84: 134671 | H84: Btu/gal | I84: 18436.4599
C85: 1600-14-90755 | D85: CT6** | E85: #2 Oli | F85: 180983 | G85: 134133 | H85: Btu/gal | I85: =SUM(I76:I84) -> 477879.5887
F86: =SUM(F76:F85) -> 3769562
B88: 003-0014 | C88: HERBERT A WAGNER
C89: 4-0007 | D89: CT | E89: No.2 Oil | F89: 144000 | G89: 139 | H89: MMBTU/10E+03 gallons | I89: =(F89*G89)/1000 -> 20016
B91: 024-025-0024 | C91: Perryman
C92: 5-0088 | D92: Unit 51 CT | E92: No.2 Oil | F92: 630000 | G92: 139 | H92: MMBTU/10E+03 gallons | I92: =(F92*G92)/1000 -> 87570
C93: 4-0081 | D93: Unit 1 CT | E93: No.2 Oil | F93: 972000 | G93: 139 | H93: MMBTU/10E+03 gallons | I93: 135108 | J93: 104981 | K93: 8241
C94: 4-0082 | D94: Unit 2 CT | E94: No.2 Oil | F94: 856000 | G94: 139 | H94: MMBTU/10E+03 gallons | I94: 118984 | J94: 108127 | K94: 8488
C95: 4-0083 | D95: Unit 3 CT | E95: No.2 Oil | F95: 743000 | G95: 139 | H95: MMBTU/10E+03 gallons | I95: 103277 | J95: 120981 | K95: 9497
C96: 4-0084 | D96: Unit 4 CT | E96: No.2 Oil | F96: 2000 | G96: 139 | H96: MMBTU/10E+03 gallons | I96: 278 | J96: =SUM(J93:J95) -> 334089 | K96: 26226
F97: =SUM(F92:F96) -> 3203000 | I97: =SUM(I92:I96) -> 445217
B98: 043-0005 | C98: R P SMITH
C99: 043-0005-3-0005 | D99: Unit 3 (9) | E99: #2 Oil | F99: 4439283.7 | G99: 141000 | H99: Btu/ gal | I99: =(F99*G99)/1000000 -> 625939.0017
C100: 043-0005-3-0006 | D100: Unit 4 (11) | E100: #2 Oil | F100: 4498304.96 | G100: 141000 | H100: Btu/ gal | I100: 634260.9994
F101: =SUM(F99:F100) -> 8937588.66 | I101: =SUM(I99:I100) -> 1260200.001
B102: 005-0078 | C102: Riverside
C103: 4-0658 | D103: Combustion Turbine # 7 | E103: #2 Oil | F103: 202000 | G103: 139 | H103: MMBTU/10E+03 gallons | I103: =(F103*G103)/1000 -> 28078
C104: 4-0659 | D104: Combustion Turbine #8 | E104: #2 Oil | F104: 236000 | G104: 139 | H104: MMBTU/10E+03 gallons | I104: 32804
F105: =SUM(F103:F104) -> 438000 | I105: =SUM(I103:I104) -> 60882
B107: 019-0013 | C107: Vienna Generating Station
C108: 4-0065 | D108: Unit 8 | E108: #2 Oil | F108: 82113 | G108: 138097 | H108: Btu/gallons | I108: =(F108*G108)/1000000 -> 11339.55896
B110: 031-0019 | C110: Mirant Dickerson
C111: 1500-19-30001 | D111: Boiler 1 | E111: #2 Oil | F111: 202101 | G111: 139181 | H111: Btu/gal | I111: =(F111*G111)/1000000 -> 28128.61928
C112: 1500-19-30002 | D112: Boiler 2 | E112: #2 Oil | F112: 355692 | G112: 139181 | H112: Btu/gal | I112: 49505.56825
C113: 1500-19-30003 | D113: Boiler 3 | E113: #2 Oil | F113: 243688 | G113: 139181 | H113: Btu/gal | I113: 33916.73953
F114: =SUM(F111:F113) -> 801481 | I114: =SUM(I111:I113) -> 111550.9271
B117: 031-1822 | C117: Mirant Station H
C118: 1518-22-90362 | D118: CT 1 | E118: #2 Oil | F118: 114941 | G118: 139181 | H118: Btu/gal | I118: =(F118*G118)/1000000 -> 15997.60332
C119: 158-22-90363 | D119: CT 2 | E119: #2 Oil | F119: 258154 | G119: 139181 | H119: Btu/gal | I119: 35930.13187
F120: =SUM(F118:F119) -> 373095 | I120: =SUM(I118:I119) -> 51927.7352
B121: 017-0014 | C121: Mirant Morgantown
C122: 0800-14-4-0070 | D122: CT 3 | E122: No. 2 Fuel Oil | F122: 566623 | G122: 138840 | H122: Btu/ gallons | I122: =(F122*G122)/1000000 -> 78669.93732 | J122: 128286 | K122: 13156
C123: 0800-14-4-0074 | D123: CT 5 | E123: No. 2 Fuel Oil | F123: 741105 | G123: 138840 | H123: Btu/ gallons | I123: 102895.0182 | J123: 159490 | K123: 16356
C124: 0800-14-4-0075 | D124: CT 6 | E124: No. 2 Fuel Oil | F124: 671219 | G124: 138840 | H124: Btu/ gallons | I124: 93192.04596 | J124: 142572 | K124: 14621
F125: =SUM(F122:F124) -> 1978947 | I125: =SUM(I122:I124) -> 274757.0015 | J125: 430348 | K125: 44133
B128: 001-0011 | C128: Luke (NewPage)
B129: 10200203 | C129: 01-0011-3-0018 | D129: No. 24 Boiler | E129: #2 Oil | J129: 35410.72607 | K129: 2871.638822
H131: Distillate Fuel Oil (MMBTU) | J131: =J129+J125+J96+J81 -> 812955.7261 | K131: 74259.63882
B133: 005-0078 | C133: Riverside
C134: 4-1363 | D134: Combustion Turbine # 6 | E134: Kerosene | F134: 64000 | G134: 132 | H134: MMBTU/10E+03 gallons | I134: =(F134*G134)/1000 -> 8448 | J134: 318364 | K134: 17510
E138: RFO = #6 Oil
B140: Plant ID | C140: Plant Name | D140: Equipment Description | E140: Fuel Type | F140: Usage | G140: Usage Unit | H140: Heat Content | I140: Heat Content Unit | J140: Fuel Heat Input | K140: CO2 Emmission
J141: (MMBTU) | K141: (tons)
K142: RGGI
B143: 033-00014 | C143: Chalk Point
C145: 1600-14-40998 | D145: Unit 3 | E145: #6 Oil | F145: 7447756 | G145: gallons | H145: 151500 | I145: Btu/gal
C146: 1600-14-40999 | D146: Unit 4 | E146: #6 Oil | F146: 468556 | G146: gallons | H146: 151650 | I146: Btu/gal
F147: =SUM(F145:F146) -> 7916312
B149: 003-0014 | C149: HERBERT A WAGNER
C150: 4-0307 | D150: Unit 1 | E150: No. 6 Oil | F150: 1381000 | G150: gallons | H150: 151 | I150: MMBTU/10E+03 gallons
C151: 4-0017 | D151: Boiler 2 (Unit 4) | E151: P-No.6 Oil | F151: 689000 | G151: gallons | H151: 151 | I151: MMBTU/10E+03 gallons | J151: 1168171 | K151: 100937
F152: =SUM(F150:F151) -> 2070000
B154: 019-0013 | C154: Vienna Generating Station
C155: 4-0065 | D155: Unit 8 | E155: #6 Oil | F155: 800843 | G155: gallons | H155: 150334 | I155: Btu/gallons | J155: 168136 | K155: 13643
B157: 017-0014 | C157: Mirant Morgantown
C158: 0800-14-30002 | D158: 1 | E158: Waste Oil | F158: 38840 | G158: gallons | H158: 138840 | I158: Btu/ gallons
C159: 080-14-30003 | D159: 2 | E159: Waste Oil | F159: 7620 | G159: gallons | H159: 138840 | I159: Btu/ gallons
B162: Severstal | C162: Pennwood Boilers No. 1 - No. 4 | E162: #6 Oil | J162: 69490.44693 | K162: 5926.571033
B163: 5-0491-15
H165: Residual Fuel Oil (MMBTU) | J165: =SUM(J151:J164) -> 1405797.447 | K165: 120506.571
H168: Total Petroleum (MMBTU) | J168: =J165+J134+J131 -> 2537117.173 | K168: 212276.2099
B174: RGGI NATURAL GAS COMBUSTION BY UNIT
B179: Plant ID | C179: Plant Name | D179: Equipment Description | E179: Fuel Type | F179: Usage | G179: Heat Content | H179: Heat Content Unit | I179: Fuel Heat Input | J179: Fuel Heat Input | K179: CO2 Emmission
F180: (Scf) | I180: (MMBTU) | J180: (MMBTU) | K180: (tons)
I181: (ECR) | J181: RGGI | K181: RGGI
B182: 001-0203 | C182: AES WARRIOR RUN COGEN
C183: 001-6-0136 | D183: Limestone Dryer | E183: Natural Gas | F183: 4505600 | G183: 1020 | H183: Btu/scf | I183: =F183*G183/1000000 -> 4595.712
C184: 001-6-0243/0244 | D184: Natural Gas (Space) Heater | E184: Natural Gas | F184: 612700 | G184: 1021 | H184: Btu/scf | I184: 625.5667
F185: =SUM(F183:F184) -> 5118300
B186: 24-005-0079 | C186: C.P.Crane
C187: 3-0108 | D187: Boiler Unit 1 | E187: S-Gas | F187: 50000000 | G187: 1044 | H187: MMBtu/1E+06 scf | I187: =(F187*G187)/1000000 -> 52200
C188: 3-0109 | D188: Boiler Unit 2 | E188: S-Gas | F188: 51000000 | G188: 1044 | H188: MMBtu/1E+06 scf | I188: 53244
F189: =SUM(F187:F188) -> 101000000
B191: 033-00014 | C191: Chalk Point
C192: 1600-14-30004 | D192: Unit 1 | E192: Gas | F192: 23884500 | G192: 1052 | H192: MMBtu/1E+06 scf | I192: =(F192*G192)/1000000 -> 25126.494
C193: 1600-14-30005 | D193: Unit 2 | E193: Gas | F193: 35159000 | G193: 1050 | H193: MMBtu/1E+06 scf | I193: 36916.95
C194: 1600-14-40998 | D194: Unit 3 | E194: Gas | F194: 2232939000 | G194: 1040 | H194: MMBtu/1E+06 scf | I194: 2322256.56 | J194: 4124736 | K194: 272718
C195: 1600-14-40999 | D195: Unit 4 | E195: Gas | F195: 2865514000 | G195: 1041 | H195: MMBtu/1E+06 scf | I195: 2983000.074 | J195: 4412283 | K195: 279485
C196: 1600-14-90752 | D196: CT3** | E196: Gas | F196: 151803000 | G196: 1044 | H196: MMBtu/1E+06 scf | I196: 158482.332 | J196: 223457 | K196: 13612
C197: 1600-14-90753 | D197: CT4** | E197: Gas | F197: 150036000 | G197: 1044 | H197: MMBtu/1E+06 scf | I197: 156637.584 | J197: 237292 | K197: 14539
C198: 1600-14-90754 | D198: CT5** | E198: Gas | F198: 135210000 | G198: 1044 | H198: MMBtu/1E+06 scf | I198: 141159.24 | J198: 290042 | K198: 17585
C199: 1600-14-90755 | D199: CT6** | E199: Gas | F199: 178511000 | G199: 1043 | H199: MMBtu/1E+06 scf | I199: 186186.973 | J199: 311222 | K199: 19063
F200: =SUM(F192:F199) -> 5773056500 | J200: =SUM(J194:J199) -> 9599032 | K200: 617002
B202: 033-01827 | C202: Chalkpoint -SMECO
C203: 1827-5-1289 | D203: Combustion Turbine | E203: Gas | F203: 446473000 | G203: 1050 | H203: Btu/scf | I203: =(F203*G203)/1000000 -> 468796.65 | J203: 185898 | K203: 14593
B205: 003-0014 | C205: HERBERT A WAGNER
C206: 4-0307 | D206: Unit 1 | E206: Gas | F206: 361000000 | G206: 1044 | H206: MMBTU/ 10E+06 scf | I206: =(F206*G206)/1000000 -> 376884 | J206: 565015 | K206: 38237
C207: 4-0308 | D207: Unit 2 | E207: S-Gas | F207: 52000000 | G207: 1044 | H207: MMBTU/ 10E+06 scf | I207: 54288
C208: 3-0003 | D208: Unit 3 | E208: S-Gas | F208: 161000000 | G208: 1044 | H208: MMBTU/ 10E+06 scf | I208: 168084
C209: 4-0017 | D209: Boiler 2 (Unit 4) | E209: S-Gas | F209: 57000000 | G209: 1044 | H209: MMBTU/ 10E+06 scf | I209: 59508
F210: =SUM(F206:F209) -> 631000000 | I210: =SUM(I206:I209) -> 658764
B213: 024-025-0024 | C213: Perryman
C214: 5-0088 | D214: Unit 51 CT | E214: Gas | F214: 550000000 | G214: 1044 | H214: MMBTU/ 10E+06 scf | I214: =(F214*G214)/1000000 -> 574200 | J214: 620987 | K214: 38852
B216: 005-0078 | C216: Riverside
C217: 4-1363 | D217: Combustion Turbine # 6 | E217: Gas | F217: 53000000 | G217: 1044 | H217: MMBTU/10E+06 scf | I217: =(F217*G217)/1000000 -> 55332
C218: 4-1082 | D218: Boiler #4 | E218: Gas | F218: 164000000 | G218: 1044 | H218: MMBTU/10E+06 scf | I218: 171216 | J218: 177348 | K218: 10540
F219: =SUM(F217:F218) -> 217000000
B221: 510-0006 | C221: Westport
C222: 5-0005 | D222: Combustion Turbine Unit 5 | E222: Gas | F222: 91000000 | G222: 1044 | H222: MMBTU/10E+06 scf | I222: =(F222*G222)/1000000 -> 95004 | J222: 103000 | K222: 5665
B224: 031-1822 | C224: Mirant Station H
C225: 1518-22-90362 | D225: CT 1 | E225: Gas | F225: 481631000 | G225: 1035 | H225: MMBTU/10E+06 scf | I225: =(F225*G225)/1000000 -> 498488.085 | J225: 413560 | K225: 24853
C226: 158-22-90363 | D226: CT 2 | E226: Gas | F226: 409949000 | G226: 1035 | H226: MMBTU/10E+06 scf | I226: 424297.215 | J226: 403584 | K226: 24246
F227: =SUM(F225:F226) -> 891580000 | J227: =SUM(J225:J226) -> 817144 | K227: 49099
B228: 033-2200 | C228: Panda Brandywine
C229: 5-0844 | D229: 1 | E229: Natural Gas | F229: 2373289.27 | G229: 1.044 | H229: MMBtu/ scf | I229: =(F229*G229) -> 2477713.998 | J229: 2477714 | K229: 90209
C230: 5-0845 | D230: 2 | E230: Natural Gas | F230: 1473520.11 | G230: 1.044 | H230: MMBtu/ scf | I230: 1538354.995 | J230: 1538356 | K230: 69247
F231: =SUM(F229:F230) -> 3846809.38 | J231: =SUM(J229:J230) -> 4016070 | K231: 159456
B233: 015-0202 | C233: Rock Spring
C234: 5-0076 | D234: Turbine 1 | E234: Natural Gas | F234: 317189.6552 | G234: 1.044 | H234: MMBtu/ scf | I234: =(F234*G234) -> 331146 | J234: 331146 | K234: 19679
C235: 5-0077 | D235: Turbine 2 | E235: Natural Gas | F235: 315825.6705 | G235: 1.044 | H235: MMBtu/ scf | I235: 329722 | J235: 329722 | K235: 19595
C236: 5-0078 | D236: Turbine 3 | E236: Natural Gas | F236: 274061.3027 | G236: 1.044 | H236: MMBtu/ scf | I236: 286120 | J236: 286121 | K236: 17004
C237: 5-0079 | D237: Turbine 4 | E237: Natural Gas | F237: 417124.5211 | G237: 1.044 | H237: MMBtu/ scf | I237: 435478 | J237: 435478 | K237: 25880
F238: =SUM(F234:F237) -> 1324201.149 | J238: =SUM(J234:J237) -> 1382467 | K238: 82158
C240: Luke | D240: Penwood Boiler (24-26) | E240: Natural Gas | J240: 131127.749 | K240: 7672.276434
C243: Severstal | E243: BFG | J243: 10667544.36 | K243: 2911339.313
E244: Natural Gas | J244: 1288772.942 | K244: 76940.11631
J245: =SUM(J243:J244) -> 11956317.3 | K245: 2988279.429
H250: Natural Gas (MMBTU) | J250: =J245+J240+J238+J231+J227+J222+J218+J214+J206+J203+J200 -> 29554406.05 | K250: 4011553.705
B255: CO2 EMISSION SUMMARY
B256: RGGI ALL UNITS
C258: MMBTU | D258: CO2 Emission | E258: CO2 Emission | F258: CO2 Emission | G258: CO2 Emission
D259: (short tons) | E259: (metric tons) | F259: (MMTCO2) | G259: (MMTC)
B261: Coal | C261: =J49 -> 302014703.3 | D261: 31008128.16 | E261: =D261*0.9072 -> 28130573.87 | F261: =E261/1000000 -> 28.13057387 | G261: =F261*(12/44) -> 7.671974691
B263: Petroleum | C263: =J168 -> 2537117.173 | D263: 212276.2099 | E263: =D263*0.9072 -> 192576.9776 | F263: =E263/1000000 -> 0.1925769776 | G263: =F263*(12/44) -> 0.05252099389
B265: Natural Gas | C265: =J250 -> 29554406.05 | D265: 4011553.705 | E265: =D265*0.9072 -> 3639281.522 | F265: =E265/1000000 -> 3.639281522 | G265: =F265*(12/44) -> 0.9925313241
B267: Total | D267: =SUM(D261:D266) -> 35231958.08 | E267: 31962432.37 | F267: =E267/1000000 -> 31.96243237 | G267: =SUM(G261:G266) -> 8.717027009
B273: CH4 EMISSION SUMMARY
B274: RGGI ALL UNITS | I274: Global Warming Potential
B276: Electric Power Sector CH4 | E276: 2006 | I276: CO2_GWP= | J276: ='Summ GHG Rpt Expanded'!G4 -> 1
I277: CH4_GWP = | J277: ='Summ GHG Rpt Expanded'!G5 -> 28
C278: Consumption | D278: Emission Factor | E278: Emissions | F278: GWP | G278: Emissions | I278: N2O_GWP= | J278: ='Summ GHG Rpt Expanded'!G6 -> 265
B279: Fuel Type | C279: (Billion Btu) | D279: (metric tons CH4 /BBtu) | E279: (metric tons CH4) | G279: (MMTCO2E) | I279: SF6_GWP = | J279: ='Summ GHG Rpt Expanded'!G7 -> 23500
B280: Coal | C280: =J49/1000 -> 302014.7033 | D280: 0.00100230306 | E280: =C280*D280 -> 302.7102613 | F280: =$J$277 -> 28 | G280: =E280*F280/1000000 -> 0.008475887316 | I280: PFCs_GWP= | J280: ='Summ GHG Rpt Expanded'!G8 -> 11100
B281: Distillate Fuel | C281: =J131/1000 -> 812.9557261 | D281: 0.00300690918 | E281: 2.444484036 | F281: 28 | G281: 6.8445553e-05
B282: Residual Fuel | C282: =J165/1000 -> 1405.797447 | D282: 0.00300690918 | E282: 4.227105248 | F282: 28 | G282: 0.000118358947
B283: Natural Gas | C283: =J250/1000 -> 29554.40605 | D283: 0.0009495502674 | E283: 28.06339416 | F283: 28 | G283: 0.0007857750366
F284: Total | G284: =SUM(G280:G283) -> 0.009448466853
B286: N2O EMISSION SUMMARY
B287: RGGI ALL UNITS
B288: Electric Power Sector N2O | E288: 2006
... 18 more rows

Sheet EGU Production Non-RGGI Units
A1: Electric Power Production (Non-RGGI Units) Emissions in Maryland
B3: Plant Name | C3: Equipment Description | D3: Fuel Type | E3: Usage | F3: Usage Unit | G3: Heat Content | H3: Heat Content Unit | I3: Fuel Heat Input (MMBTU)
B5: NON-RGGI DISTILLATE OIL COMBUSTION BY UNIT
B6: C.P.Crane
B7: 4-0091 | C7: Aux Boiler # 2 | D7: S-No. 2 Oil | E7: 25000 | F7: gallons | G7: 139 | H7: MMBtu/ 1E+03 gal | I7: =(E7*G7)/1000 -> 3475
B8: 4-1107 | C8: Aux Boiler # 3 | D8: S-No. 2 Oil | E8: 197000 | F8: gallons | G8: 139 | H8: MMBtu/ 1E+03 gal | I8: 27383
B9: 4-0089 | C9: CT (14 MW) | D9: S-No. 2 Oil | E9: 129000 | F9: gallons | G9: 139 | H9: MMBtu/ 1E+03 gal | I9: 17931
H10: #2 Fuel Oil | I10: =SUM(I7:I9) -> 48789
B12: CPSG- Philadelphia Road Power
B13: 4-0431 | C13: Unit 1 CT | D13: No. 2 Oil | E13: 365000 | F13: gallons | G13: 139 | H13: MMBTU/ 1E+03 gallons | I13: =(E13*G13)/1000 -> 50735
B14: 4-0432 | C14: Unit 2 CT | D14: No. 2 Oil | E14: 351000 | F14: gallons | G14: 139 | H14: MMBTU/ 1E+03 gallons | I14: 48789
B15: 4-0433 | C15: Unit 3 CT | D15: No. 2 Oil | E15: 273000 | F15: gallons | G15: 139 | H15: MMBTU/ 1E+03 gallons | I15: 37947
B16: 4-0434 | C16: Unit 4 CT | D16: No. 2 Oil | E16: 251000 | F16: gallons | G16: 139 | H16: MMBTU/ 1E+03 gallons | I16: 34889
H17: #2 Fuel Oil | I17: =SUM(I13:I16) -> 172360
B19: Connectiv - Crisfield Generation
B20: 039-0017-9-0021 | C20: Unit 1 General Motors 2.5 MW | D20: No. 2 Oil | E20: 134214 | F20: gallons | G20: 140983 | H20: Btu/gal | I20: =E20*G20/1000000 -> 18921.89236
B21: 039-0017-9-0022 | C21: Unit 2 General Motors 2.5 MW | D21: No. 2 Oil | E21: 141428 | F21: gallons | G21: 140983 | H21: Btu/gal | I21: 19938.94372
B22: 039-0017-9-0023 | C22: Unit 3 General Motors 2.5 MW | D22: No. 2 Oil | E22: 148690 | F22: gallons | G22: 140983 | H22: Btu/gal | I22: 20962.76227
B23: 039-0017-9-0024 | C23: Unit 4 General Motors 2.5 MW | D23: No. 2 Oil | E23: 104704 | F23: gallons | G23: 140983 | H23: Btu/gal | I23: 14761.48403
H24: #2 Fuel Oil | I24: =SUM(I20:I23) -> 74585.08239
B26: Easton Utility
B27: 041-0029-9-0023 | D27: #2 Fuel Oil | E27: 31429 | F27: gallons | G27: 139 | H27: MMBTU/ 10E+03 gallons | I27: =(E27*G27)/1000 -> 4368.631
B28: 041-0029-9-0024 | D28: #2 Fuel Oil | E28: 29676 | F28: gallons | G28: 140 | H28: MMBTU/ 10E+03 gallons | I28: 4154.64
B29: 041-0029-9-0025 | D29: #2 Fuel Oil | E29: 43067 | F29: gallons | G29: 141 | H29: MMBTU/ 10E+03 gallons | I29: 6072.447
B30: 041-0029-9-0026 | D30: #2 Fuel Oil | E30: 45535 | F30: gallons | G30: 142 | H30: MMBTU/ 10E+03 gallons | I30: 6465.97
B31: 041-0029-9-0027 | D31: #2 Fuel Oil | E31: 41436 | F31: gallons | G31: 143 | H31: MMBTU/ 10E+03 gallons | I31: 5925.348
B32: 041-0029-9-0028 | D32: #2 Fuel Oil | E32: 55907 | F32: gallons | G32: 144 | H32: MMBTU/ 10E+03 gallons | I32: 8050.608
B33: 041-0029-9-0029 | D33: #2 Fuel Oil | E33: 70929 | F33: gallons | G33: 145 | H33: MMBTU/ 10E+03 gallons | I33: 10284.705
B34: 041-0029-9-0030 | D34: #2 Fuel Oil | E34: 73718 | F34: gallons | G34: 146 | H34: MMBTU/ 10E+03 gallons | I34: 10762.828
B35: 041-0029-9-0031 | D35: #2 Fuel Oil | E35: 3491 | F35: gallons | G35: 147 | H35: MMBTU/ 10E+03 gallons | I35: 513.177
B36: 041-0029-9-0032 | D36: #2 Fuel Oil | E36: 3717 | F36: gallons | G36: 148 | H36: MMBTU/ 10E+03 gallons | I36: 550.116
H37: #2 Fuel Oil | I37: =SUM(I27:I36) -> 57148.47
B38: Easton Utility-Airport Park
B39: 041-0069-4-0101 | C39: Solar Turbines Taurus T-60;52.02 | D39: #2 Fuel Oil | E39: 60197 | F39: gallons | G39: 137000 | H39: Btu/gallon | I39: =(E39*G39)/1000000 -> 8246.989
B40: 041-0069-4-0102 | C40: Solar Turbines Taurus T-60-780;52 M | D40: #2 Fuel Oil | E40: 60972 | F40: gallons | G40: 137000 | H40: Btu/gallon | I40: 8353.164
B41: 041-0069-9-0033 | C41: Diesel Gen | D41: #2 Fuel Oil | E41: 26413 | F41: gallons | G41: 137000 | H41: Btu/gallon | I41: 3618.581
B42: 041-0069-9-0034 | C42: Diesel Gen | D42: #2 Fuel Oil | E42: 18374 | F42: gallons | G42: 137000 | H42: Btu/gallon | I42: 2517.238
B43: 041-0069-9-0035 | C43: Diesel Gen | D43: #2 Fuel Oil | E43: 25028 | F43: gallons | G43: 137000 | H43: Btu/gallon | I43: 3428.836
B44: 041-0069-9-0036 | C44: Diesel Gen | D44: #2 Fuel Oil | E44: 22917 | F44: gallons | G44: 137000 | H44: Btu/gallon | I44: 3139.629
B45: 041-0069-9-0037 | C45: Diesel Gen | D45: #2 Fuel Oil | E45: 3620 | F45: gallons | G45: 137000 | H45: Btu/gallon | I45: 495.94
B46: 041-0069-9-0038 | C46: Diesel Gen | D46: #2 Fuel Oil | E46: 3566 | F46: gallons | G46: 137000 | H46: Btu/gallon | I46: 488.542
H47: #2 Fuel Oil | I47: =SUM(I39:I46) -> 30288.919
B48: Berlin Town Power Plant
B49: 9-0028 | C49: EMD Diesel Gen -3600 HP | D49: No. 2 Oil | E49: 11831 | F49: gallons | G49: 140983 | H49: Btu/gal | I49: =(E49*G49)/1000000 -> 1667.969873
B50: 9-0029 | C50: FM Diesel Gen -1600HP | D50: No. 2 Oil | E50: 15038 | F50: gallons | G50: 140984 | H50: Btu/gal | I50: 2120.117392
B51: 9-0031 | C51: Mistsu. Diesel Gen -2829 HP | D51: No. 2 Oil | E51: 0 | F51: gallons | H51: Btu/gal | I51: 0
B52: 9-0032 | C52: Mistsu. Diesel Gen -2829 HP | D52: No. 2 Oil | E52: 12159 | F52: gallons | G52: 140986 | H52: Btu/gal | I52: 1714.248774
B53: 9-0033 | C53: Mistsu. Diesel Gen -2829 HP | D53: No. 2 Oil | E53: 26726 | F53: gallons | G53: 140987 | H53: Btu/gal | I53: 3768.018562
H54: #2 Fuel Oil | I54: =SUM(I49:I53) -> 9270.354601
B56: Riverside
B58: 4-0658 | C58: Combustion Turbine # 7 | D58: #2 Oil | E58: 202000 | F58: gallons | G58: 139 | H58: MMBTU/10E+03 gallons | I58: =(E58*G58)/1000 -> 28078
B59: 4-0659 | C59: Combustion Turbine #8 | D59: #2 Oil | E59: 236000 | F59: gallons | G59: 139 | H59: MMBTU/10E+03 gallons | I59: 32804
H60: #2 Fuel Oil | I60: =SUM(I58:I59) -> 60882
B62: Perryman
B63: 4-0083 | C63: Unit 3 CT | D63: No.2 Oil | E63: 743000 | F63: gallons | G63: 139 | H63: MMBTU/10E+03 gallons | I63: =(E63*G63)/1000 -> 103277
F66: Distillate Fuel Oil Total | I66: =I63+I60+I54+I47+I37+I24+I17+I10 -> 556600.826
B69: NON-RGGI RESIDUAL OIL COMBUSTION BY UNIT
B70: Easton Utility-Airport Park
B71: 041-0069-9-0033 | C71: Diesel Gen | D71: # 6 Fuel Oil | E71: 52845 | F71: gallons | G71: 137001 | H71: Btu/gallon | I71: =(E71*G71)/1000000 -> 7239.817845
B72: 041-0069-9-0034 | C72: Diesel Gen | D72: # 6 Fuel Oil | E72: 37030 | F72: gallons | G72: 137001 | H72: Btu/gallon | I72: 5073.14703
B73: 041-0069-9-0035 | C73: Diesel Gen | D73: # 6 Fuel Oil | E73: 106975 | F73: gallons | G73: 137001 | H73: Btu/gallon | I73: 14655.68197
B74: 041-0069-9-0036 | C74: Diesel Gen | D74: # 6 Fuel Oil | E74: 110608 | F74: gallons | G74: 137001 | H74: Btu/gallon | I74: 15153.40661
H75: # 6 Fuel Oil Total | I75: =SUM(I71:I74) -> 42122.05346
F77: Residual Fuel Oil Total | I77: =I75 -> 42122.05346
B79: NON-RGGI NATURAL GAS COMBUSTION BY UNIT
B80: CPSG- Notch Cliff
B81: 9-1094 | C81: Unit 1 CT | D81: Gas | E81: 15000000 | F81: scf | G81: 1044 | H81: MMBTU/ 1 E+06 scf | I81: =(E81*G81)/1000000 -> 15660
B82: 9-1095 | C82: Unit 2 CT | D82: Gas | E82: 15000000 | F82: scf | G82: 1044 | H82: MMBTU/ 1 E+06 scf | I82: 15660
B83: 9-1096 | C83: Unit 3 CT | D83: Gas | E83: 19000000 | F83: scf | G83: 1044 | H83: MMBTU/ 1 E+06 scf | I83: 19836
B84: 9-1097 | C84: Unit 4 CT | D84: Gas | E84: 20000000 | F84: scf | G84: 1044 | H84: MMBTU/ 1 E+06 scf | I84: 20880
B85: 9-1098 | C85: Unit 5 CT | D85: Gas | E85: 28000000 | F85: scf | G85: 1044 | H85: MMBTU/ 1 E+06 scf | I85: 29232
B86: 9-1099 | C86: Unit 6 CT | D86: Gas | E86: 25000000 | F86: scf | G86: 1044 | H86: MMBTU/ 1 E+06 scf | I86: 26100
B87: 9-1100 | C87: Unit 7 CT | D87: Gas | E87: 24000000 | F87: scf | G87: 1044 | H87: MMBTU/ 1 E+06 scf | I87: 25056
B88: 9-1101 | C88: Unit 8 CT | D88: Gas | E88: 19000000 | F88: scf | G88: 1044 | H88: MMBTU/ 1 E+06 scf | I88: 19836
H89: Natural Gas Total | I89: =SUM(I81:I88) -> 172260
F91: Natural Gas Total | I91: =I89 -> 172260
B97: ELECTRIC POWER SECTOR
B98: CO2 EMISSION SUMMARY: NON-RGGI ALL UNITS | E98: 2006
C100: Consumption | D100: Emission Factor | E100: Combustion | F100: Emissions | G100: Emissions | H100: Emissions | I100: Emissions | J100: Emissions
B101: Fuel Type | C101: (Billion Btu) | D101: (lbs C/Million Btu) | E101: Efficiency (%) | F101: (short tons carbon) | G101: (short tons CO2 ) | H101: (metric tons CO2 ) | I101: (MMTCO2 E ) | J101: (MMTCE )
B102: Coal | C102: 0 | D102: 55.80081818 | E102: 1 | F102: =C102*1000*D102*E102/2000 -> 0 | G102: =F102*(44/12) -> 0 | H102: =G102*0.9072 -> 0 | I102: =H102/1000000 -> 0 | J102: =I102*(12/44) -> 0
B103: Distillate Fuel | C103: =I66/1000 -> 556.600826 | D103: 43.94273128 | E103: 1 | F103: 12229.28026 | G103: 44840.6943 | H103: 40679.47787 | I103: 0.04067947787 | J103: 0.01109440305
B104: Residual Fuel | C104: =I77/1000 -> 42.12205346 | D104: 47.33480176 | E104: 1 | F104: 996.9195251 | G104: 3655.371592 | H104: 3316.153108 | I104: 0.003316153108 | J104: 0.0009044053932
B105: Natural Gas | C105: =I91/1000 -> 172.26 | D105: 31.8722467 | E105: 1 | F105: 2745.156608 | G105: 10065.57423 | H105: 9131.488941 | I105: 0.009131488941 | J105: 0.002490406075
B106: Total | G106: =SUM(G102:G105) -> 58561.64012 | H106: 53127.11991 | I106: 0.05312711991
B109: ELECTRIC POWER SECTOR
B110: CH4 EMISSION SUMMARY: NON-RGGI ALL UNITS | E110: 2006
C112: Consumption | D112: Emission Factor | E112: Emissions | F112: GWP | G112: Emissions | I112: Global Warming Potential
B113: Fuel Type | C113: (Billion Btu) | D113: (metric tons CH4 /BBtu) | E113: (metric tons CH4) | G113: (MMTCO2E)
B114: Coal | C114: 0 | D114: 0.00100230306 | E114: =C114*D114 -> 0 | F114: =$J$115 -> 28 | G114: =E114*F114/1000000 -> 0 | I114: CO2_GWP= | J114: ='Summ GHG Rpt Expanded'!G4 -> 1
B115: Distillate Fuel | C115: =C103 -> 556.600826 | D115: 0.00300690918 | E115: 1.673648133 | F115: 28 | G115: 4.686214773e-05 | I115: CH4_GWP = | J115: ='Summ GHG Rpt Expanded'!G5 -> 28
B116: Residual Fuel | C116: 42.12205346 | D116: 0.00300690918 | E116: 0.1266571892 | F116: 28 | G116: 3.546401298e-06 | I116: N2O_GWP= | J116: ='Summ GHG Rpt Expanded'!G6 -> 265
B117: Natural Gas | C117: 172.26 | D117: 0.0009495502674 | E117: 0.1635695291 | F117: 28 | G117: 4.579946814e-06 | I117: SF6_GWP = | J117: ='Summ GHG Rpt Expanded'!G7 -> 23500
F118: Total | G118: =SUM(G114:G117) -> 5.498849584e-05 | I118: PFCs_GWP= | J118: ='Summ GHG Rpt Expanded'!G8 -> 11100
B121: ELECTRIC POWER SECTOR
B122: N2O EMISSION SUMMARY: NON-RGGI ALL UNITS | E122: 2006
B124: Fuel Type | C124: Consumption | D124: Emission Factor | E124: Emissions | F124: GWP | G124: Emissions
C125: (Billion Btu) | D125: (metric tons N2O/BBtu) | E125: (metric tons N2O) | G125: (MMTCO2E)
B126: Coal | C126: 0 | D126: 0.00150345459 | E126: =C126*D126 -> 0 | F126: =$J$116 -> 265 | G126: =E126*F126/1000000 -> 0
B127: Distillate Fuel | C127: =C115 -> 556.600826 | D127: 0.000601381836 | E127: 0.3347296266 | F127: 265 | G127: 8.870335106e-05
B128: Residual Fuel | C128: 42.12205346 | D128: 0.000601381836 | E128: 0.02533143784 | F128: 265 | G128: 6.712831029e-06
B129: Natural Gas | C129: 172.26 | D129: 9.495502674e-05 | E129: 0.01635695291 | F129: 265 | G129: 4.33459252e-06
B130: Total | G130: =SUM(G126:G129) -> 9.975077461e-05
B133: ELECTRIC POWER SECTOR
B134: GHG EMISSION SUMMARY: NON-RGGI ALL UNITS | E134: 2006
B136: Fuel Type | D136: Emissions | E136: Emissions | F136: Emissions | G136: Emissions
C137: Consumption | D137: CO2 | E137: N2O | F137: CH4 | G137: Total
C138: (Billion Btu) | D138: (MMTCO2E) | E138: (MMTCO2E) | F138: (MMTCO2E) | G138: (MMTCO2E)
B139: Coal | C139: 0 | D139: 0 | E139: =G126 -> 0 | F139: =G114 -> 0 | G139: =D139+E139+F139 -> 0
B140: Distillate Fuel | C140: =C127 -> 556.600826 | D140: =I103 -> 0.04067947787 | E140: 8.870335106e-05 | F140: 4.686214773e-05 | G140: 0.04081504336
B141: Residual Fuel | C141: 42.12205346 | D141: 0.003316153108 | E141: 6.712831029e-06 | F141: 3.546401298e-06 | G141: 0.003326412341
B142: Natural Gas | C142: 172.26 | D142: 0.009131488941 | E142: 4.33459252e-06 | F142: 4.579946814e-06 | G142: 0.00914040348
B143: Total | D143: =SUM(D139:D142) -> 0.05312711991 | E143: 9.975077461e-05 | F143: 5.498849584e-05 | G143: =SUM(D143:F143) -> 0.05328185919

Sheet Imported Electricity
A1: Projected Electric Consumption (Imported Electricity) Emissions for Maryland
E3: Fuel Consumption For Electricity Generation
C5: 1991 | D5: 1992 | E5: 1993 | F5: 1994 | G5: 1995 | H5: 1996 | I5: 1997 | J5: 1998 | K5: 1999 | L5: 2000 | M5: 2001 | N5: 2002 | O5: 2003 | P5: 2004 | Q5: 2005 | R5: 2006 | S5: 2007 | T5: 2008
B7: Coal (Short Tons) | L7: 11420038 | M7: 11135140 | N7: 11364983 | O7: 11852129 | P7: 11608446 | Q7: 11745248.2 | R7: 11687602.6 | S7: 11937518 | T7: 11098391
B8: Petroleum (Barrels) | L8: 4143417 | M8: 5514960 | N8: 4108104 | O8: 6164252 | P8: 5672819.25 | Q8: 6574936.74 | R8: 1050222.03 | S8: 1790746 | T8: 791418
B9: Natural Gas (Mcf) | L9: 29023288 | M9: 17985486 | N9: 22627073 | O9: 11162538 | P9: 9994238.04 | Q9: 18619350 | R9: 16620796.5 | S9: 21481869 | T9: 17563616
B10: Other Gases (MMBTU) | L10: 758 | M10: 7537 | N10: 9278 | O10: 6717 | P10: 5127.03 | Q10: 4266.24 | R10: 4141.31 | S10: 4703.42 | T10: 4194.02
C14: MD In-State Gross Generation (MWh)
C16: 1991 | D16: 1992 | E16: 1993 | F16: 1994 | G16: 1995 | H16: 1996 | I16: 1997 | J16: 1998 | K16: 1999 | L16: 2000 | M16: 2001 | N16: 2002 | O16: 2003 | P16: 2004 | Q16: 2005 | R16: 2006 | S16: 2007 | T16: 2008
B17: Coal | C17: 22835671 | D17: 23850470 | E17: 25126979 | F17: 25624758 | G17: 27595256 | H17: 27992005 | I17: 27620925 | J17: 29294727 | K17: 29687655 | L17: 29451065 | M17: 28379409 | N17: 28712053 | O17: 29939086 | P17: 29195458 | Q17: 29302792 | R17: 29408022 | S17: 29699186 | T17: 27218239
B18: Petroleum | C18: 4078506 | D18: 2749511 | E18: 4164790 | F18: 4275226 | G18: 1479469 | H18: 1472027 | I18: 1565010 | J18: 3454350 | K18: 4290788 | L18: 2388595 | M18: 3021639 | N18: 2282432 | O18: 3572183 | P18: 3296842 | Q18: 3805569 | R18: 580726 | S18: 984831 | T18: 405840
B19: Natural Gas | C19: 1517463 | D19: 1077542 | E19: 772304 | F19: 1172042 | G19: 1548884 | H19: 987627 | I19: 1412585 | J19: 1990596 | K19: 2125193 | L19: 2852876 | M19: 1760812 | N19: 2214431 | O19: 1195642 | P19: 1183301 | Q19: 1886986 | R19: 1770206 | S19: 2240927 | T19: 1848147
B20: Other Gases | C20: 478704 | D20: 506572 | E20: 475788 | F20: 501762 | G20: 685721 | H20: 539335 | I20: 564036 | J20: 82316 | K20: 59891 | L20: 74572 | M20: 439980 | N20: 504513 | O20: 325355 | P20: 411565 | Q20: 342466 | R20: 332444 | S20: 377560 | T20: 337823
B21: Nuclear | C21: 9036100 | D21: 10663950 | E21: 12300816 | F21: 11235408 | G21: 12937971 | H21: 12092768 | I21: 13212967 | J21: 13330598 | K21: 13312335 | L21: 13827243 | M21: 13656267 | N21: 12128005 | O21: 13690713 | P21: 14580260 | Q21: 14703221 | R21: 13830411 | S21: 14353192 | T21: 14678695
B22: Hydroelectric Conventional | C22: 1407287 | D22: 1824659 | E22: 1658271 | F22: 2009536 | G22: 1442006 | H22: 2457463 | I22: 1588375 | J22: 1739737 | K22: 1424197 | L22: 1732619 | M22: 1183518 | N22: 1660989 | O22: 2646984 | P22: 2507521 | Q22: 1703639 | R22: 2104275 | S22: 1652216 | T22: 1974078
B23: Wood and Wood Derived Fuels | C23: 160602 | D23: 174801 | E23: 175122 | F23: 168822 | G23: 175144 | H23: 167554 | I23: 155906 | J23: 155647 | K23: 171088 | L23: 179580 | M23: 11939 | N23: 182904 | O23: 225240 | P23: 192384 | Q23: 205985 | R23: 218066 | S23: 203097 | T23: 197704
B24: Other Biomass | C24: 336551 | D24: 329854 | E24: 303818 | F24: 352064 | G24: 501192 | H24: 565838 | I24: 587592 | J24: 605046 | K24: 614474 | L24: 638830 | M24: 361076 | N24: 338727 | O24: 370811 | P24: 396824 | Q24: 417380 | R24: 408095 | S24: 400364 | T24: 414781
B25: Other | M25: 247700 | N25: 255034 | O25: 278224 | P25: 288616 | Q25: 293561 | R25: 304635 | S25: 286550 | T25: 285645
B26: Total | C26: 39850884 | D26: 41177359 | E26: 44977888 | F26: 45339618 | G26: 46365643 | H26: 46274617 | I26: 46707396 | J26: 50653017 | K26: 51685621 | L26: 51145380 | M26: 49062340 | N26: 48279088 | O26: 52244237 | P26: 52052770 | Q26: 52661600 | R26: 48956880 | S26: 50197924 | T26: 47360953
C28: MD -Electricity Losses (MWh) (Transmission and Distribution) Assume 6.25 %
C30: 1991 | D30: 1992 | E30: 1993 | F30: 1994 | G30: 1995 | H30: 1996 | I30: 1997 | J30: 1998 | K30: 1999 | L30: 2000 | M30: 2001 | N30: 2002 | O30: 2003 | P30: 2004 | Q30: 2005 | R30: 2006 | S30: 2007 | T30: 2008
B31: T &D Losses | C31: =C26*6.25% -> 2490680.25 | D31: 2573584.938 | E31: 2811118 | F31: 2833726.125 | G31: 2897852.688 | H31: 2892163.562 | I31: 2919212.25 | J31: 3165813.562 | K31: 3230351.312 | L31: 3196586.25 | M31: 3066396.25 | N31: 3017443 | O31: 3265264.812 | P31: 3253298.125 | Q31: 3291350 | R31: 3059805 | S31: 3137370.25 | T31: 2960059.562
C34: Net MD In-State Electricity Generated (MWh) = MD Gross In-State Electricity Generated - T &D Losses
C37: 1991 | D37: 1992 | E37: 1993 | F37: 1994 | G37: 1995 | H37: 1996 | I37: 1997 | J37: 1998 | K37: 1999 | L37: 2000 | M37: 2001 | N37: 2002 | O37: 2003 | P37: 2004 | Q37: 2005 | R37: 2006 | S37: 2007 | T37: 2008
B38: Net In -State Generated Electricity | C38: =C26-C31 -> 37360203.75 | D38: 38603774.06 | E38: 42166770 | F38: 42505891.88 | G38: 43467790.31 | H38: 43382453.44 | I38: 43788183.75 | J38: 47487203.44 | K38: 48455269.69 | L38: 47948793.75 | M38: 45995943.75 | N38: 45261645 | O38: 48978972.19 | P38: 48799471.88 | Q38: 49370250 | R38: 45897075 | S38: 47060553.75 | T38: 44400893.44
E41: Electricity Consumption (MWh) (MD Retail Sales)
C43: 1991 | D43: 1992 | E43: 1993 | F43: 1994 | G43: 1995 | H43: 1996 | I43: 1997 | J43: 1998 | K43: 1999 | L43: 2000 | M43: 2001 | N43: 2002 | O43: 2003 | P43: 2004 | Q43: 2005 | R43: 2006 | S43: 2007 | T43: 2008
B44: Residential | C44: 20295448 | D44: 19762032 | E44: 21546122 | F44: 21666119 | G44: 22233807 | H44: 22985772 | I44: 21936662 | J44: 22406855 | K44: 23342423 | L44: 23949315 | M44: 24294096 | N44: 25489053 | O44: 26671274 | P44: 27951978 | Q44: 28439645 | R44: 26905386 | S44: 28194802 | T44: 27144255
B45: Commercial | C45: 10667414 | D45: 10769686 | E45: 11316964 | F45: 13253588 | G45: 23096405 | H45: 23126094 | I45: 23418552 | J45: 24284167 | K45: 24988489 | L45: 25804298 | M45: 26243614 | N45: 21044289 | O45: 16950347 | P45: 17264135 | Q45: 17931771 | R45: 29729030 | S45: 30691159 | T45: 30002993
B46: Industrial | C46: 19448114 | D46: 19768026 | E46: 20200630 | F46: 19037490 | G46: 10057219 | H46: 10098447 | I46: 10127852 | J46: 10343675 | K46: 9936115 | L46: 10066312 | M46: 10176724 | N46: 20874507 | O46: 27175526 | P46: 21194572 | Q46: 21516638 | R46: 6057030 | S46: 5980358 | T46: 5649943
B47: Transportation | C47: 0 | D47: 0 | E47: 0 | F47: 0 | G47: 0 | H47: 0 | I47: 0 | J47: 0 | K47: 0 | L47: 0 | M47: 0 | N47: 0 | O47: 461436 | P47: 481015 | Q47: 477331 | R47: 481697 | S47: 524341 | T47: 528586
B48: Others | C48: 696831 | D48: 689042 | E48: 808686 | F48: 794428 | G48: 770615 | H48: 787207 | I48: 781420 | J48: 798935 | K48: 819198 | L48: 857876 | M48: 925586 | N48: 972057 | O48: 0 | P48: 0 | Q48: 0 | R48: 0 | S48: 0 | T48: 0
B49: Total Electric Consumption (Mwh) NET | C49: 51107809 | D49: 50988788 | E49: 53872404 | F49: 54751623 | G49: 56158046 | H49: 56997520 | I49: 56264486 | J49: 57833638 | K49: 59086225 | L49: =SUM(L44:L48) -> 60677801 | M49: 61640020 | N49: 68379906 | O49: 71258583 | P49: 66891700 | Q49: 68365385 | R49: 63173143 | S49: 65390660 | T49: 63325777
B50: Total Electric Consumption (Mwh) GROSS | C50: =C49*1.0625 -> 54302047.06 | D50: 54175587.25 | E50: 57239429.25 | F50: 58173599.44 | G50: 59667923.88 | H50: 60559865 | I50: 59781016.38 | J50: 61448240.38 | K50: 62779114.06 | L50: 64470163.56 | M50: 65492521.25 | N50: 72653650.12 | O50: 75712244.44 | P50: 71072431.25 | Q50: 72638221.56 | R50: 67121464.44 | S50: 69477576.25 | T50: 67283638.06
E54: Electricity Imported (MWh) = MD Retail Sales - Net In-state Generation
C56: 1991 | D56: 1992 | E56: 1993 | F56: 1994 | G56: 1995 | H56: 1996 | I56: 1997 | J56: 1998 | K56: 1999 | L56: 2000 | M56: 2001 | N56: 2002 | O56: 2003 | P56: 2004 | Q56: 2005 | R56: 2006 | S56: 2007 | T56: 2008
B57: Gross Imported Electricity to Meet MD Demand (MWh) | C57: =C50-C26 -> 14451163.06 | D57: 12998228.25 | E57: 12261541.25 | F57: 12833981.44 | G57: 13302280.88 | H57: 14285248 | I57: 13073620.38 | J57: 10795223.38 | K57: 11093493.06 | L57: 13324783.56 | M57: 16430181.25 | N57: 24374562.12 | O57: 23468007.44 | P57: 19019661.25 | Q57: 19976621.56 | R57: 18164584.44 | S57: 19279652.25 | T57: 19922685.06
E60: GHG Associated with Imported Electricity
B62: PJM Average CO2 Emission Rate (lbs/MWh) | I62: CO2 Emission
B63: (CO2 Emission Rate of Marginal Units) | I63: (short tons)
B64: 1252 | I64: =(B64*R57)/2000 -> 11371029.86
B65: =K74*2204.623/K70 -> 1253.14204
C66: Coal | D66: Nuclear | E66: Natural Gas | F66: Oil | G66: Hydroelectric | H66: Solid Waste | I66: Wind | J66: Captured CH4 | K66: Total
B68: PJM Electricity Generation Fuel Mix 2006 | C68: 57.47896891 | D68: 34.97547049 | E68: 5.141604931 | F68: 0.3085474078 | G68: 1.120399257 | H68: 0.5694882845 | I68: 0.1158915481 | J68: 0.1520440389 | K68: =SUM(C68:J68) -> 99.86241487
B70: Maryland 2006 Import Share (MWh) | C70: =(C68/100)*R57 -> 10440815.84 | D70: =(D68/100)*R57 -> 6353148.87 | E70: =(E68/100)*R57 -> 933951.1692 | F70: =(F68/100)*R57 -> 56046.35443 | G70: =(G68/100)*R57 -> 203515.8691 | H70: =(H68/100)*R57 -> 103445.1803 | I70: =(I68/100)*R57 -> 21051.21812 | J70: =(J68/100)*R57 -> 27618.16782 | K70: =SUM(C70:J70) -> 18139592.67
B72: Imported Electric CO2 Emissions Factors (tons/MWh) | C72: 0.9271431489 | E72: 0.5686625234 | F72: 0.8859953183 | H72: 0.4481037753 | J72: 0.129698054
B74: Imported Electric CO2 Emissions (metric tons) | C74: =C70*C72 -> 9680130.876 | E74: =E70*E72 -> 531103.0286 | F74: 49656.80763 | H74: =H70*H72 -> 46354.17583 | J74: =J70*J72 -> 3582.022623 | K74: =SUM(C74:J74) -> 10310826.91
B76: Imported Electric CO2 Emissions (MMTCO2) | C76: =C74/1000000 -> 9.680130876 | E76: =E74/1000000 -> 0.5311030286 | F76: 0.04965680763 | H76: =H74/1000000 -> 0.04635417583 | J76: =J74/1000000 -> 0.003582022623 | K76: 10.31082691
E81: Imported Electricity Emissions (MMTCO2E)
C83: 1991 | D83: 1992 | E83: 1993 | F83: 1994 | G83: 1995 | H83: 1996 | I83: 1997 | J83: 1998 | K83: 1999 | L83: 2000 | M83: 2001 | N83: 2002 | O83: 2003 | P83: 2004 | Q83: 2005 | R83: 2006 | S83: 2007 | T83: 2008
B84: Gross Imported Electricity to Meet MD Demand (MWh) | C84: =(C57*$B$64/2204.62262)/1000000 -> 8.20678151 | D84: 7.381663248 | E84: 6.963300433 | F84: 7.288387869 | G84: 7.554334018 | H84: 8.112558736 | I84: 7.424478258 | J84: 6.130581961 | K84: 6.299968615 | L84: 7.567113241 | M84: 9.330661283 | N84: 13.84225649 | O84: 13.32742622 | P84: 10.80122088 | Q84: 11.34467639 | R84: =K76 -> 10.31082691 | S84: =(S57*$B$64/2204.62262)/1000000 -> 10.94886916 | T84: 11.31404598
R85: =+R57*B64/2204/1000000 -> 10.31853889

Sheet Transportation
A1: Transportation Consumption and GHG Emissions
B3: Activity Data (Consumption)
B4: State Energy Data 2006 | C4: (Barrels) | E4: (Gallons) | G4: (Billion Btu)
B5: Aviation Gasoline | C5: 107.81011 | E5: 4526231.382 | G5: =544009.905172277/1000 -> 544.0099052
B6: Distillate Fuel Oil | C6: 14834.5936 | E6: 623052931.2 | G6: 86411.50772
B7: Jet Fuel Naphtha | C7: 0 | E7: 0 | G7: 0
B8: Jet Fuel Kerosene Type | C8: 4144.02143 | E8: 23496601.51 | G8: 23496.60151
B9: Liquidfied Petroleum Gases | C9: 43.62338 | E9: =C9*42*1000 -> 1832181.96 | G9: 157.26228
B10: Lubricant | C10: 265.99846 | E10: 11171935.32 | G10: 1613.28066
B11: Motor Gasoline | C11: 64604.70099 | E11: 2721404088 | G11: =E11*C47/1000000000 -> 338101.8011
B12: Ethanol | C12: 3892.61552 | E12: 163489851.8 | G12: 13775.96633
B13: Natural Gases - (Million Cubic Feet) | C13: 3236.139 | E13: =C13 -> 3236.139 | G13: 3348.01233
B14: Residual Fuel Oil | C14: 1221.47559 | E14: =C14*42*1000 -> 51301974.78 | G14: 7679.41703
B17: Gasoline Fuel Usage
B18: Source | C18: Year | D18: Subsource | F18: Vehicle / Fuel Type | I18: Amount (gal) | K18: Percentage | M18: Percentage of NR Gasoline
B19: FHWA Data MF-24 | C19: 2006 | D19: Farm Equipment | F19: Gasoline Tractor | I19: 11991000 | K19: =I19/$I$24 -> 0.004406181373 | M19: =I19/SUM($I$19:$I$23) -> 0.1546623552 | U19: 9702000
B20: FHWA Data MF-24 | C20: 2006 | D20: Construction | F20: Gasoline Construction | I20: 10970000 | K20: 0.004031007394 | M20: 0.1414932897 | U20: 8297000
B21: FHWA Data MF-24 | C21: 2006 | D21: Non-Highway Industrial | F21: Gasoline HD Utility | I21: 19725000 | K21: 0.007248096704 | M21: 0.2544170591 | U21: 24818000
B22: FHWA Data MF-24 | C22: 2006 | D22: Non-Highway Industrial | F22: Gasoline Small Utility | I22: 9811178.469 | K22: 0.003605189877 | M22: 0.126546574 | U22: 16130243.47
B23: FHWA Data MF-24 | C23: 2006 | D23: Boat (Marine Gasoline) | F23: Gasoline | I23: 25033000 | K23: 0.009198560445 | M23: 0.322880722 | U23: 24070000
B24: MD Comptroller | C24: 2006 | D24: Motor Gasoline (Total Sold) | F24: All | I24: 2721404088 | K24: 1
B25: MD Comptroller | C25: 2006 | D25: Motor Gasoline (On-Road Mobile) | F25: All | I25: =I24-SUM(I19:I23) -> 2643873910 | K25: 0.9715109642
B26: MD Comptroller | C26: 2006 | D26: Motor Gasoline (Non-Road Mobile) | F26: All | I26: =I24-I25 -> 77530178.47 | K26: 0.02848903579 | M26: =SUM(M19:M23) -> 1
I28: =I21+I22 -> 29536178.47
B29: Diesel Fuel Usage
B31: Source | C31: Year | D31: Subsource | F31: Vehicle / Fuel Type | I31: Amount (gal) | K31: Percentage | M31: Percentage of NR Diesel | S31: Global Warming Potential
B32: EIA Adjusted Sales Data | C32: 2006 | D32: Farm Equipment | F32: Diesel Tractor | I32: 16854000 | K32: =I32/$I$37 -> 0.02705067123 | M32: =I32/SUM($I$32:$I$36) -> 0.09047129334
B33: FHWA Data MF-24 (Allocated from Gasoline Construction State Percent) | C33: 2006 | D33: Construction | F33: Diesel Construction | I33: 118516224.1 | K33: 0.1902185484 | M33: 0.6361882093 | S33: CO2_GWP= | T33: ='Summ GHG Rpt Expanded'!G4 -> 1
B34: EIA State Energy Data | C34: 2006 | D34: Non-Highway Industrial | F34: Diesel HD Utility | I34: 11441263.23 | K34: 0.01836322832 | M34: 0.06141603667 | S34: CH4_GWP = | T34: ='Summ GHG Rpt Expanded'!G5 -> 28
B35: MDE Survey | C35: 2006 | D35: Locomotive | F35: Diesel Fuel | I35: 23342571.95 | K35: 0.03746482968 | M35: 0.1253015708 | S35: N2O_GWP= | T35: ='Summ GHG Rpt Expanded'!G6 -> 265
B36: EIA State Energy Data | C36: 2006 | D36: Boat (Marine) | F36: Distillate Fuel Oil** | I36: 16137076.55 | K36: 0.02590000904 | M36: 0.08662288988 | S36: SF6_GWP = | T36: ='Summ GHG Rpt Expanded'!G7 -> 23500
B37: EIA State Energy Data | C37: 2006 | D37: Distillate Fuel Oil | F37: All | I37: 623052931.2 | K37: 1 | S37: PFCs_GWP= | T37: ='Summ GHG Rpt Expanded'!G8 -> 11100
B38: Calculated | C38: 2006 | D38: Motor Diesel (On-Road) | F38: All | I38: =I37-SUM(I32:I36) -> 436761795.3 | K38: 0.7010027133
B39: Calculated | C39: 2006 | D39: Motor Diesel (Non-Road) | F39: All | I39: =I37-I38 -> 186291135.9 | K39: 0.2989972867 | M39: =SUM(M32:M36) -> 1
C42: 2006 | D42: Diesel (gallons) | F42: Total | I42: =SUM(I32:I35) -> 170154059.3
C43: 2006 | D43: Locomotive | F43: Residual Fuel Oil | I43: 0
B44: EIA State Energy Data | C44: 2006 | D44: Boat (Marine) | F44: Residual Fuel Oil** | I44: 51301974.75
D45: Residual Fuel (gallons) | F45: Total | I45: =SUM(I43:I44) -> 51301974.75
B46: CONSTANTS
B47: Gasoline | C47: 124238 | D47: Btu/Gallon
B48: Diesel | C48: 138690 | D48: Btu/Gallon
B50: Emissions Data (MMTCO2e)
B51: Transportation Sector Emissions: Non-Road Mobile Sources 2006
M52: CO2 Emissions | T52: N2O Emissions | AA52: CH4 Emissions | AG52: CH4 &
C53: Consumption | E53: Consumption | G53: Emission Factor | I53: Combustion | K53: Emissions | M53: Emissions | O53: Emissions | AG53: N2O
B54: Fuel Type | C54: (gallon) | E54: (Billion Btu) | G54: (lbs C/Million Btu) | I54: Efficiency (%) | K54: (short tons carbon) | M54: (MMTCE) | O54: (MMTCO2E) | Q54: Energy Content kg/MBtu | R54: Density kg/gallon | S54: N2O EF g/kg fuel | T54: N2O EM Gigagrams | V54: N2O MTCE | X54: N2O MTCO2E | Z54: CH4 EF g/kg fuel | AA54: CH4 EM Gigagrams | AC54: CH4 MTCE | AE54: CH4 MTCO2E | AG54: TOTAL MTCO2E
B55: Aviation Gasoline | C55: =E5 -> 4526231.382 | E55: =G5 -> 544.0099052 | F55: x | G55: 41.56387665 | H55: x | I55: 1 | J55: = | K55: =E55*1000*G55*I55/2000 -> 11305.5803 | L55: = | M55: =K55*0.90718/1000000 -> 0.01025619633 | N55: = | O55: =M55*44/12 -> 0.03760605323 | Q55: 22.258 | S55: 0.04 | T55: =E55*1000*Q55*S55/1000000000 -> 0.0004843428988 | U55: = | V55: =T55*$T$35*12/44*1000 -> 35.00478223 | W55: = | X55: =V55*44/12 -> 128.3508682 | Z55: 2.64 | AA55: =E55*1000*Q55*Z55/1000000000 -> 0.03196663132 | AB55: = | AC55: =AA55*$T$34*12/44*1000 -> 244.108821 | AD55: = | AE55: =AC55*44/12 -> 895.0656769 | AF55: x | AG55: =X55+AE55 -> 1023.416545
B56: Distillate Fuel - Farm | C56: =I32 -> 16854000 | E56: =C56*$C$48/1000000000 -> 2337.48126 | F56: x | G56: 43.94273128 | H56: x | I56: 1 | J56: = | K56: 51357.65544 | L56: = | M56: 0.04659063786 | N56: = | O56: 0.1708323388 | R56: 3.192 | S56: 0.08 | T56: =C56*R56*S56/1000000000 -> 0.00430383744 | U56: = | V56: 311.0500695 | W56: = | X56: 1140.516922 | Z56: 0.45 | AA56: =C56*R56*Z56/1000000000 -> 0.0242090856 | AB56: = | AC56: 184.8693809 | AD56: = | AE56: 677.8543968 | AG56: 1818.371318
B57: Distillate Fuel - Construction | C57: 118516224.1 | E57: 16437.01513 | F57: x | G57: 43.94273128 | H57: x | I57: 1 | J57: = | K57: 361143.6694 | L57: = | M57: 0.327622314 | N57: = | O57: 1.201281818 | R57: 3.192 | S57: 0.08 | T57: 0.030264303 | U57: = | V57: 2187.283717 | W57: = | X57: 8020.040295 | Z57: 0.45 | AA57: 0.1702367044 | AB57: = | AC57: 1299.989379 | AD57: = | AE57: 4766.627722 | AG57: 12786.66802
B58: Distillate Fuel - Ind HD Diesel | C58: 11441263.23 | E58: 1586.788798 | F58: x | G58: 43.94273128 | H58: x | I58: 1 | J58: = | K58: 34863.91686 | L58: = | M58: 0.0316278481 | N58: = | O58: 0.1159687764 | R58: 3.192 | S58: 0.08 | T58: 0.002921640979 | U58: = | V58: 211.1549617 | W58: = | X58: 774.2348594 | Z58: 0.18 | AA58: 0.006573692203 | AB58: = | AC58: 50.19910409 | AD58: = | AE58: 184.0633817 | AG58: 958.2982411
B59: Distillate Fuel - Locomotive | C59: 23342571.95 | E59: 3237.381304 | F59: x | G59: 43.94273128 | H59: x | I59: 1 | J59: = | K59: 71129.68834 | L59: = | M59: 0.06452743067 | N59: = | O59: 0.2366005791 | R59: 3.192 | S59: 0.08 | T59: 0.005960759173 | U59: = | V59: 430.8003221 | W59: = | X59: 1579.601181 | Z59: 0.25 | AA59: 0.01862737242 | AB59: = | AC59: 142.2453894 | AD59: = | AE59: 521.5664277 | AG59: 2101.167609
B60: Distillate Fuel - Marine | C60: 16137076.55 | E60: 2238.051147 | F60: x | G60: 43.94273128 | H60: x | I60: 1 | J60: = | K60: 49173.04006 | L60: = | M60: 0.04460879848 | N60: = | O60: 0.1635655944 | R60: 3.192 | S60: 0.08 | T60: 0.004120763868 | U60: = | V60: 297.8188432 | W60: = | X60: 1092.002425 | Z60: 0.23 | AA60: 0.01184719612 | AB60: = | AC60: 90.46949764 | AD60: = | AE60: 331.7214913 | AG60: 1423.723916
B61: Jet Fuel, Kerosene | C61: =C8 -> 4144.02143 | E61: =G8 -> 23496.60151 | F61: x | G61: 42.62521903 | H61: x | I61: 1 | J61: = | K61: 500773.8929 | L61: = | M61: 0.4542920602 | N61: = | O61: 1.665737554 | Q61: 22.24 | S61: 0.1 | T61: =E61*1000*Q61*S61/1000000000 -> 0.05225644176 | U61: = | V61: 3776.715563 | W61: = | X61: 13847.95707 | Z61: 0.087 | AA61: =E61*1000*Q61*Z61/1000000000 -> 0.04546310433 | AB61: = | AC61: 347.1727967 | AD61: = | AE61: 1272.966921 | AF61: x | AG61: 15120.92399
B62: Jet Fuel, Naphtha | C62: 0 | E62: 0 | F62: x | G62: 43.5 | H62: x | I62: 1 | J62: = | K62: 0 | L62: = | M62: 0 | N62: = | O62: 0 | S62: 0.1 | Z62: 0.087
B63: LPG | C63: =E9 -> 1832181.96 | E63: =G9 -> 157.26228 | F63: x | G63: 37.90593973 | H63: x | I63: 1 | J63: = | K63: 2980.587253 | L63: = | M63: 0.002703929145 | N63: = | O63: 0.009914406863
B64: Motor Gasoline - Farm | C64: =I19 -> 11991000 | E64: =K26*G11 -> 9632.194313 | F64: x | G64: 42.62265 | H64: x | I64: 1 | J64: = | K64: 205274.8235 | L64: = | M64: 0.1862212143 | N64: = | O64: 0.6828111193 | R64: 2.8009 | S64: 0.08 | T64: =C64*R64*S64/1000000000 -> 0.002686847352 | U64: = | V64: =T64*$T$35*12/44*1000 -> 194.1857859 | W64: = | X64: =V64*44/12 -> 712.0145483 | Z64: 0.45 | AA64: =C64*R64*Z64/1000000000 -> 0.01511351636 | AB64: = | AC64: =AA64*$T$34*12/44*1000 -> 115.4123067 | AD64: = | AE64: =AC64*44/12 -> 423.1784579 | AG64: =X64+AE64 -> 1135.193006
B65: Motor Gasoline - Construction | C65: 10970000 | E65: =C65*C47/1000000000 -> 1362.89086 | F65: x | G65: 42.62265 | H65: x | I65: 1 | J65: = | K65: 29045.01006 | L65: = | M65: 0.02634905222 | N65: = | O65: 0.09661319149 | R65: 2.8009 | S65: 0.08 | T65: 0.00245806984 | U65: = | V65: 177.6514112 | W65: = | X65: 651.3885076 | Z65: 0.45 | AA65: 0.01382664285 | AB65: = | AC65: 105.5852727 | AD65: = | AE65: 387.1459998 | AG65: 1038.534507
B66: Motor Gasoline - Ind HD Utility | C66: 19725000 | E66: =C66*C47/1000000000 -> 2450.59455 | F66: x | G66: 42.62265 | H66: x | I66: 1 | J66: = | K66: 52225.4169 | L66: = | M66: 0.0473778537 | N66: = | O66: 0.1737187969 | R66: 2.8009 | S66: 0.08 | T66: 0.0044198202 | U66: = | V66: 319.4324599 | W66: = | X66: 1171.252353 | Z66: 0.18 | AA66: 0.00994459545 | AB66: = | AC66: 75.94054707 | AD66: = | AE66: 278.4486726 | AG66: 1449.701026
B67: Motor Gasoline - Ind Small Utility | C67: 9811178.469 | E67: =C67*C47/1000000000 -> 1218.921191 | F67: x | G67: 42.62265 | H67: x | I67: 1 | J67: = | K67: 25976.82564 | L67: = | M67: 0.02356565669 | N67: = | O67: 0.08640740785 | R67: 2.8009 | S67: 0.08 | T67: 0.002198410382 | U67: = | V67: 158.885114 | W67: = | X67: 582.5787512 | Z67: 0.18 | AA67: 0.004946423359 | AB67: = | AC67: 37.77268747 | AD67: = | AE67: 138.4998541 | AG67: 721.0786052
B68: Motor Gasoline - Marine | C68: 25033000 | E68: =C68*C47/1000000000 -> 3110.049854 | F68: x | G68: 42.62265 | H68: x | I68: 1 | J68: = | K68: 66279.2832 | L68: = | M68: 0.06012724014 | N68: = | O68: 0.2204665472 | R68: 2.8009 | S68: 0.08 | T68: 0.005609194376 | U68: = | V68: 405.3917754 | W68: = | X68: 1486.43651 | Z68: 0.23 | AA68: 0.01612643383 | AB68: = | AC68: 123.1473129 | AD68: = | AE68: 451.5401473 | AG68: 1937.976657
B69: Residual Fuel | C69: =E14 -> 51301974.78 | E69: =G14 -> 7679.41703 | F69: x | G69: 47.33480176 | H69: x | I69: 1 | J69: = | K69: 181751.8414 | L69: = | M69: 0.1648816355 | N69: = | O69: 0.6045659967 | R69: 3.575 | S69: 0.08 | T69: 0.01467236479 | U69: = | V69: 1060.411819 | W69: = | X69: 3888.176669 | Z69: 0.23 | AA69: 0.04218304876 | AB69: = | AC69: 322.1250996 | AD69: = | AE69: 1181.125365 | AG69: 5069.302034
B70: Natural Gas | C70: =E13 -> 3236.139 | E70: =G13 -> 3348.01233 | F70: x | G70: 31.8722467 | H70: x | I70: 1 | J70: = | K70: 53354.33746 | L70: = | M70: 0.04840198786 | N70: = | O70: 0.1774739555
B71: Other | F71: x | H71: x | J71: = | K71: 0 | L71: = | M71: 0 | N71: = | O71: 0
E76: Non-Energy | I76: Net combustible
C77: Consumption | E77: Consumption | I77: Consumption | K77: Emission Factor | M77: Combustion | O77: Emissions | Q77: Emissions | S77: Emissions
C78: (Billion Btu) | E78: (Billion Btu) | G78: Storage Factor (%) | I78: (Billion Btu) | K78: (lbs C/Million Btu) | M78: Efficiency (%) | O78: (short tons carbon) | Q78: (MMTCE) | S78: (MMTCO2E)
B79: Lubricants | C79: 1613.28066 | D79: - ( | E79: 1613.28066 | F79: x | G79: 0.0923937326 | H79: ) = | I79: =C79-(E79*G79) -> 1464.223638 | J79: x | K79: 44.5814978 | L79: x | M79: 1 | N79: = | O79: =I79*1000*K79*M79/2000 -> 32638.64145 | P79: = | Q79: =O79*0.90718/1000000 -> 0.02960912275 | R79: = | S79: =Q79*44/12 -> 0.1085667834
B81: International Bunker Fuels | G81: 2006
C83: Consumption | E83: Emission Factor | G83: Combustion | I83: Emissions | K83: Emissions | M83: Emissions
B84: Fuel Type | C84: (Billion Btu) | E84: (lbs C/Million Btu) | G84: Efficiency (%) | I84: (short tons carbon) | K84: (MMTCE) | M84: (MMTCO2E)
B85: Jet Fuel, Kerosene | C85: 0 | D85: x | E85: 42.62521903 | F85: x | G85: 1 | H85: = | I85: =C85*1000*E85*G85/2000 -> 0 | J85: = | K85: =I85*0.90718/1000000 -> 0 | L85: = | M85: =K85*44/12 -> 0
B86: Distillate Fuel | C86: 3.463375062 | D86: x | E86: 43.94273128 | F86: x | G86: 1 | H86: = | I86: 76.09507983 | J86: = | K86: 6.903193452e-05 | L86: = | M86: 0.0002531170932
B87: Residual Fuel | C87: 0.768886146 | D87: x | E87: 47.33480176 | F87: x | G87: 1 | H87: = | I87: 18.19753665 | J87: = | K87: 1.65084413e-05 | L87: = | M87: 6.053095142e-05
B88: Total | K88: =SUM(K85:K87) -> 8.554037582e-05 | M88: =SUM(M85:M87) -> 0.0003136480447
B91: Transportation Sector: On-Road Mobile Sources 2006
C93: VMT (Millions) | E93: CO2 | G93: CH4 | I93: N2O | K93: CO2e
B94: TOTAL | C94: 56618 | E94: 29.101 | G94: 0.047 | I94: 0.521 | K94: 29.67
B95: By Fuel Type
B96: Gasoline | C96: 52720 | E96: 23.195 | G96: 0.0462 | I96: 0.5183 | K96: 23.76
B97: Diesel | C97: 3898 | E97: 5.907 | G97: 0.0003 | I97: 0.003 | K97: 5.91
B98: By MOVES Vehicle Type
B99: Motorcycle | C99: 319 | E99: 0.12 | G99: 0.0005 | I99: 0.0004 | K99: 0.12
B100: Passenger Car | C100: 29337 | E100: 10.959 | G100: 0.0178 | I100: 0.1722 | K100: 11.15
B101: Passenger Truck | C101: 18070 | E101: 9.46 | G101: 0.0202 | I101: 0.2571 | K101: 9.74
B102: Light Commercial Truck | C102: 5833 | E102: 3.117 | G102: 0.0067 | I102: 0.0833 | K102: 3.21
B103: Intercity Bus | C103: 15 | E103: 0.027 | G103: 0 | I103: 0 | K103: 0.03
B104: Transit Bus | C104: 40 | E104: 0.052 | G104: 0 | I104: 0 | K104: 0.05
B105: School Bus | C105: 129 | E105: 0.124 | G105: 0.0002 | I105: 0.0008 | K105: 0.13
B106: Refuse Truck | C106: 33 | E106: 0.056 | G106: 0 | I106: 0 | K106: 0.06
B107: Single Unit Short-haul Truck | C107: 655 | E107: 0.656 | G107: 0.0008 | I107: 0.0054 | K107: 0.66
B108: Single Unit Long-haul Truck | C108: 49 | E108: 0.047 | G108: 0 | I108: 0.0003 | K108: 0.05
B109: Motor Home | C109: 20 | E109: 0.021 | G109: 0 | I109: 0.0002 | K109: 0.02
B110: Combination Short-haul Truck | C110: 1163 | E110: 2.339 | G110: 0.0001 | I110: 0.0008 | K110: 2.34
B111: Combination Long-haul Truck | C111: 953 | E111: 2.123 | G111: 0.0001 | I111: 0.0006 | K111: 2.12
B114: Scenario | C114: Fuel Type | E114: MOVES2010a Output | I114: Actual Statewide Fuel Sales2 (Thousand gallons)
E115: Energy Consumption (Trillion BTU) | G115: Estimated Fuel Consumption1 (Thousand Gallons)
B116: 2006 | C116: Gasoline | E116: 305.9 | G116: 2462240 | I116: 2642371
C117: Diesel | E117: 76.3 | G117: 550454 | I117: 558703
B118: 2020 BAU | C118: Gasoline | E118: 402.3 | G118: 3237943 | I118: -----
C119: Diesel | E119: 101.6 | G119: 732275 | I119: -----

Sheet Residential
A1: Residential Consumption and CO2 Emissions in Maryland
B3: Residential Sector CO2 | E3: 2006
C5: Consumption | D5: Emission Factor | E5: Combustion | F5: Emissions | G5: Emissions | J5: Global Warming Potential
B6: Fuel Type | C6: (Billion Btu) | D6: (lbs C/Million Btu) | E6: Efficiency (%) | F6: (short tons carbon) | G6: (MMTCO2E)
B7: Coal | C7: 94.08602 | D7: 56.79272727 | E7: 1 | F7: =C7*1000*D7*E7/2000 -> 2671.700837 | G7: =F7*(44/12)*0.90718/1000000 -> 0.00888694974 | J7: CO2_GWP= | K7: ='Summ GHG Rpt Expanded'!G4 -> 1
B8: Distillate Fuel | C8: 19718.99265 | D8: 43.94273128 | E8: 1 | F8: 433253.1975 | G8: 1.441141664 | J8: CH4_GWP = | K8: ='Summ GHG Rpt Expanded'!G5 -> 28
B9: Kerosene | C9: 2477.42865 | D9: 43.43612335 | E9: 1 | F9: 53804.94821 | G9: 0.178972834 | J9: N2O_GWP= | K9: ='Summ GHG Rpt Expanded'!G6 -> 265
B10: LPG | C10: 6645.39698 | D10: 37.90593973 | E10: 1 | F10: 125950.0087 | G10: 0.4189508726 | J10: SF6_GWP = | K10: ='Summ GHG Rpt Expanded'!G7 -> 23500
B11: Natural Gas | C11: 73811.31078 | D11: 31.8722467 | E11: 1 | F11: 1176266.153 | G11: 3.912645472 | J11: PFCs_GWP= | K11: ='Summ GHG Rpt Expanded'!G8 -> 11100
E12: Total | G12: =SUM(G7:G11) -> 5.960597793
B14: Residential Sector N20 | E14: 2006
C16: Consumption | D16: Emission Factor | E16: Emissions | F16: GWP | G16: Emissions
B17: Fuel Type | C17: (Billion Btu) | D17: (metric tons N2O/BBtu) | E17: (metric tons N2O) | G17: (MMTCO2E)
B18: Coal | C18: 94.08602 | D18: 0.00150345459 | E18: =C18*D18 -> 0.1414540586 | F18: =$K$9 -> 265 | G18: =E18*F18/1000000 -> 3.748532553e-05
B19: Distillate Fuel | C19: 19718.99265 | D19: 0.000601381836 | E19: 11.858644 | F19: 265 | G19: 0.003142540661
B20: Kerosene | C20: 2477.42865 | D20: 0.000601381836 | E20: 1.48988059 | F20: 265 | G20: 0.0003948183564
B21: LPG | C21: 6645.39698 | D21: 0.000601381836 | E21: 3.996421037 | F21: 265 | G21: 0.001059051575
B22: Natural Gas | C22: 73811.31078 | D22: 9.495502674e-05 | E22: 7.008754989 | F22: 265 | G22: 0.001857320072
B23: Wood | C23: 6903.1058 | D23: 0.003798201069 | E23: 26.21938383 | F23: 265 | G23: 0.006948136715
F24: Total | G24: =SUM(G18:G23) -> 0.01343935271
B27: Residential Sector CH4 | E27: 2006
C29: Consumption | D29: Emission Factor | E29: Emissions | F29: GWP | G29: Emissions
B30: Fuel Type | C30: (Billion Btu) | D30: (metric tons CH4 /BBtu) | E30: (metric tons CH4) | G30: (MMTCO2E)
B31: Coal | C31: 94.08602 | D31: 0.300690918 | E31: =C31*D31 -> 28.29081172 | F31: =$K$8 -> 28 | G31: =E31*F31/1000000 -> 0.0007921427283
B32: Distillate Fuel | C32: 19718.99265 | D32: 0.0100230306 | E32: 197.6440667 | F32: 28 | G32: 0.005534033868
B33: Kerosene | C33: 2477.42865 | D33: 0.0100230306 | E33: 24.83134317 | F33: 28 | G33: 0.0006952776087
B34: LPG | C34: 6645.39698 | D34: 0.0100230306 | E34: 66.60701728 | F34: 28 | G34: 0.001864996484
B35: Natural Gas | C35: 73811.31078 | D35: 0.004747751337 | E35: 350.4377494 | F35: 28 | G35: 0.009812256984
B36: Wood | C36: 6903.1058 | D36: 0.2848650802 | E36: 1966.453787 | F36: 28 | G36: 0.05506070605
F37: Total | G37: =SUM(G31:G36) -> 0.07375941372
B41: Residential Sector 2006 GHG Emissions
C43: Emissions | D43: Emissions | E43: Emissions | F43: Emissions
C44: CO2 | D44: N2O | E44: CH4 | F44: Total
B45: Fuel Type | C45: (MMTCO2E) | D45: (MMTCO2E) | E45: (MMTCO2E) | F45: (MMTCO2E)
B46: Coal | C46: =G7 -> 0.00888694974 | D46: =G18 -> 3.748532553e-05 | E46: =G31 -> 0.0007921427283 | F46: =C46+D46+E46 -> 0.009716577793
B47: Distillate Fuel | C47: 1.441141664 | D47: 0.003142540661 | E47: 0.005534033868 | F47: 1.449818239
B48: Kerosene | C48: 0.178972834 | D48: 0.0003948183564 | E48: 0.0006952776087 | F48: 0.18006293
B49: LPG | C49: 0.4189508726 | D49: 0.001059051575 | E49: 0.001864996484 | F49: 0.4218749206
B50: Natural Gas | C50: 3.912645472 | D50: 0.001857320072 | E50: 0.009812256984 | F50: 3.924315049
B51: Wood | C51: 0 | D51: 0.006948136715 | E51: 0.05506070605 | F51: 0.06200884276
E52: Total | F52: =SUM(F46:F51) -> 6.047796559
B58: - Default state-level data derived from EIA’s State Energy Consumption, Price, and Expenditure Estimates (SEDS) 2007: Consumption Estimates (EIA 2009) http://www.eia.doe.gov/emeu/states/_seds.html
B61: - Default state synthetic natural gas data obtained from Table 12 of EIA’s Historical Natural Gas Annual (EIA 2009), and Table 8 for Natural Gas Annual publications from 2001-2007 http://www.eia.doe.gov/oil_gas/natural_gas/data_publications/natural_gas_annual/nga.html

Sheet Commercial
A1: Commercial Consumption and CO2 Emissions in Maryland
B4: Commercial Sector CO2 | E4: 2006
J5: Global Warming Potential
C6: Consumption | D6: Emission Factor | E6: Combustion | F6: Emissions | G6: Emissions
B7: Fuel Type | C7: (Billion Btu) | D7: (lbs C/Million Btu) | E7: Efficiency (%) | F7: (short tons carbon) | G7: (MMTCO2E) | J7: CO2_GWP= | K7: ='Summ GHG Rpt Expanded'!G4 -> 1
B8: Coal | C8: 951.31425 | D8: 56.79272727 | E8: 1 | F8: =C8*1000*D8*E8/2000 -> 27013.86538 | G8: =F8*(44/12)*0.90718/1000000 -> 0.08985694077 | J8: CH4_GWP = | K8: ='Summ GHG Rpt Expanded'!G5 -> 28
B9: Distillate Fuel | C9: 10493.92011 | D9: 43.94273128 | E9: 1 | F9: 230565.7557 | G9: 0.7669370217 | J9: N2O_GWP= | K9: ='Summ GHG Rpt Expanded'!G6 -> 265
B10: Kerosene | C10: 353.45788 | D10: 43.43612335 | E10: 1 | F10: 7676.420037 | G10: 0.02553428067 | J10: SF6_GWP = | K10: ='Summ GHG Rpt Expanded'!G7 -> 23500
B11: LPG | C11: 1172.7171 | D11: 37.90593973 | E11: 1 | F11: 22226.47185 | G11: 0.07393250603 | J11: PFCs_GWP= | K11: ='Summ GHG Rpt Expanded'!G8 -> 11100
B12: Motor Gasoline | C12: 170.91419 | D12: 42.62265 | E12: 1 | F12: 3642.40785 | G12: 0.01211583836
B13: Residual Fuel | C13: 301.52722 | D13: 47.33480176 | E13: 1 | F13: 7136.365592 | G13: 0.02373788317
B14: Natural Gas | C14: 65040.95052 | D14: 31.8722467 | E14: 1 | F14: 1036500.61 | G14: 3.44773962
F15: Total | G15: =SUM(G8:G14) -> 4.43985409
B18: Commercial Sector N2O | E18: 2006
C20: Consumption | D20: Emission Factor | E20: Emissions | F20: GWP | G20: Emissions
B21: Fuel Type | C21: (Billion Btu) | D21: (metric tons N2O/BBtu) | E21: (metric tons N2O) | G21: (MMTCO2E)
B22: Coal | C22: 951.31425 | D22: 0.00150345459 | E22: =C22*D22 -> 1.430257776 | F22: =$K$9 -> 265 | G22: =E22*F22/1000000 -> 0.0003790183106
B23: Distillate Fuel | C23: 10493.92011 | D23: 0.000601381836 | E23: 6.310852943 | F23: 265 | G23: 0.00167237603
B24: Kerosene | C24: 353.45788 | D24: 0.000601381836 | E24: 0.2125631488 | F24: 265 | G24: 5.632923444e-05
B25: LPG | C25: 1172.7171 | D25: 0.000601381836 | E25: 0.7052507627 | F25: 265 | G25: 0.0001868914521
B26: Motor Gasoline | C26: 178.19621 | D26: 0.000601381836 | E26: 0.1071639639 | F26: 265 | G26: 2.839845044e-05
B27: Residual Fuel | C27: 301.52722 | D27: 0.000601381836 | E27: 0.1813329932 | F27: 265 | G27: 4.805324319e-05
B28: Natural Gas | C28: 65040.95052 | D28: 9.495502674e-05 | E28: 6.175965196 | F28: 265 | G28: 0.001636630777
B29: Wood | C29: 2101.19855 | D29: 0.003798201069 | E29: 7.98077458 | F29: 265 | G29: 0.002114905264
F30: Total | G30: =SUM(G22:G29) -> 0.006122602761
B33: Commercial Sector CH4 | E33: 2006
C35: Consumption | D35: Emission Factor | E35: Emissions | F35: GWP | G35: Emissions
B36: Fuel Type | C36: (Billion Btu) | D36: (metric tons CH4 /BBtu) | E36: (metric tons CH4) | G36: (MMTCO2E)
B37: Coal | C37: 951.31425 | D37: 0.0100230306 | E37: =C37*D37 -> 9.535051838 | F37: =$K$8 -> 28 | G37: =E37*F37/1000000 -> 0.0002669814515
B38: Distillate Fuel | C38: 10493.92011 | D38: 0.0100230306 | E38: 105.1808824 | F38: 28 | G38: 0.002945064707
B39: Kerosene | C39: 353.45788 | D39: 0.0100230306 | E39: 3.542719147 | F39: 28 | G39: 9.919613612e-05
B40: LPG | C40: 1172.7171 | D40: 0.0100230306 | E40: 11.75417938 | F40: 28 | G40: 0.0003291170226
B41: Motor Gasoline | C41: 178.19621 | D41: 0.0100230306 | E41: 1.786066066 | F41: 28 | G41: 5.000984984e-05
B42: Residual Fuel | C42: 301.52722 | D42: 0.0100230306 | E42: 3.022216553 | F42: 28 | G42: 8.462206348e-05
B43: Natural Gas | C43: 65040.95052 | D43: 0.004747751337 | E43: 308.7982598 | F43: 28 | G43: 0.008646351274
B44: Wood | C44: 2101.19855 | D44: 0.2848650802 | E44: 598.5580935 | F44: 28 | G44: 0.01675962662
F45: Total | G45: =SUM(G37:G44) -> 0.02918096912
B48: Commercial Sector 2006 GHG Emission
D51: CO2 | E51: CH4 | F51: N2O | G51: GHG
C52: Consumption | D52: Emissions | E52: Emissions | F52: Emissions | G52: Emissions
B53: Fuel Type | C53: (Billion Btu) | D53: (MMTCO2E) | E53: (MMTCO2E) | F53: (MMTCO2E) | G53: (MMTCO2E)
B54: Coal | C54: =C8 -> 951.31425 | D54: =G8 -> 0.08985694077 | E54: =G37 -> 0.0002669814515 | F54: =G22 -> 0.0003790183106 | G54: =D54+E54+F54 -> 0.09050294053
B55: Distillate Fuel | C55: 10493.92011 | D55: 0.7669370217 | E55: 0.002945064707 | F55: 0.00167237603 | G55: 0.7715544624
B56: Kerosene | C56: 353.45788 | D56: 0.02553428067 | E56: 9.919613612e-05 | F56: 5.632923444e-05 | G56: 0.02568980604
B57: LPG | C57: 1172.7171 | D57: 0.07393250603 | E57: 0.0003291170226 | F57: 0.0001868914521 | G57: 0.07444851451
B58: Motor Gasoline | C58: 170.91419 | D58: 0.01211583836 | E58: 5.000984984e-05 | F58: 2.839845044e-05 | G58: 0.01219424666
B59: Residual Fuel | C59: 301.52722 | D59: 0.02373788317 | E59: 8.462206348e-05 | F59: 4.805324319e-05 | G59: 0.02387055848
B60: Natural Gas | C60: 65040.95052 | D60: 3.44773962 | E60: 0.008646351274 | F60: 0.001636630777 | G60: 3.458022602
B61: Wood | C61: =C44 -> 2101.19855 | D61: 0 | E61: 0.01675962662 | F61: 0.002114905264 | G61: 0.01887453188
F62: Total | G62: =SUM(G54:G61) -> 4.475157662
B69: - Default state-level data derived from EIA’s State Energy Consumption, Price, and Expenditure Estimates (SEDS) 2007: Consumption Estimates (EIA 2009) http://www.eia.doe.gov/emeu/states/_seds.html
B73: - Default state synthetic natural gas data obtained from Table 12 of EIA’s Historical Natural Gas Annual (EIA 2009), and Table 8 for Natural Gas Annual publications from 2001-2007 http://www.eia.doe.gov/oil_gas/natural_gas/data_publications/natural_gas_annual/nga.html

Sheet Industrial
A1: Industrial Consumption and CO2 Emissions in Maryland
B4: Industrial Sector CO2 | D4: 2006
C5: Total | D5: Non-Energy | F5: Net combustible
C6: Consumption | D6: Consumption | F6: Consumption | G6: Emission Factor | H6: Combustion | I6: Emissions | J6: Emissions
B7: Fuel Type | C7: (Billion Btu) | D7: (Billion Btu) | E7: Storage Factor (%) | F7: (Billion Btu) | G7: (lbs C/Million Btu) | H7: Efficiency (%) | I7: (short tons carbon) | J7: (MMTCO2E)
B8: Coking Coal | C8: 0 | D8: 0 | E8: 0.1 | F8: =C8-(D8*E8) -> 0 | G8: 56.19545455 | H8: 1 | I8: =(F8*1000*G8*H8)/2000 -> 0 | J8: =I8*(44/12)*0.90718/1000000 -> 0
B9: Other Coal | C9: 30430.66779 | D9: 307.2540285 | E9: 0 | F9: 30430.66779 | G9: 56.85272727 | H9: 1 | I9: 865033.2283 | J9: 2.877383095
B10: Asphalt and Road Oil | C10: 19576.18925 | D10: 19576.18925 | E10: 1 | F10: 0 | G10: 45.4185022 | H10: 1 | I10: 0 | J10: 0
B11: Aviation Gasoline Blending Components | C11: 0 | D11: 0 | E11: 0 | F11: 0 | G11: 41.56387665 | H11: 1 | I11: =F11*G11*H11/2000 -> 0 | J11: 0
B12: Crude Oil | C12: 0 | D12: 0 | E12: 0 | F12: 0 | G12: 44.82345323 | H12: 1 | I12: 0 | J12: 0
B13: Distillate Fuel | C13: 12446.07304 | D13: 118.8273577 | E13: 0.5 | F13: 12386.65936 | G13: 43.94273128 | H13: 1 | I13: =(F13*1000*G13*H13)/2000 -> 272151.8219 | J13: 0.9052658625
B14: Feedstocks, Naphtha less than 401 F | C14: 726.11391 | D14: 715.1466276 | E14: 0.6191862561 | F14: 283.3049471 | G14: 39.95594714 | H14: 1 | I14: 5659.858745 | J14: 0.01882653907
B15: Feedstocks, Other Oils greater than 401 F | C15: 912.92359 | D15: 661.4710411 | E15: 0.6191862561 | F15: 503.3498126 | G15: 43.94273128 | H15: 1 | I15: 11059.28278 | J15: 0.03678678721
B16: Kerosene | C16: 172.24553 | D16: 0 | E16: 0 | F16: 172.24553 | G16: 43.43612335 | H16: 1 | I16: 3740.839044 | J16: 0.01244325267
B17: LPG | C17: 3241.00283 | D17: 2263.701679 | E17: 0.6191862561 | F17: 1839.349862 | G17: 37.45405721 | H17: 1 | I17: 34445.55749 | J17: 0.1145771764
B18: Lubricants | C18: 2154.14935 | D18: 2154.14935 | E18: 0.0923937326 | F18: 1955.119451 | G18: 44.5814978 | H18: 1 | I18: 43581.07675 | J18: 0.1449648978
B19: Motor Gasoline | C19: 5174.21529 | D19: 0 | E19: 0 | F19: 5174.21529 | G19: 42.62265 | H19: 1 | I19: 110269.3837 | J19: 0.3667919914
B20: Motor Gasoline Blending Components | C20: 0 | D20: 0 | E20: 0 | F20: 0 | G20: 42.62265 | H20: 1 | I20: =F20*G20*H20/2000 -> 0 | J20: 0
B21: Misc. Petro Products | C21: 157.0716 | D21: 157.0716 | E21: 0 | F21: 157.0716 | G21: 44.82345323 | H21: 1 | I21: =(F21*1000*G21*H21)/2000 -> 3520.245758 | J21: 0.01170948734
B22: Petroleum Coke | C22: 0 | D22: 0 | E22: 0.5 | F22: 0 | G22: 61.34361233 | H22: 1 | I22: =F22*G22*H22/2000 -> 0 | J22: 0
B23: Pentanes Plus | C23: 161.77572 | D23: 122.0443001 | E23: 0.6191862561 | F23: 86.20756676 | G23: 40.17621145 | H23: 1 | I23: =(F23*1000*G23*H23)/2000 -> 1731.746716 | J23: 0.00576035528
B24: Residual Fuel | C24: 4766.90751 | D24: 0 | E24: 0.5 | F24: 4766.90751 | G24: 47.33480176 | H24: 1 | I24: 112820.311 | J24: 0.375277209
B25: Still Gas | C25: 0 | D25: 0 | E25: 0.8 | F25: 0 | G25: 38.56828194 | H25: 1 | I25: =F25*G25*H25/2000 -> 0 | J25: 0
B26: Special Naphthas | C26: 3076.93982 | D26: 3034.490444 | E26: 0 | F26: 3076.93982 | G26: 43.74449339 | H26: 1 | I26: =(F26*1000*G26*H26)/2000 -> 67299.58681 | J26: 0.2238604103
B27: Unfinished Oils | C27: 0 | D27: 0 | E27: 0 | F27: 0 | G27: 44.82345323 | H27: 1 | I27: =F27*G27*H27/2000 -> 0 | J27: 0
B28: Waxes | C28: 241.17278 | D28: 241.17278 | E28: 0.58 | F28: 101.2925676 | G28: 43.63436123 | H28: 1 | I28: =(F28*1000*G28*H28)/2000 -> 2209.918242 | J28: 0.007350909981
B29: Natural Gas | C29: 23810.83443 | D29: 1279.749034 | E29: 0.6191862561 | F29: 23018.43142 | G29: 31.8722467 | H29: 1 | I29: 366824.5623 | J29: 1.220178324
H30: Total | I30: =SUM(I8:I29) -> 1900347.419 | J30: 6.321176297
B34: Industrial Sector N2O | D34: 2006
C35: Total | D35: Non-Energy | J35: Global Warming Potential
C36: Consumption | D36: Consumption | E36: Emission Factor | F36: Emissions | G36: GWP | H36: Emissions
B37: Fuel Type | C37: (Billion Btu) | D37: (Billion Btu) | E37: (metric tons N2O/BBtu) | F37: (metric tons N2O) | H37: (MMTCO2E) | J37: CO2_GWP= | K37: ='Summ GHG Rpt Expanded'!G4 -> 1
B38: Coking Coal | C38: 0 | D38: 0 | E38: 0.00150345459 | F38: =(C38-D38)*E38 -> 0 | G38: =$K$39 -> 265 | H38: =F38*G38/1000000 -> 0 | J38: CH4_GWP = | K38: ='Summ GHG Rpt Expanded'!G5 -> 28
B39: Other Coal | C39: 30430.66779 | D39: 307.2540285 | E39: 0.00150345459 | F39: 45.28918469 | G39: 265 | H39: 0.01200163394 | J39: N2O_GWP= | K39: ='Summ GHG Rpt Expanded'!G6 -> 265
B40: Asphalt and Road Oil | C40: 19576.18925 | D40: 19576.18925 | E40: 0.000601381836 | F40: 0 | G40: 265 | H40: 0 | J40: SF6_GWP = | K40: ='Summ GHG Rpt Expanded'!G7 -> 23500
B41: Aviation Gasoline Blending Components | C41: 0 | D41: 0 | E41: 0.000601381836 | F41: 0 | G41: 265 | H41: 0 | J41: PFCs_GWP= | K41: ='Summ GHG Rpt Expanded'!G8 -> 11100
B42: Crude Oil | C42: 0 | D42: 0 | E42: 0.000601381836 | F42: 0 | G42: 265 | H42: 0
B43: Distillate Fuel | C43: 12446.07304 | D43: 118.8273577 | E43: 0.000601381836 | F43: 7.413381641 | G43: 265 | H43: 0.001964546135
B44: Feedstocks, Naphtha less than 401 F | C44: 726.11391 | D44: 715.1466276 | E44: 0.000601381836 | F44: 0.006595524453 | G44: 265 | H44: 1.74781398e-06
B45: Feedstocks, Other Oils greater than 401 F | C45: 912.92359 | D45: 661.4710411 | E45: 0.000601381836 | F45: 0.1512189955 | G45: 265 | H45: 4.007303382e-05
B46: Kerosene | C46: 172.24553 | D46: 0 | E46: 0.000601381836 | F46: 0.1035853331 | G46: 265 | H46: 2.745011326e-05
B47: LPG | C47: 3241.00283 | D47: 2263.701679 | E47: 0.000601381836 | F47: 0.5877311605 | G47: 265 | H47: 0.0001557487575
B48: Lubricants | C48: 2154.14935 | D48: 2154.14935 | E48: 0.000601381836 | F48: 0 | G48: 265 | H48: 0
B49: Motor Gasoline | C49: 5394.66969 | D49: 0 | E49: 0.000601381836 | F49: 3.244256363 | G49: 265 | H49: 0.0008597279361
B50: Motor Gasoline Blending Components | C50: 0 | D50: 0 | E50: 0.000601381836 | F50: 0 | G50: 265 | H50: 0
B51: Misc. Petro Products | C51: 157.0716 | D51: 157.0716 | E51: 0.000601381836 | F51: 0 | G51: 265 | H51: 0
B52: Petroleum Coke | C52: 0 | D52: 0 | E52: 0.000601381836 | F52: 0 | G52: 265 | H52: 0
B53: Pentanes Plus | C53: 161.77572 | D53: 122.0443001 | E53: 0.000601381836 | F53: 0.02389375427 | G53: 265 | H53: 6.33184488e-06
B54: Residual Fuel | C54: 4766.90751 | D54: 0 | E54: 0.000601381836 | F54: 2.86673159 | G54: 265 | H54: 0.0007596838714
B55: Still Gas | C55: 0 | D55: 0 | E55: 0.000601381836 | F55: 0 | G55: 265 | H55: 0
B56: Special Naphthas | C56: 3076.93982 | D56: 3034.490444 | E56: 0.000601381836 | F56: 0.02552828379 | G56: 265 | H56: 6.764995204e-06
B57: Unfinished Oils | C57: 0 | D57: 0 | E57: 0.000601381836 | F57: 0 | G57: 265 | H57: 0
B58: Waxes | C58: 241.17278 | D58: 241.17278 | E58: 0.000601381836 | F58: 0 | G58: 265 | H58: 0
B59: Natural Gas | C59: 23810.83443 | D59: 1279.749034 | E59: 9.495502674e-05 | F59: 2.139439816 | G59: 265 | H59: 0.0005669515513
B60: Wood | C60: 12165.36229 | D60: NA | E60: 0.003798201069 | F60: =C60*E60 -> 46.20649206 | G60: 265 | H60: 0.0122447204
G61: Total | H61: =SUM(H38:H60) -> 0.02863538039
B65: Industrial Sector CH4 | D65: 2006
C66: Total | D66: Non-Energy
C67: Consumption | D67: Consumption | E67: Emission Factor | F67: Emissions | G67: GWP | H67: Emissions
B68: Fuel Type | C68: (Billion Btu) | D68: (Billion Btu) | E68: (metric tons CH4 /BBtu) | F68: (metric tons CH4) | H68: (MMTCO2E)
B69: Coking Coal | C69: 0 | D69: 0 | E69: 0.0100230306 | F69: =(C69-D69)*E69 -> 0 | G69: =$K$38 -> 28 | H69: =F69*G69/1000000 -> 0
B70: Other Coal | C70: 30430.66779 | D70: 307.2540285 | E70: 0.0100230306 | F70: 301.9278979 | G70: 28 | H70: 0.008453981141
B71: Asphalt and Road Oil | C71: 19576.18925 | D71: 19576.18925 | E71: 0.00300690918 | F71: 0 | G71: 28 | H71: 0
B72: Aviation Gasoline Blending Components | C72: 0 | D72: 0 | E72: 0.00300690918 | F72: 0 | G72: 28 | H72: 0
B73: Crude Oil | C73: 0 | D73: 0 | E73: 0.00300690918 | F73: 0 | G73: 28 | H73: 0
B74: Distillate Fuel | C74: 12446.07304 | D74: 118.8273577 | E74: 0.00300690918 | F74: 37.06690821 | G74: 28 | H74: 0.00103787343
B75: Feedstocks, Naphtha less than 401 F | C75: 726.11391 | D75: 715.1466276 | E75: 0.00300690918 | F75: 0.03297762226 | G75: 28 | H75: 9.233734234e-07
B76: Feedstocks, Other Oils greater than 401 F | C76: 912.92359 | D76: 661.4710411 | E76: 0.00300690918 | F76: 0.7560949777 | G76: 28 | H76: 2.117065938e-05
B77: Kerosene | C77: 172.24553 | D77: 0 | E77: 0.00300690918 | F77: 0.5179266654 | G77: 28 | H77: 1.450194663e-05
B78: LPG | C78: 3241.00283 | D78: 2263.701679 | E78: 0.00300690918 | F78: 2.938655802 | G78: 28 | H78: 8.228236247e-05
B79: Lubricants | C79: 2154.14935 | D79: 2154.14935 | E79: 0.00300690918 | F79: 0 | G79: 28 | H79: 0
B80: Motor Gasoline | C80: 5394.66969 | D80: 0 | E80: 0.00300690918 | F80: 16.22128181 | G80: 28 | H80: 0.0004541958908
B81: Motor Gasoline Blending Components | C81: 0 | D81: 0 | E81: 0.00300690918 | F81: 0 | G81: 28 | H81: 0
B82: Misc. Petro Products | C82: 157.0716 | D82: 157.0716 | E82: 0.00300690918 | F82: 0 | G82: 28 | H82: 0
B83: Petroleum Coke | C83: 0 | D83: 0 | E83: 0.00300690918 | F83: 0 | G83: 28 | H83: 0
B84: Pentanes Plus | C84: 161.77572 | D84: 122.0443001 | E84: 0.00300690918 | F84: 0.1194687713 | G84: 28 | H84: 3.345125597e-06
B85: Residual Fuel | C85: 4766.90751 | D85: 0 | E85: 0.00300690918 | F85: 14.33365795 | G85: 28 | H85: 0.0004013424227
B86: Still Gas | C86: 0 | D86: 0 | E86: 0.00300690918 | F86: 0 | G86: 28 | H86: 0
B87: Special Naphthas | C87: 3076.93982 | D87: 3034.490444 | E87: 0.00300690918 | F87: 0.1276414189 | G87: 28 | H87: 3.57395973e-06
B88: Unfinished Oils | C88: 0 | D88: 0 | E88: 0.00300690918 | F88: 0 | G88: 28 | H88: 0
B89: Waxes | C89: 241.17278 | D89: 241.17278 | E89: 0.00300690918 | F89: 0 | G89: 28 | H89: 0
B90: Natural Gas | C90: 23810.83443 | D90: 1279.749034 | E90: 0.0009495502674 | F90: 21.39439816 | G90: 28 | H90: 0.0005990431485
B91: Wood | C91: 12165.36229 | D91: NA | E91: 0.02848650802 | F91: =C91*E91 -> 346.5486904 | G91: 28 | H91: 0.009703363333
G92: Total | H92: =SUM(H69:H91) -> 0.02077559679
B96: Industrial Sector GHG | D96: 2006
C97: Total | D97: Non-Energy | E97: CO2 | F97: CH4 | G97: N2O | H97: GHG
C98: Consumption | D98: Consumption | E98: Emissions | F98: Emissions | G98: Emissions | H98: Emissions
B99: Fuel Type | C99: (Billion Btu) | D99: (Billion Btu) | E99: (MMTCO2E) | F99: (MMTCO2E) | G99: (MMTCO2E) | H99: (MMTCO2E)
B100: Coking Coal | C100: 0 | D100: 0 | E100: 0 | F100: 0 | G100: 0 | H100: =SUM(E100:G100) -> 0
B101: Other Coal | C101: 30430.66779 | D101: 307.2540285 | E101: 2.877446531 | F101: 0.006340485856 | G101: 0.01403964725 | H101: 2.897826664
B102: Asphalt and Road Oil | C102: 19576.18925 | D102: 19576.18925 | E102: 0 | F102: 0 | G102: 0 | H102: 0
B103: Aviation Gasoline Blending Components | C103: 0 | D103: 0 | E103: 0 | F103: 0 | G103: 0 | H103: 0
B104: Crude Oil | C104: 0 | D104: 0 | E104: 0 | F104: 0 | G104: 0 | H104: 0
B105: Distillate Fuel | C105: 12446.07304 | D105: 118.8273577 | E105: 0.9052858203 | F105: 0.0007784050723 | G105: 0.002298148309 | H105: 0.9083623736
B106: Feedstocks, Naphtha less than 401 F | C106: 726.11391 | D106: 715.1466276 | E106: 0.01882695413 | F106: 6.925300675e-07 | G106: 2.04461258e-06 | H106: 0.01882969127
B107: Feedstocks, Other Oils greater than 401 F | C107: 912.92359 | D107: 661.4710411 | E107: 0.03678759823 | F107: 1.587799453e-05 | G107: 4.687788862e-05 | H107: 0.03685035411
B108: Kerosene | C108: 172.24553 | D108: 0 | E108: 0.01244352699 | F108: 1.087645997e-05 | G108: 3.211145325e-05 | H108: 0.01248651491
B109: LPG | C109: 3241.00283 | D109: 2263.701679 | E109: 0.1145797024 | F109: 6.171177185e-05 | G109: 0.0001821966598 | H109: 0.1148236109
B110: Lubricants | C110: 2154.14935 | D110: 2154.14935 | E110: 0.1449680937 | F110: 0 | G110: 0 | H110: 0.1449680937
B111: Motor Gasoline | C111: 5394.66969 | D111: 0 | E111: 0.3668000778 | F111: 0.0003406469181 | G111: 0.001005719472 | H111: 0.3681464442
B112: Motor Gasoline Blending Components | C112: 0 | D112: 0 | E112: 0 | F112: 0 | G112: 0 | H112: 0
B113: Misc. Petro Products | C113: 157.0716 | D113: 157.0716 | E113: 0.01170974549 | F113: 0 | G113: 0 | H113: 0.01170974549
B114: Petroleum Coke | C114: 0 | D114: 0 | E114: 0 | F114: 0 | G114: 0 | H114: 0
B115: Pentanes Plus | C115: 161.77572 | D115: 122.0443001 | E115: 0.005760482275 | F115: 2.508844198e-06 | G115: 7.407063822e-06 | H115: 0.005770398183
B116: Residual Fuel | C116: 4766.90751 | D116: 0 | E116: 0.3752854825 | F116: 0.000301006817 | G116: 0.000888686793 | H116: 0.3764751761
B117: Still Gas | C117: 0 | D117: 0 | E117: 0 | F117: 0 | G117: 0 | H117: 0
B118: Special Naphthas | C118: 3076.93982 | D118: 3034.490444 | E118: 0.2238653456 | F118: 2.680469798e-06 | G118: 7.913767974e-06 | H118: 0.2238759398
B119: Unfinished Oils | C119: 0 | D119: 0 | E119: 0 | F119: 0 | G119: 0 | H119: 0
B120: Waxes | C120: 241.17278 | D120: 241.17278 | E120: 0.007351072042 | F120: 0 | G120: 0 | H120: 0.007351072042
B121: Natural Gas | C121: 23810.83443 | D121: 1279.749034 | E121: 1.220205224 | F121: 0.0004492823614 | G121: 0.000663226343 | H121: 1.221317733
B122: Wood | C122: 12165.36229 | D122: NA | E122: 0 | F122: 0.007277522499 | G122: 0.01432401254 | H122: 0.02160153504
G123: Total | H123: =SUM(H100:H122) -> 6.370395346
B127: - Default state synthetic natural gas data obtained from Table 12 of EIA’s Historical Natural Gas Annual (EIA 2009), and Table 8 for Natural Gas Annual publications from 2001-2007 http://www.eia.doe.gov/oil_gas/natural_gas/data_publications/natural_gas_annual/nga.html

Sheet LimeT&DSodaODS
A1: Limestone & Dolomite; Soda Ash; Ammonia & Urea; ODS; Electric Power T&D Summary (MTCO2E)
C3: Limestone and Dolomite Use
D4: Consumption (Metric Tons) | F4: Emission Factor (t CO2/t production) | H4: Emissions (MTCE) | J4: Emissions (MTCO2E) | O4: Global Warming Potential
C5: Limestone | D5: 258957.2536 | E5: x | F5: 0.44 | G5: = | H5: =J5*12/44 -> 31074.87043 | I5: = | J5: =IF(ISERROR(D5*F5),0,D5*F5) -> 113941.1916
C6: Dolomite | D6: 0 | E6: x | F6: 0.484 | G6: = | H6: 0 | I6: = | J6: 0 | O6: CO2_GWP= | P6: ='Summ GHG Rpt Expanded'!G4 -> 1
C7: Magesium Production from Dolomite | E7: x | F7: 1.796666667 | G7: = | H7: 0 | I7: = | J7: 0 | O7: CH4_GWP = | P7: ='Summ GHG Rpt Expanded'!G5 -> 28
O8: N2O_GWP= | P8: ='Summ GHG Rpt Expanded'!G6 -> 265
C9: Soda Ash Use | O9: SF6_GWP = | P9: ='Summ GHG Rpt Expanded'!G7 -> 23500
D10: Manufacture and Consumption (Metric tons) | F10: Emission Factor (t CO2/t production) | H10: Emissions (MTCE) | J10: Emissions (MTCO2E) | O10: PFCs_GWP= | P10: ='Summ GHG Rpt Expanded'!G8 -> 11100
C11: Manufacture | D11: 0 | E11: x | F11: 0.0974 | G11: = | H11: =J11*12/44 -> 0 | I11: = | J11: =IF(ISERROR(D11*F11),0,D11*F11) -> 0
C12: Consumption | D12: 114725.3496 | E12: x | F12: 0.415 | G12: = | H12: 12984.82366 | I12: = | J12: 47611.02008
C14: Ammonia Production and Urea Consumption
D15: Production & Consumption (Metric Tons) | F15: Emission Factor (mt CO2/mt activity) | H15: Subract emissions from Urea | J15: Emissions (MTCE) | L15: Emissions (MTCO2E)
C16: Ammonia Production | D16: 0 | E16: x | F16: 1.2 | G16: - ( | H16: =D17*F17 -> 626.980797 | I16: ) = | J16: =L16*12/44 -> 0 | K16: = | L16: =IF(D16>0,D16*F16-(H16),0) -> 0
C17: Urea Consumption | D17: 858.8778041 | F17: 0.73 | I17: = | J17: 170.9947628 | K17: = | L17: =D17*F17 -> 626.980797
C20: Ozone Depleting Substances (ODS) Substitutes
D21: National Emissions (Metric Tons CO2 Eq.) | F21: State Population | H21: National Population | J21: Apportioned National Emissions (MTCE) | L21: Apportioned National Emissions (MTCO2E)
C22: 2006 | D22: 104985827.1 | E22: x | F22: 5602258 | G22: / | H22: 298362973 | I22: = | J22: =L22*12/44 -> 537622.4841 | K22: = | L22: =D22*F22/H22 -> 1971282.442
C25: Electric Power Transmission & Distribution (T&D)
D26: SF6 Consumption (Metric Tons) | F26: Emission Factor (t SF6/t Consumption) | H26: Emissions (Metric Tons SF6) | J26: Emissions | L26: Emissions (MTCO2E)
C27: 2006 | D27: 9.50722115 | E27: x | F27: 1 | G27: = | H27: =IF(ISERROR(D27*F27), ,D27*F27) -> 9.50722115 | I27: = | J27: =H27*$P$9*12/44 -> 60932.64464 | K27: = | L27: =J27/(12/44) -> 223419.697
C30: Aluminum Production (EastAlCo Shut Down)
D31: Production (Metric Tons) | F31: Emission Factor (t CE/t Production) | J31: Emissions (MTCE) | L31: Emissions (MTCO2E)
C32: 2006 | D32: 0 | E32: x | F32: 0.4254545455 | G32: = | J32: =IF(ISERROR(D32*F32),0,D32*F32) -> 0 | K32: = | L32: =J32/(12/44) -> 0
D39: 2006
C40: Carbon Dioxide Emissions | D40: =D41+D42+D43+D44+D45+D46 -> 162179.1925
C41: Cement Manufacture | D41: 0
C42: Lime Manufacture | D42: 0
C43: Limestone and Dolomite Use | D43: =J5 -> 113941.1916
C44: Soda Ash | D44: =J12 -> 47611.02008
C45: Ammonia & Urea | D45: =L17 -> 626.980797
C46: Iron & Steel Production | D46: 0
C47: Nitrous Oxide Emissions | D47: =D48+D49 -> 0
C48: Nitric Acid Production | D48: 0
C49: Adipic Acid Production | D49: 0
C50: HFC, PFC, and SF6 Emissions | D50: =D51+D52+D53+D54+D55+D56 -> 2194702.139
C51: ODS Substitutes | D51: =L22 -> 1971282.442
C52: Semiconductor Manufacturing | D52: 0
C53: Magnesium Production | D53: 0
C54: Electric Power Transmission and Distribution Systems | D54: =L27 -> 223419.697
C55: HCFC-22 Production | D55: 0
C56: Aluminum Production | D56: =L32 -> 0
C57: Total Emissions | D57: =D40+D47+D50 -> 2356881.331

Sheet Cement
A1: Cement Industry Production Emissions
D3: WSC Methodology used in Emission Certification Reports.
C7: CO2 from Raw Meal Converted to Clinker
D8: Holcim | E8: Lehigh | F8: Essroc | G8: MD Total
C9: Facility:
C11: Year | D11: 2006 | E11: 2006 | F11: 2006
C13: Clinker Produced (metric tonnes) | D13: 557447 | E13: 1917452 | F13: 218353 | G13: =SUM(D13:F13) -> 2693252
C15: Calcination Emission Factor ( kg CO2/ tonnes Clinker) | D15: 525 | E15: 540 | F15: 525
C17: Clinker CO2 Emission (tonnes CO2/yr) | D17: =(D13*D15)/1000 -> 292659.675 | E17: 1035424.08 | F17: 114635.325 | G17: =SUM(D17:F17) -> 1442719.08
C20: CO2 from Calcination of CKD leaving the Kiln system
C23: CKD Produced (metric tonnes) | D23: 17474 | E23: 0 | F23: 699.45 | G23: =SUM(D23:F23) -> 18173.45
C25: CKD Emission Factor ( t CO2/ tonnes CKD) | D25: =525/1000 -> 0.525 | E25: 0.525 | F25: 0.525
C27: Calcination rate of CKD [%]-Default | D27: 1 | E27: 1 | F27: 1
C29: CKD CO2 Emission (tonnes CO2/yr) | D29: =D23*D25*D27 -> 9173.85 | E29: 0 | F29: =F23*F25*F27 -> 367.21125 | G29: =SUM(D29:F29) -> 9541.06125
C32: CO2 from Organic Carbon Content of Raw Meal
C35: Clinker Produced (metric tonnes) | D35: 557447 | E35: 1917452 | F35: 218353
C37: Raw Meal to Clinker Ratio (Default) | D37: 1.55 | E37: 1.55 | F37: 1.78
C39: Raw Meal Consumption (metric tonnes) | D39: =D35*D37 -> 864042.85 | E39: 2972050.6 | F39: 388668.34
C41: Organic Carbon Content of Raw Meal (Average) | D41: 0.002 | E41: 0.002 | F41: 0.002
C43: CO2 Emission (tonnes CO2/yr) | D43: =(D39*D41)*(44/12) -> 6336.314233 | E43: 21795.03773 | F43: 2850.234493 | G43: =SUM(D43:F43) -> 30981.58646
C46: MD Total Cement Process CO2 (metric tonnes) = | G46: =G17+G29+G43 -> 1483241.728
C48: MD Total Cement Process CO2 (million metric tonnes CO2 Equivalent) = | G48: =G46/1000000 -> 1.483241728
D60: SIT Methodology
B63: Production | D63: Emission Factor | F63: Emissions | H63: Emissions from Cement Kiln Dust | J63: Emissions | L63: Emissions | M63: Emissions
B64: (Metric Tons) | D64: (t CO2/t production) | F64: (Metric Tons CO2) | H64: (Metric Tons CO2) | J64: (MTCE) | L64: (MTCO2E) | M64: (MMTCO2E)
B66: =G13 -> 2693252 | C66: x | D66: 0.5069625535 | E66: = | F66: =B66*D66 -> 1365377.911 | G66: + | H66: =F66*20% -> 273075.5822 | I66: = | J66: =L66*(12/44) -> 446850.9527 | K66: = | L66: =F66+H66 -> 1638453.493 | M66: =L66/1000000 -> 1.638453493
B67: (Clinker)
C78: CO2 from Raw Meal Converted to Clinker
D79: MD Total
C80: Year | D80: 2006
C82: Clinker Produced (metric tonnes) | D82: 2693252
C84: Calcination Emission Factor ( kg CO2/ tonnes Clinker) | D84: 530
C86: Clinker CO2 Emission (tonnes CO2/yr) | D86: 1442719.08
C88: CO2 from Calcination of CKD leaving the Kiln system
C90: CKD Produced (metric tonnes) | D90: 18173.45
C92: CKD Emission Factor ( t CO2/ tonnes CKD) | D92: 0.525
C94: Calcination rate of CKD [%]-Default | D94: 1
C96: CKD CO2 Emission (tonnes CO2/yr) | D96: 9541.06125
C98: CO2 from Organic Carbon Content of Raw Meal
C100: Clinker Produced (metric tonnes) | D100: 2693252
C102: Raw Meal to Clinker Ratio (Default) | D102: 1.626666667
C104: Raw Meal Consumption (metric tonnes) | D104: 4381023.253
C106: Organic Carbon Content of Raw Meal (Average) | D106: 0.002
C108: CO2 Emission (tonnes CO2/yr) | D108: 30981.58646
C110: MD Total Cement Process CO2 (metric tonnes) | D110: 1483241.728
C112: MD Total Cement Process CO2 (million metric tonnes CO2 Equivalent) | D112: 1.483241728

Sheet Ammonia & Urea Consumption
A1: Ammonia Production and Urea Consumption
D3: Production & Consumption | E3: Emission Factor | G3: Subract emissions | I3: Emissions | J3: Emissions
D4: (Metric Tons) | E4: (mt CO2/mt activity) | G4: from Urea | I4: (MTCO2E) | J4: (MMTCO2E)
B7: 2006 | C7: Ammonia Production | D7: 0 | E7: 1.2 | G7: =D8*E8 -> 627.07 | I7: =IF(D7>0,D7*E7-(G7),0) -> 0
B8: 18 | C8: Urea Consumption | D8: 859 | E8: 0.73 | I8: =D8*E8 -> 627.07 | J8: =I8/1000000 -> 0.00062707

Sheet Iron And Steel
A1: Iron & Steel Industry Production Emissions
E4: 2008 | J4: 2006
D6: Product | E6: Production | F6: CO2 Emission | G6: Carbon | H6: CH4 Emission | I6: N2O Emission | J6: Production | K6: CO2 Emission | L6: CO2 Emission | M6: CO2 Emission
E7: (tons) | F7: (tons) | G7: Intensity | H7: (tons) | I7: (tons) | J7: (tons) | K7: (tons) | L7: (metric tons) | M7: MMTCO2E
C9: Sinter Strand | D9: Sinter | E9: 2431393 | F9: 609888 | G9: =F9/E9 -> 0.2508389224 | H9: 3940 | J9: 2491713 | K9: =G9*J9 -> 625018.6038 | L9: =K9*0.9072 -> 567016.8774 | M9: =L9/1000000 -> 0.5670168774
C11: L Blast Furnace | D11: Iron | E11: 2493066 | F11: 3019471 | G11: =F11/E11 -> 1.211147639 | J11: 2545136 | K11: =G11*J11 -> 3082535.458 | L11: =K11*0.9072 -> 2796476.167 | M11: =L11/1000000 -> 2.796476167
C13: BOF | D13: Steel | E13: 2692020 | F13: 246133 | G13: =F13/E13 -> 0.09143059858 | J13: 2816577 | K13: =G13*J13 -> 257521.3211 | L13: =K13*0.9072 -> 233623.3425 | M13: =L13/1000000 -> 0.2336233425
L15: =SUM(L9:L14) -> 3597116.387 | M15: 3.597116387

Sheet Landfills
A1: Landfill Emissions
I3: Uncontrolled Landfills
I4: Flared Landfills
I5: LFTGE Landfills
B8: County | C8: Facility Name | D8: TOTAL Landfill Capacity (Million tons) | E8: Correct Capacity (MegaGrams) | F8: Average Acceptance / Yearly Disposal (tons/yr) | G8: Average Acceptance / Yearly Disposal (Mg/yr) | H8: Year Opened | I8: Year Closed | J8: CO2 Generation (short tons) LandGEM 3.0 | K8: CH4 Generation (short tons/yr) LandGEM 3.0 | L8: CH4 Collection Efficiency (%) | M8: CH4 Collected (tons) | N8: Flare Control Efficeincy (%) | O8: Amount of CH4 Flared (tons) | P8: CO2 Generated from CH4 Combustion, tons | Q8: Uncombusted CH4 (Flare Emission, tons) | R8: Uncollected Landfill CH4 | S8: Surface Oxidation % | T8: Amount of CH4 Removed By Oxidation (tons) | U8: Fugitive Landfill CH4 Emission (tons) | V8: Total CH4 Emission, tons | W8: Total methane emissions (CO2e) | X8: Total GHG Emissions (tons)
B10: Allegany | C10: Mountainview Municipal Landfill | D10: 4.26 | E10: =D10*1000000*0.9071847 -> 3864606.822 | F10: 125000 | G10: =F10*0.9071847 -> 113398.0875 | H10: 1992 | I10: 2015 | J10: 9505 | K10: 3464 | L10: 0.8 | M10: =K10*L10 -> 2771.2 | N10: 0.98 | O10: =M10*N10 -> 2715.776 | P10: =O10*2.75 -> 7468.384 | Q10: =M10*(1-N10) -> 55.424 | R10: =K10*(1-L10) -> 692.8 | S10: 0.1 | T10: =R10*S10 -> 69.28 | U10: =R10*(1-S10) -> 623.52 | V10: =U10+Q10 -> 678.944 | W10: =V10*$D$83 -> 19010.432 | X10: =J10+P10+W10 -> 35983.816
C11: Vale Summit | D11: 1.5 | E11: 1360777.05 | F11: 75000 | G11: 68038.8525 | H11: 1971 | I11: 1992 | J11: 4319 | K11: 1574 | R11: =K11 -> 1574 | S11: 0.1 | T11: 157.4 | U11: 1416.6 | V11: =U11 -> 1416.6 | W11: =V11*$D$83 -> 39664.8 | X11: =J11+W11 -> 43983.8
B13: Anne Arundel | C13: Annapolis | D13: 0.85 | E13: =D13*1000000*0.9071847 -> 771106.995 | F13: 23000 | G13: =F13*0.9071847 -> 20865.2481 | H13: 1960 | I13: 1993 | J13: 2306 | K13: 840.3 | R13: =K13 -> 840.3 | S13: 0.1 | T13: =R13*S13 -> 84.03 | U13: =R13*(1-S13) -> 756.27 | V13: =U13 -> 756.27 | W13: 21175.56 | X13: =J13+W13 -> 23481.56
C14: Fort G. Meade Municipal Landfill | D14: 0.67 | E14: 607813.749 | F14: 11000 | G14: 9979.0317 | H14: 1976 | I14: 1996 | J14: 3757 | K14: 1369 | R14: 1369 | S14: 0.1 | T14: 136.9 | U14: 1232.1 | V14: 1232.1 | W14: 34498.8 | X14: 38255.8
C15: Millersville Municipal Landfill | D15: 14.3 | E15: 12972741.21 | F15: 358288 | G15: 325033.3918 | H15: 1975 | I15: 2060 | J15: 18620 | K15: 6787 | L15: 0.956 | M15: =K15*L15 -> 6488.372 | N15: 0.9991 | O15: =M15*N15 -> 6482.532465 | P15: =O15*2.75 -> 17826.96428 | Q15: =M15*(1-N15) -> 5.8395348 | R15: =K15*(1-L15) -> 298.628 | S15: 0.1 | T15: 29.8628 | U15: 268.7652 | V15: =U15+Q15 -> 274.6047348 | W15: 7688.932574 | X15: 26308.93257
C16: Sudley Road | D16: 0.7 | E16: 635029.29 | F16: 61000 | G16: 55338.2667 | H16: 1982 | I16: 1993 | J16: 2723 | K16: 992.3 | R16: =K16 -> 992.3 | S16: 0.1 | T16: 99.23 | U16: 893.07 | V16: =U16 -> 893.07 | W16: 25005.96 | X16: 27728.96
C17: Solley Road | E17: 1122641.432 | H17: 1963 | I17: 1982 | J17: =2485 -> 2485 | K17: =905.8 -> 905.8 | L17: =8.61% -> 0.0861 | M17: =K17*L17 -> 77.98938 | N17: 0.9991 | O17: =M17*N17 -> 77.91918956 | P17: =O17*2.75 -> 214.2777713 | Q17: =M17*(1-N17) -> 0.070190442 | R17: =K17*(1-L17) -> 827.81062 | S17: 0.1 | T17: 82.781062 | U17: 745.029558 | V17: =U17+Q17 -> 745.0997484 | W17: 20862.79296 | X17: 23347.79296
C18: Glen Burnie | E18: 3487273 | H18: 1953 | I18: 1982 | J18: =7040 -> 7040 | K18: =2566 -> 2566 | R18: =K18 -> 2566 | S18: 0.1 | T18: 256.6 | U18: 2309.4 | V18: =U18 -> 2309.4 | W18: 64663.2 | X18: 71703.2
T20: =R20*S20 -> 0
B21: Baltimore City | C21: Quarantine Road Municipal Landfill | D21: 18.320622 | E21: =D21*1000000*0.9071847 -> 16620187.97 | F21: 523000 | G21: =F21*0.9071847 -> 474457.5981 | H21: 1985 | I21: 2019 | J21: 45940 | K21: 16740 | R21: =K21 -> 16740 | S21: 0.1 | T21: 1674 | U21: =R21*(1-S21) -> 15066 | V21: =U21 -> 15066 | W21: 421848 | X21: =J21+W21 -> 467788
C22: Eastern Municipal Landfill | D22: 22.813 | E22: 20695604.56 | F22: 250000 | G22: 226796.175 | H22: 1982 | I22: 2033 | J22: =14880 -> 14880 | K22: =7802 -> 7802 | L22: 0.85 | M22: =K22*L22 -> 6631.7 | N22: 0.992 | O22: =M22*N22 -> 6578.6464 | P22: =O22*2.75 -> 18091.2776 | Q22: =M22*(1-N22) -> 53.0536 | R22: =K22*(1-L22) -> 1170.3 | S22: 0.1 | T22: 117.03 | U22: 1053.27 | V22: =U22+Q22 -> 1106.3236 | W22: 30977.0608 | X22: =J22+P22+W22 -> 63948.3384
C23: Norris Farm | E23: 7259745.95 | H23: 1968 | I23: 1986 | J23: =19190 -> 19190 | K23: =6995 -> 6995 | L23: 0.2113 | M23: 1478.0435 | N23: 0.98 | O23: 1448.48263 | P23: 3983.327232 | Q23: 29.56087 | R23: 5516.9565 | S23: 0.1 | T23: 551.69565 | U23: 4965.26085 | V23: 4994.82172 | W23: 139855.0082 | X23: 163028.3354
B25: Calvert | C25: Appeal Municipal Landfill | D25: 2.79929 | E25: =D25*1000000*0.9071847 -> 2539473.059 | F25: 20000 | G25: =F25*0.9071847 -> 18143.694 | H25: 1992 | I25: 2037 | J25: =2625 -> 2625 | K25: =956.6 -> 956.6 | R25: =K25 -> 956.6 | S25: 0.1 | T25: =R25*S25 -> 95.66 | U25: =R25*(1-S25) -> 860.94 | V25: =U25 -> 860.94 | W25: 24106.32 | X25: =J25+W25 -> 26731.32
C26: Barstow | D26: 0.6 | E26: 544310.82 | F26: 28000 | G26: 25401.1716 | H26: 1975 | I26: 1993 | J26: 1974 | K26: 719.3 | R26: 719.3 | S26: 0.1 | T26: 71.93 | U26: 647.37 | V26: 647.37 | W26: 18126.36 | X26: 20100.36
B28: Caroline | C28: Midshore I Regional Landfill | J28: =9484 -> 9484 | K28: =3456 -> 3456 | L28: 0.64 | M28: =K28*L28 -> 2211.84 | N28: 0.98 | O28: =M28*N28 -> 2167.6032 | P28: =O28*2.75 -> 5960.9088 | Q28: =M28*(1-N28) -> 44.2368 | R28: =K28*(1-L28) -> 1244.16 | S28: 0.1 | T28: =R28*S28 -> 124.416 | U28: =R28*(1-S28) -> 1119.744 | V28: =U28+Q28 -> 1163.9808 | W28: 32591.4624 | X28: =J28+P28+W28 -> 48036.3712
B30: Carroll | C30: Hoods Mill | D30: 0.5 | E30: =D30*1000000*0.9071847 -> 453592.35 | F30: 35000 | G30: =F30*0.9071847 -> 31751.4645 | H30: 1981 | I30: 1994 | J30: 1767 | K30: 643.9 | R30: =K30 -> 643.9 | S30: 0.1 | T30: =R30*S30 -> 64.39 | U30: =R30*(1-S30) -> 579.51 | V30: =U30 -> 579.51 | W30: 16226.28 | X30: =J30+W30 -> 17993.28
C31: Northern Municpal Landfill | D31: 3.504187 | E31: 3178944.832 | F31: 80000 | G31: 72574.776 | H31: 1988 | I31: 2053 | J31: 8168 | K31: 2977 | L31: 0.0702 | M31: =K31*L31 -> 208.9854 | N31: 0.977 | O31: =M31*N31 -> 204.1787358 | P31: =O31*2.75 -> 561.4915235 | Q31: =M31*(1-N31) -> 4.8066642 | R31: 2977 | S31: 0.1 | T31: 297.7 | U31: 2679.3 | V31: 2679.3 | W31: 75020.4 | X31: 83188.4
B33: Cecil | C33: Cecil County Central Landfill - Hog Hill | D33: 4.505 | E33: =D33*1000000*0.9071847 -> 4086867.073 | G33: 60623.333 | H33: 1978 | I33: 2046 | J33: =9317 -> 9317 | K33: =3396 -> 3396 | L33: 0.8 | M33: =K33*L33 -> 2716.8 | N33: 0.98 | O33: =M33*N33 -> 2662.464 | P33: =O33*2.75 -> 7321.776 | Q33: =M33*(1-N33) -> 54.336 | R33: =K33*(1-L33) -> 679.2 | S33: 0.1 | T33: =R33*S33 -> 67.92 | U33: =R33*(1-S33) -> 611.28 | V33: =U33+Q33 -> 665.616 | W33: 18637.248 | X33: =J33+P33+W33 -> 35276.024
B35: Charles | C35: Charles County Municipal LF #2 | D35: 4.3747 | E35: =D35*1000000*0.9071847 -> 3968660.907 | F35: 82000 | G35: =F35*0.9071847 -> 74389.1454 | H35: 1994 | I35: 2040 | J35: =7635 -> 7635 | K35: =2783 -> 2783 | R35: =K35 -> 2783 | S35: 0.1 | T35: =R35*S35 -> 278.3 | U35: =R35*(1-S35) -> 2504.7 | V35: =U35 -> 2504.7 | W35: 70131.6 | X35: =J35+W35 -> 77766.6
C36: Pisgah | D36: 1.5 | E36: 1360777.05 | F36: 75000 | G36: 68038.8525 | H36: 1974 | I36: 1994 | J36: 5538 | K36: 2018 | R36: 2018 | S36: 0.1 | T36: 201.8 | U36: 1816.2 | V36: 1816.2 | W36: 50853.6 | X36: 56391.6
B38: Dorchester | C38: Beulah HE #1 | D38: 0.8 | E38: =D38*1000000*0.9071847 -> 725747.76 | F38: 35000 | G38: =F38*0.9071847 -> 31751.4645 | H38: 1973 | I38: 1995 | J38: 1723 | K38: 628 | R38: =K38 -> 628 | S38: 0.1 | T38: =R38*S38 -> 62.8 | U38: =R38*(1-S38) -> 565.2 | V38: =U38 -> 565.2 | W38: 15825.6 | X38: =J38+W38 -> 17548.6
C39: Beulah HE #2 | D39: 4.1 | E39: 3719457.27 | H39: 1996 | I39: 2010 | J39: =3189 -> 3189 | K39: =1162 -> 1162 | R39: 1162 | S39: 0.1 | T39: 116.2 | U39: 1045.8 | V39: 1045.8 | W39: 29282.4 | X39: 32471.4
B41: Frederick | C41: Fort Detrick Municipal Landfill | D41: 1.0009 | E41: =D41*1000000*0.9071847 -> 908001.1662 | G41: =F41*0.9071847 -> 0 | H41: 1991 | I41: 2504 | J41: =159.8 -> 159.8 | K41: =58.24 -> 58.24 | R41: =K41 -> 58.24 | S41: 0.1 | T41: =R41*S41 -> 5.824 | U41: =R41*(1-S41) -> 52.416 | V41: =U41 -> 52.416 | W41: 1467.648 | X41: =J41+W41 -> 1627.448
C42: Reich's Ford A Municpal Landfill | D42: 2.1 | E42: 1905087.87 | F42: 69200 | G42: 62777.18124 | H42: 1968 | I42: 1997 | J42: =15000 -> 15000 | K42: =5467 -> 5467 | L42: 0.85 | M42: =K42*L42 -> 4646.95 | N42: 0.85 | O42: =M42*N42 -> 3949.9075 | P42: =O42*2.75 -> 10862.24562 | Q42: =M42*(1-N42) -> 697.0425 | R42: =K42*(1-L42) -> 820.05 | S42: 0.1 | T42: 82.005 | U42: 738.045 | V42: =U42+Q42 -> 1435.0875 | W42: 40182.45 | X42: =J42+P42+W42 -> 66044.69563
C43: Reich's Ford Site B Municipal Landfill | D43: 4.226188 | E43: 3833933.093 | F43: 100000 | G43: 90718.47 | H43: 1995 | I43: 2045 | J43: =404.6 -> 404.6 | K43: =159.7 -> 159.7 | R43: =K43 -> 159.7 | S43: 0.1 | T43: 15.97 | U43: 143.73 | V43: 143.73 | W43: 4024.44 | X43: 4429.04
B45: Garrett | C45: Garrett County SWD&RF or Del Signiore | D45: 1.537185 | E45: =D45*1000000*0.9071847 -> 1394510.713 | F45: 38000 | G45: =F45*0.9071847 -> 34473.0186 | H45: 1994 | I45: 2028 | J45: 1964 | K45: 715.8 | R45: =K45 -> 715.8 | S45: 0.1 | T45: =R45*S45 -> 71.58 | U45: =R45*(1-S45) -> 644.22 | V45: =U45 -> 644.22 | W45: 18038.16 | X45: =J45+W45 -> 20002.16
C46: Round Glade | D46: 0.8 | E46: 725747.76 | F46: 20000 | G46: 18143.694 | H46: 1974 | I46: 1994 | J46: 2513 | K46: 916.1 | R46: 916.1 | S46: 0.1 | T46: 91.61 | U46: 824.49 | V46: 824.49 | W46: 23085.72 | X46: 25598.72
B48: Harford | C48: Harford W.D. Center Municipal Landfill | D48: 2.98 | E48: =D48*1000000*0.9071847 -> 2703410.406 | F48: 74000 | G48: =F48*0.9071847 -> 67131.6678 | H48: 1986 | I48: 2008 | J48: =4760 -> 4760 | K48: =1735 -> 1735 | R48: =K48 -> 1735 | S48: 0.1 | T48: =R48*S48 -> 173.5 | U48: =R48*(1-S48) -> 1561.5 | V48: =U48 -> 1561.5 | W48: 43722 | X48: =J48+W48 -> 48482
B50: Montgomery | C50: Oaks Landfill | J50: 19300 | K50: 7033 | L50: 0.9316 | M50: =K50*L50 -> 6551.9428 | N50: 0.97 | O50: =M50*N50 -> 6355.384516 | P50: =O50*2.75 -> 17477.30742 | Q50: =M50*(1-N50) -> 196.558284 | R50: =K50*(1-L50) -> 481.0572 | S50: 0.1 | T50: =R50*S50 -> 48.10572 | U50: =R50*(1-S50) -> 432.95148 | V50: =U50+Q50 -> 629.509764 | W50: 17626.27339 | X50: =J50+P50+W50 -> 54403.58081
C51: Gude Landfill | J51: =12430 -> 12430 | K51: =4530 -> 4530 | L51: 0.473 | M51: 2142.69 | N51: 0.97 | O51: 2078.4093 | P51: 5715.625575 | Q51: 64.2807 | R51: 2387.31 | S51: 0.1 | T51: 238.731 | U51: 2148.579 | V51: 2212.8597 | W51: 61960.0716 | X51: 80105.69718
B53: Howard | C53: Alpha Ridge | D53: 9.978 | E53: =D53*1000000*0.9071847 -> 9051888.937 | F53: 225000 | G53: =F53*0.9071847 -> 204116.5575 | H53: 1980 | I53: 2122 | J53: 11610 | K53: 4233 | L53: 0.79 | M53: =K53*L53 -> 3344.07 | N53: 0.98 | O53: =M53*N53 -> 3277.1886 | P53: =O53*2.75 -> 9012.26865 | Q53: =M53*(1-N53) -> 66.8814 | R53: =K53*(1-L53) -> 888.93 | S53: 0.1 | T53: =R53*S53 -> 88.893 | U53: =R53*(1-S53) -> 800.037 | V53: =U53+Q53 -> 866.9184 | W53: 24273.7152 | X53: =J53+P53+W53 -> 44895.98385
B55: Kent | C55: Nicholson | D55: 0.6 | E55: =D55*1000000*0.9071847 -> 544310.82 | F55: 20000 | G55: =F55*0.9071847 -> 18143.694 | H55: 1964 | I55: 1992 | J55: 1575 | K55: 574 | R55: =K55 -> 574 | S55: 0.1 | T55: =R55*S55 -> 57.4 | U55: =R55*(1-S55) -> 516.6 | V55: =U55 -> 516.6 | W55: 14464.8 | X55: =J55+W55 -> 16039.8
B57: Prince Georges | C57: Brown Station Landfill 1 | D57: 7.1 | E57: =D57*1000000*0.9071847 -> 6441011.37 | F57: 284000 | G57: =F57*0.9071847 -> 257640.4548 | H57: 1968 | I57: 1993 | J57: 20280 | K57: 7393 | L57: 0.627 | M57: =K57*L57 -> 4635.411 | N57: 0.997 | O57: =M57*N57 -> 4621.504767 | P57: =O57*2.75 -> 12709.13811 | Q57: =M57*(1-N57) -> 13.906233 | R57: =K57*(1-L57) -> 2757.589 | S57: 0.1 | T57: =R57*S57 -> 275.7589 | U57: =R57*(1-S57) -> 2481.8301 | V57: =U57+Q57 -> 2495.736333 | W57: 69880.61732 | X57: =J57+P57+W57 -> 102869.7554
C58: Brown Station Landfill B | D58: 16 | E58: 14514955.2 | F58: 280000 | G58: 254011.716 | H58: 1992 | I58: 2016 | J58: 27110 | K58: 9881 | L58: 0.627 | M58: 6195.387 | N58: 0.997 | O58: 6176.800839 | P58: 16986.20231 | Q58: 18.586161 | R58: 3685.613 | S58: 0.1 | T58: 368.5613 | U58: 3317.0517 | V58: 3335.637861 | W58: 93397.86011 | X58: 137494.0624
C59: CDP/Sandy Hill | D59: 7.5 | E59: 6803885.25 | F59: 280000 | G59: 254011.716 | H59: 1978 | I59: 2000 | J59: 25620 | K59: 9336 | L59: 0.943 | M59: 8803.848 | N59: 0.98 | O59: 8627.77104 | P59: 23726.37036 | Q59: 176.07696 | R59: 532.152 | S59: 0.1 | T59: 53.2152 | U59: 478.9368 | V59: 655.01376 | W59: 18340.38528 | X59: 67686.75564
C60: Saint Andrews 1 & 2 Municipal LF | D60: 1.6 | E60: 1451495.52 | F60: 34000 | G60: 30844.2798 | H60: 1960 | I60: 2004 | J60: 5191 | K60: 1892 | R60: =K60 -> 1892 | S60: 0.1 | T60: 189.2 | U60: 1702.8 | V60: =U60 -> 1702.8 | W60: 47678.4 | X60: =J60+W60 -> 52869.4
B62: Somerset | C62: Somerset County Municipal LF or Fairmount Rd | D62: 1.61 | E62: 393341 | G62: =F62*0.9071847 -> 0 | H62: 1998 | I62: 2023 | J62: 1136 | K62: 413.9 | R62: =K62 -> 413.9 | S62: 0.1 | T62: =R62*S62 -> 41.39 | U62: =R62*(1-S62) -> 372.51 | V62: =U62 -> 372.51 | W62: 10430.28 | X62: =J62+W62 -> 11566.28
C63: Westover/Ring | E63: 368200 | G63: 0 | H63: 1977 | I63: 1998 | J63: 1650 | K63: 601.2 | R63: 601.2 | S63: 0.1 | T63: 60.12 | U63: 541.08 | V63: 541.08 | W63: 15150.24 | X63: 16800.24
B65: Talbot | C65: Midshore II Regional Municipal LF | D65: 3.751244 | E65: =D65*1000000*0.9071847 -> 3403071.163 | F65: 81800 | G65: =F65*0.9071847 -> 74207.70846 | H65: 1991 | I65: 2010 | J65: 8456 | K65: 3082 | R65: =K65 -> 3082 | S65: 0.1 | T65: =R65*S65 -> 308.2 | U65: =R65*(1-S65) -> 2773.8 | V65: =U65 -> 2773.8 | W65: 77666.4 | X65: =J65+W65 -> 86122.4
B67: Washington | C67: Hancock Landfill | E67: 89729.73 | G67: =F67*0.9071847 -> 0 | H67: 1981 | I67: 1993 | J67: 378.5 | K67: 138 | R67: =K67 -> 138 | S67: 0.1 | T67: =R67*S67 -> 13.8 | U67: =R67*(1-S67) -> 124.2 | V67: =U67 -> 124.2 | W67: 3477.6 | X67: =J67+W67 -> 3856.1
C68: Resh Road 1 & 2 Municipal LF | D68: 2.55 | E68: =D68*1000000*0.9071847 -> 2313320.985 | F68: 150000 | G68: 136077.705 | H68: 1982 | I68: 2000 | J68: 18980 | K68: 6916 | R68: 6916 | S68: 0.1 | T68: 691.6 | U68: 6224.4 | V68: 6224.4 | W68: 174283.2 | X68: 193263.2
C69: Forty West | D69: 20.273 | E69: 18391355.42 | G69: 0 | H69: 2000 | I69: 2047 | J69: =6634 -> 6634 | K69: =2418 -> 2418 | R69: 2418 | S69: 0.1 | T69: 241.8 | U69: 2176.2 | V69: 2176.2 | W69: 60933.6 | X69: 67567.6
B71: Wicomico | C71: Newland Park Municipal LF - Wicomico County Landfill | D71: 7.2 | E71: =D71*1000000*0.9071847 -> 6531729.84 | F71: 82000 | G71: =F71*0.9071847 -> 74389.1454 | H71: 1955 | I71: 2031 | J71: =9116 -> 9116 | K71: 3322 | L71: 0.378 | M71: =K71*L71 -> 1255.716 | N71: 0.98 | O71: =M71*N71 -> 1230.60168 | P71: =O71*2.75 -> 3384.15462 | Q71: =M71*(1-N71) -> 25.11432 | R71: =K71 -> 3322 | S71: 0.1 | T71: =R71*S71 -> 332.2 | U71: =R71*(1-S71) -> 2989.8 | V71: =U71 -> 2989.8 | W71: 83714.4 | X71: =J71+W71 -> 92830.4
B73: Worcester | C73: Central Municipal LF- Worcester County Sanitary Landfill | D73: 4.8 | E73: =D73*1000000*0.9071847 -> 4354486.56 | F73: 70000 | G73: =F73*0.9071847 -> 63502.929 | H73: 1990 | I73: 2028 | J73: =2368 -> 2368 | K73: =862.9 -> 862.9 | R73: =K73*(1-L73) -> 862.9 | S73: 0.1 | T73: =R73*S73 -> 86.29 | U73: =R73*(1-S73) -> 776.61 | V73: =U73+Q73 -> 776.61 | W73: 21745.08 | X73: =J73+P73+W73 -> 24113.08
C74: Worcester Cell 2 & 3 | J74: 26360 | K74: 9608 | L74: 0.89 | M74: =K74*L74 -> 8551.12 | N74: 0.98 | O74: =M74*N74 -> 8380.0976 | P74: =O74*2.75 -> 23045.2684 | Q74: =M74*(1-N74) -> 171.0224 | R74: 1056.88 | S74: 0.1 | T74: 105.688 | U74: 951.192 | V74: 1122.2144 | W74: 31422.0032 | X74: 80827.2716
J76: =SUM(J10:J75) -> 405180.9 | K76: =SUM(K10:K75) -> 150061.04 | O76: =SUM(O10:O74) -> 67035.26846 | P76: 184346.9883 | Q76: 1676.796617 | T76: =SUM(T10:T75) -> 8281.367632
C80: Global Warming Potential | G80: MSW Generation (short ton CH4) | K80: =K76 -> 150061.04 | M80: Flared CH4 (tons) | O80: =O10+O15+O17+O22+O23+O28+O31+O33+O42+O53+O59+O71+O74 -> 47803.16904 | Q80: Landfill Gas-to-Energy (tons) | V80: =O50+O51+O57+O58 -> 19232.09942
G81: CH4 GWP | K81: =$D$83 -> 28 | M81: CH4 GWP | O81: =$D$83 -> 28 | Q81: CH4 GWP | V81: =$D$83 -> 28
C82: CO2_GWP= | D82: ='Summ GHG Rpt Expanded'!$G4 -> 1 | G82: MSW Generation ( MTCO2E) | K82: =K80*K81*0.9072 -> 3811790.514 | M82: Flared CH4 (MTCO2E) | O82: =(O80*O81)*0.907184 -> 1214255.563 | Q82: Landfill Gas-to-Energy (MTCO2E) | V82: =(V80*V81)*0.907184 -> 488517.4807
C83: CH4_GWP = | D83: ='Summ GHG Rpt Expanded'!$G5 -> 28 | G83: Industrial Generation (MTCO2E) | K83: =K82*7% -> 266825.336
C84: N2O_GWP= | D84: ='Summ GHG Rpt Expanded'!$G6 -> 265
C85: SF6_GWP = | D85: ='Summ GHG Rpt Expanded'!$G7 -> 23500 | G85: Potential CH4 (MTCO2E) | K85: =(K82+K83) -> 4078615.85 | M85: CH4 Avoided (MTCO2E) | O85: =O82+V82 -> 1702773.044 | Q85: Landfill Gas-to-Energy (MTCE) | V85: =V82*(12/44) -> 133232.0402
C86: PFCs_GWP= | D86: ='Summ GHG Rpt Expanded'!$G8 -> 11100
G87: Potential CH4 (MTCE) | K87: =K85*(12/44) -> 1112349.777 | M87: CH4 Avoided (MTCE) | O87: =O85*(12/44) -> 464392.6482 | Q87: Oxidation at MSW Landfills (tons) | V87: =T76 -> 8281.367632
Q88: CH4 GWP | V88: =$D$83 -> 28
Q89: Oxidation at MSW Landfills (MTCO2E) | V89: =(V87*V88)*0.907184 -> 210356.278
Q91: Oxidation at MSW Landfills (MTCE) | V91: =V89*(12/44) -> 57369.894
Q93: Oxidation at Industrial Landfills (MTCO2E) | V93: =V89*7% -> 14724.93946
Q95: Oxidation at Industrial Landfills (MTCE) | V95: =V93*(12/44) -> 4015.89258
Q97: Total CH4 Emissions (MTCO2E) | V97: =(K85-O85-V89-V93) -> 2150761.589
Q99: CO2 Emission from (Flaring + LFGTE) (MTCO2E) | V99: =P76*0.907184 -> 167236.6382
Q101: Total CO2 Emissions (MMTCO2E) | V101: =(V99/1000000)+((J76*0.907184)/1000000) -> 0.5348102678
Q104: Total CH4 Emissions (MMTCO2E) | V104: =V97/1000000 -> 2.150761589

Sheet Incinerators
A1: Incinerator Emissions
E4: 2006
D6: Incinerator #1 | E6: Incinerator #4 | F6: Incinerator #5 | G6: Incinerator #6 | H6: Total | I6: CO2 Emissions | J6: Natural Gas Usage (ft3)
H7: (tons) | I7: (short tons)
B8: Fort Detrick | C8: MSW Processed (tons) | D8: 1219.623 | E8: 1080.387 | F8: 334.2985 | G8: 379.186 | H8: =D8+E8+F8+G8 -> 3013.4945 | I8: =H8*C26*C28*0.001102 -> 2996.969792 | J8: 26155300
B10: Harford Resources Recovery | C10: MSW Processed (tons) | H10: 116483 | I10: =H10*C26*C28*0.001102 -> 115844.2573 | J10: 9577100
B12: Montgomery Resource Recovery | C12: MSW Processed (tons) | D12: 207388 | E12: 194349 | F12: 217351 | H12: =SUM(D12:G12) -> 619088 | I12: =H12*C26*C28*0.001102 -> 615693.1876 | J12: 26155300
B14: Wheelabrator Baltimore | C14: MSW Processed (tons) | D14: 219952 | E14: 225614.5 | F14: 225917.2 | H14: =D14+E14+F14 -> 671483.7 | I14: =H14*C26*C28*0.001102 -> 667801.5721 | J14: 16300000
G16: Total | H16: =SUM(H8:H15) -> 1410068.194 | I16: 1402335.987 | J16: 78187700
C18: Natural Gas Usage (ft3) | H18: CO2 (metric tons) | I18: =I16*0.90718 -> 1272171.161
H20: CO2 (MMTCO2E) | I20: =I18/1000000 -> 1.272171161
B24: MSW | E24: Natural Gas
B26: Default high Heat Value (mmbtu/S tons) | C26: 9.95 | E26: 0.001028
B28: Default CO2 Emission factor (kg /mmbtu) | C28: 90.7 | E28: 53.02
B30: CO2 Emissions ( tons/yr) | C30: =H16*C26*C28*0.001102 -> 1402335.987 | E30: =J16*E26*E28*0.001102 -> 4696.267977
B32: CO2 Emissions ( metric tons/yr) | C32: =C30*0.90718 -> 1272171.161 | E32: =E30*0.90718 -> 4260.360383
B34: CO2 Emissions ( million metric tons/yr) | C34: =C32/1000000 -> 1.272171161 | E34: =E32/1000000 -> 0.004260360383
B39: Default N2O Emission factor (kg /mmbtu) | C39: 0.0042 | E39: 0.0001
B41: N2O Emissions ( metric tons/yr) | C41: =H16*C26*C39*0.001102 -> 64.93727833 | E41: =J16*E26*E39*0.001102 -> 0.008857540507
B43: N2O GWP | C43: =$C$55 -> 265 | E43: =$C$55 -> 265
B45: N2O Emissions ( MMTCO2E) | C45: =(C41*C43)/1000000 -> 0.01720837876 | E45: =(E41*E43)/1000000 -> 2.347248234e-06
B51: Global Warming Potential
B53: CO2_GWP= | C53: ='Summ GHG Rpt Expanded'!$G4 -> 1
B54: CH4_GWP = | C54: ='Summ GHG Rpt Expanded'!$G5 -> 28
B55: N2O_GWP= | C55: ='Summ GHG Rpt Expanded'!$G6 -> 265
B56: SF6_GWP = | C56: ='Summ GHG Rpt Expanded'!$G7 -> 23500
B57: PFCs_GWP= | C57: ='Summ GHG Rpt Expanded'!$G8 -> 11100

Sheet OpenBurn
A1: Residential Open Burning - Leaves, Brush, MSW
D3: Emissions
D4: (MMTCO2E)
B7: 2006 | C7: Open Burning | D7: 0.033

Sheet Natural Gas and Oil
A1: Emissions from Natural Gas Activities in MD
B4: Natural Gas - Production | D4: 2006
C6: Activity Data | D6: Emission Factor | E6: Metric Tons CH4 | F6: MMTCO2E
D7: metric tons CH4 per year per activity unit
B8: Total number of wells | C8: 7 | D8: 4.102171797 | E8: =C8*D8 -> 28.71520258 | F8: =E8*$I$25/1000000 -> 0.0008040256721
B9: Number of off-shore platforms not in the Gulf of Mexico | C9: 0 | D9: 13.05579686 | E9: 0 | F9: 0
B10: Total | E10: 21.09501751 | F10: =F8+F9 -> 0.0008040256721
B13: Number of Wells from EIA, " Natural Gas Navigator- Maryland Natural Gas Number of Gas and Gas Condensate Wells" acccessed from: http://tonto.eia.doe.gov/dnav/ng/hist/na1170_smd_8a.htm
B15: Emission factor from US EPA, Emissions Inventory Improvements Program, Volume VII: Chpater 5. Methods for Estimating Methane Emissions from Natural Gas and Oil Systems. This factor represents emissions not just from wells but also from pneumatic devices, dehydrator vents, Kimray pumps, gas engines, and well clean-ups
B20: Natural Gas - Distribution
C22: Activity Data | D22: Emission Factor | E22: Metric Tons CH4 | F22: MMTCO2E | H22: Global Warming Potential
B23: Distribution pipeline | D23: (metric tons CH4 per year per activity unit)
H24: CO2_GWP= | I24: ='Summ GHG Rpt Expanded'!$G4 -> 1
B25: Miles of cast iron distribution pipeline | C25: 1467 | D25: 5.803723566 | E25: =C25*D25 -> 8514.062471 | F25: =E25*$I$25/1000000 -> 0.2383937492 | H25: CH4_GWP = | I25: ='Summ GHG Rpt Expanded'!$G5 -> 28
B26: Miles of unprotected steel distribution pipeline | C26: 602 | D26: 2.122175399 | E26: 1277.54959 | F26: 0.03577138853 | H26: N2O_GWP= | I26: ='Summ GHG Rpt Expanded'!$G6 -> 265
B27: Miles of protected steel distribution pipeline | C27: 5402 | D27: 0.06004688428 | E27: 324.3732689 | F27: 0.009082451528 | H27: SF6_GWP = | I27: ='Summ GHG Rpt Expanded'!$G7 -> 23500
B28: Miles of plastic distribution pipeline | C28: 6309 | D28: 0.371647601 | E28: 2344.724715 | F28: 0.06565229201 | H28: PFCs_GWP= | I28: ='Summ GHG Rpt Expanded'!$G8 -> 11100
B30: Services
B31: Total number of services | C31: 964468 | D31: 0.01526714014 | E31: =C31*D31 -> 14724.66811 | F31: =E31*$I$25/1000000 -> 0.4122907072
B32: Number of unprotected steel services | C32: 111375 | D32: 0.03275030002 | E32: 3647.564664 | F32: 0.1021318106
B33: Number of protected steel services | C33: 179097 | D33: 0.003400786832 | E33: 609.0707192 | F33: 0.01705398014
B34: Total | E34: =SUM(E25:E33) -> 31442.01354 | F34: 0.8803763792
B36: Miles of Distribution pipeline from US Department of Transport, Office of Pipeline Safety, " Distribution and Transmission Annuals data:1990 -2005" . Acess from http://www.phmsa.dot.gov/portal/
B38: All emission factors from US EPA, Emissions Inventory Improvements Program, Volume VII: Chapter 5. Methods for Estimating Methane Emissions from Natural Gas and Oil Systems.
B43: Natural Gas - Transmission
C45: Activity Data | D45: Emission Factor | E45: Metric Tons CH4 | F45: MMTCO2E
D46: metric tons CH4 per year per activity unit
B48: Miles of transmission pipeline | C48: 899 | D48: 0.618479328 | E48: =C48*D48 -> 556.0129159 | F48: =E48*$I$25/1000000 -> 0.01556836164
B49: Number of gas transmission compressor stations | C49: =C48*0.006 -> 5.394 | D49: 983.6596762 | E49: 5305.860293 | F49: 0.1485640882
B50: Number of gas storage compressor stations | C50: =C48*0.0015 -> 1.3485 | D50: 964.1492506 | E50: 1300.155264 | F50: 0.0364043474
B51: Total | E51: =SUM(E47:E50) -> 7162.028473 | F51: =SUM(F48:F50) -> 0.2005367973
B54: Number of LNG storage compressor stations from EIA, US LNG Markets and Uses, http://www.eia.doe.gov/pub/oil_gas/natural_gas/feature_articles/2003/lng/lng2003.pdf
B55: Miles of transmission pipeline from US Department of Transport, Office of Pipeline Safety, " Distribution and Transmission Annuals data:1990 -2005" . Acess from http://www.phmsa.dot.gov/portal/
B56: Number of gas transmission compressor stations = miles of transmission pipeline x 0.006 -EIIP, Volume VII: Chapter 5,March 2005
B57: Number of gas storage compressor station = miles of transmission pipeline x 0.0015 -EIIP, Volume VII: Chapter 5,March 2005
B58: All emission factors from US EPA, Emissions Inventory Improvements Program, Volume VII: Chapter 5. Methods for Estimating Methane Emissions from Natural Gas and Oil Systems.
B65: Natural Gas - Consumption as Pipeline Fuel
C67: 2006 | D67: Emission Factors: | G67: Combustion | H67: CO2 Emissions | I67: N2O Emissions | J67: CH4 Emissions | K67: GHG Emissions
B68: NG Consumption | C68: (Billion Btus) | D68: Carbon | E68: N2O | F68: CH4 | G68: Efficiency (%) | H68: (MMTCO2E) | I68: (MMTCO2E) | J68: (MMTCO2E)
D69: (lbs/MMBtu) | E69: (Mt/BBtu) | F69: (Mt/BBtu)
B70: NGPZB (Billion Btus) | C70: 2426.84465 | D70: 31.87 | E70: 9.495502674e-05 | F70: 0.0009495502674 | G70: 1 | H70: =C70*1000*D70*(44/12)*0.00045359237*0.001/1000000 -> 0.0001286356102 | I70: =C70*E70*$I$26*0.000001 -> 6.106689114e-05 | J70: =C70*F70*$I$25*0.000001 -> 6.452350761e-05 | K70: =H70+I70+J70 -> 0.000254226009
B72: NGPZB (Million Btus) | C72: =C70*1000 -> 2426844.65
B75: Natural Gas as Pipeline Fuel Activity Data (Billion Btu) was obtained from: http://www.eia.doe.gov/states/sep_fuel/html/csv/fuel_adjust_consum.csv
B79: Emissions by Gas (MMTCO2e)
C80: 2006
B81: Natural Gas | C81: =C82+C83+C84+C85 -> 1.081971428
B82: Production | C82: =F10 -> 0.0008040256721
B83: Transmission | C83: =F51 -> 0.2005367973
B84: Distribution | C84: =F34 -> 0.8803763792
B85: Pipeline Fuel | C85: =K70 -> 0.000254226009

Sheet Mining
A1: Emissions from Mining in MD
B3: CH4 from Coal Mining in MD
B4: Emissions from: | C4: Coal Basin(s) (if applicable) | D4: Measured Ventilation Emissions (mcf) | F4: Degasification System Emissions (mcf) | H4: Methane Recovered from Degasification Systems and Usef for Energy (mcf) | J4: Emissions (mcf CH4) | L4: Emissions (MTCH4) | N4: Emissions (MTCO2E)
B5: Mines
B6: Underground Mines | D6: 0 | E6: + | F6: 0 | G6: - | H6: 0 | I6: = | J6: =D6+F6-H6 -> 0 | K6: = | L6: =J6*1000000*0.0000192 -> 0 | M6: = | N6: =(L6*$Q$9) -> 0 | P6: Global Warming Potential
D8: Surface Coal Production ('000 short tons) | F8: Basin-specific EF (ft3/short ton) | H8: Emissions ('000 ft3 CH4) | J8: Emissions (MTCH4) | L8: Emissions (MTCO2E) | P8: CO2_GWP= | Q8: ='Summ GHG Rpt Expanded'!$G4 -> 1
B9: Surface Mines | C9: Northern Appalachian Basin | D9: 2228 | E9: x | F9: 119 | G9: = | H9: =D9*F9 -> 265132 | I9: = | J9: 5090.5344 | K9: = | L9: =(J9*$Q$9) -> 142534.9632 | P9: CH4_GWP = | Q9: ='Summ GHG Rpt Expanded'!$G5 -> 28
C10: --- | D10: 0 | E10: x | F10: 0 | G10: = | H10: - | I10: = | J10: - | K10: = | L10: - | P10: N2O_GWP= | Q10: ='Summ GHG Rpt Expanded'!$G6 -> 265
P11: SF6_GWP = | Q11: ='Summ GHG Rpt Expanded'!$G7 -> 23500
B12: Post-Mining Activity | D12: Coal Production ('000 short tons) | F12: Basin- & Mine-specific EF (ft3/short ton) | H12: Emissions ('000 ft3 CH4) | J12: Emissions (MTCH4) | L12: Emissions (MTCO2E) | P12: PFCs_GWP= | Q12: ='Summ GHG Rpt Expanded'!$G8 -> 11100
B13: Underground Mines | C13: Northern Appalachian Basin | D13: 0 | E13: x | F13: 44.98 | G13: = | H13: =D13*F13 -> 0 | I13: = | J13: =H13*0.0000192*1000 -> 0 | K13: = | L13: =(J13*$Q$9) -> 0
C14: --- | D14: 0 | E14: x | F14: 0 | G14: = | H14: - | I14: = | J14: - | K14: = | L14: -
B15: Surface Mines | C15: Northern Appalachian Basin | D15: 2228 | E15: x | F15: 19.3375 | G15: = | H15: =D15*F15 -> 43083.95 | I15: = | J15: =H15*0.0000192*1000 -> 827.21184 | K15: = | L15: =(J15*$Q$9) -> 23161.93152
C16: --- | D16: 0 | E16: x | F16: 0 | G16: = | H16: --- | I16: = | J16: --- | K16: = | L16: ---
B17: Post-Mining Total | H17: =SUM(H13:H16) -> 43083.95 | I17: = | J17: =SUM(J13:J16) -> 827.21184 | K17: = | L17: =SUM(L13:L16) -> 23161.93152
B19: Total Coal Mining | C19: (MTCO2E) | D19: =SUM(D20:D22) -> 165696.8947
C20: Underground Mines | D20: =N6 -> 0
C21: Surface Mines | D21: =SUM(L9:L10) -> 142534.9632
C22: Post-Mining Activity | D22: =L17 -> 23161.93152
B25: Maryland Abandoned Coal Mines Emissions Summary
D26: Default MD Abandoned Mine Emissions Gg/Year | F26: Mine Status Percent | H26: Emissions (MTCE) | J26: Emissions (MTCH4) | L26: Emissions (MTCO2E)
C27: Vented | D27: 0.2893143272 | E27: x | F27: 0.125 | G27: = | H27: =D27*F27*1000*12/44*$Q$9 -> 276.163676 | I27: = | J27: =D27*F27*1000 -> 36.1642909 | K27: = | L27: =D27*F27*1000*$Q$9 -> 1012.600145
C28: Sealed | D28: 0.2893143272 | E28: x | F28: 0.25 | G28: = | H28: 552.3273519 | I28: = | J28: 72.3285818 | K28: = | L28: 2025.20029
C29: Flooded | D29: 0.2893143272 | E29: x | F29: 0.625 | G29: = | H29: 1380.81838 | I29: = | J29: 180.8214545 | K29: = | L29: 5063.000726
B32: Maryland Coal Mines Emissions Summary
B33: Emissions (MMTCO2E)
C34: 2006
B35: Coal Mining | C35: =D19/1000000 -> 0.1656968947
B36: Abandoned Coal Mines | C36: =SUM(C37:C39) -> 0.008100801162
B37: Vented | C37: =L27/1000000 -> 0.001012600145
B38: Sealed | C38: 0.00202520029
B39: Flooded | C39: 0.005063000726
B43: Emissions (MTCO2E)
C44: 2006
B45: Coal Mining | C45: =D19 -> 165696.8947
B46: Abandoned Coal Mines | C46: =SUM(C47:C49) -> 8100.801162
B47: Vented | C47: =L27 -> 1012.600145
B48: Sealed | C48: 2025.20029
B49: Flooded | C49: 5063.000726
B51: Emissions (MTCE) | C51: 2006
B52: Coal Mining | C52: =C45*12/44 -> 45190.0622
B53: Abandoned Coal Mines | C53: =SUM(C54:C56) -> 2209.309408
B54: Vented | C54: =H27 -> 276.163676
B55: Sealed | C55: 552.3273519
B56: Flooded | C56: 1380.81838
B58: Emissions by Gas (MTCH4) | C58: 2006
B59: Coal Mining | C59: =C45/21 -> 7890.32832
B60: Abandoned Coal Mines | C60: =SUM(C61:C63) -> 289.3143272
B61: Vented | C61: =J27 -> 36.1642909
B62: Sealed | C62: 72.3285818
B63: Flooded | C63: 180.8214545

Sheet Wastewater
B1: Maryland Wastewater Emissions Summary
B3: Maryland Municipal Wastewater Methane Emissions
B4: Year | C4: State Population | E4: Per Capita BOD5 (kg/day) | G4: Days per Year (days) | I4: Unit Conversion (metric tons/kg) | K4: Emission Factor (Gg CH4/Gg BOD5) | M4: WW BOD5 anaerobically digested (percent) | O4: Emissions (metric tons CH4) | Q4: CH4 GWP (CO2 Eq.) | S4: Unit Conversion (MMT/MT) | U4: C/CO2 | W4: Emissions (MMTCE) | Y4: Emissions (MMTCO2E)
B5: 2006 | C5: 5602258 | D5: x | E5: 0.09 | F5: x | G5: 365 | H5: x | I5: 0.001 | J5: x | K5: 0.6 | L5: x | M5: 0.1625 | N5: = | O5: =C5*$E$5*$G$5*$M$5*$K$5*$I$5 -> 17943.33209 | P5: x | Q5: =I30 -> 28 | R5: x | S5: 1e-06 | T5: x | U5: =12/44 -> 0.2727272727 | V5: = | W5: =O5*Q$5*S$5*U$5 -> 0.1370218087 | X5: = | Y5: =W5*44/12 -> 0.5024132986
B7: Maryland Direct Nitrous Oxide Emissions from Municipal Wastewater Treatment
B8: Year | C8: State Population | E8: Fraction of Population not on Septic | G8: Direct N2O Emissions from Wastewater Treatment (g N2O/person/year) | I8: Unit Conversion (g/metric ton) | K8: Emissions (Metric Tons N2O) | M8: N2O GWP (CO2 Eq.) | O8: Unit Conversion (MMT/MT) | Q8: C/CO2 | S8: Emissions (MMTCE) | U8: Emissions (MMTCO2E)
B9: 2006 | C9: 5602258 | D9: x | E9: 0.79 | F9: x | G9: 4 | H9: x | I9: 1e-06 | J9: = | K9: =C9*E9*G9*I9 -> 17.70313528 | L9: x | M9: =I31 -> 265 | N9: x | O9: =1/1000000 -> 1e-06 | P9: x | Q9: =12/44 -> 0.2727272727 | R9: = | S9: =K9*M9*O9*Q9 -> 0.001279453868 | T9: = | U9: =S9*44/12 -> 0.004691330849
B11: Maryland Effulent Nitrous Oxide Emissions from Municipal Wastewater Treatment
B12: Year | C12: State Population | E12: Protein (kg/ person/ year) | G12: FracNPR (kg N/kg protein) | I12: Fraction Non-Consumption N | K12: Unit Conversion (metric tons/kg) | M12: N in Domestic Wastewater (metric tons) | O12: Direct N Emissions from Domestic Wastewater (metric tons) | Q12: Biosolids Available N (metric tons) | S12: Percentage of Biosolids Used as Fertilizer | U12: Emission Factor (kg N2O-N/ kg sewage N-produced) | W12: N2O/N2 | Y12: Emissions (metric tons N2O) | AA12: N2O GWP (CO2 Eq.) | AC12: Unit Conversion (MMT/MT) | AE12: C/CO2 | AG12: Emissions from Biosolids (MMTCE) | AI12: Direct Emissions (MMTCE) | AK12: Total Emissions (MMTCE) | AM12: Emission (MMTCO2E)
AC13: (MMT/MT)
B14: 2006 | C14: 5602258 | D14: x | E14: 41.9 | F14: x | G14: 0.16 | H14: x | I14: 1.75 | J14: x | K14: 0.001 | L14: = | M14: =C14*E14*G14*I14*K14 -> 65725.69086 | N14: - | O14: 11.26563154 | P14: = | Q14: =M14-O14 -> 65714.42522 | R14: x | S14: 0 | T14: x | U14: 0.005 | V14: x | W14: =44/28 -> 1.571428571 | X14: = | Y14: =Q14*(1-S14)*U14*W14 -> 516.3276268 | Z14: x | AA14: =I31 -> 265 | AB14: x | AC14: =1/1000000 -> 1e-06 | AD14: x | AE14: =12/44 -> 0.2727272727 | AF14: = | AG14: =Y14*AA$14*AC$14*AE$14 -> 0.03731640575 | AH14: + | AI14: =0.00149671961912727*($I$31/310) -> 0.001279453868 | AJ14: = | AK14: =AG14+AI14 -> 0.03859585962 | AL14: = | AM14: =AK14/AE14 -> 0.1415181519
B16: Maryland Industrial Wastewater Methane Emissions - CH4
B17: Year | C17: Production Processed | E17: WW Outflow | G17: Unit Conversion | I17: COD | K17: Emission Factor | M17: COD Degraded | O17: Emissions | Q17: Unit Conversion | S17: Emissions | U17: CH4 GWP | W17: C/CO2 | Y17: Emissions | AA17: Emissions
C18: (metric tons) | E18: (m3/metric ton) | G18: (l/m3) | I18: (g COD/l) | K18: (g CH4/g COD) | M18: (percent) | O18: (g CH4) | Q18: (g/Tg) | S18: (Tg or MMT CH4) | U18: (CO2 Eq.) | Y18: (MMTCE) | AA18: (MMTCO2E)
B19: 2006 | C19: 8935.92 | D19: x | E19: 7.9 | F19: x | G19: 1000 | H19: x | I19: 4.1 | J19: x | K19: 0.25 | L19: x | M19: 0.33 | N19: = | O19: =C19*$E$19*$I$19*$M$19*$K$19*$G$19 -> 23878342.03 | P19: x | Q19: 1e-12 | R19: = | S19: =O19*Q19 -> 2.387834203e-05 | T19: x | U19: =I30 -> 28 | V19: x | W19: =12/44 -> 0.2727272727 | X19: = | Y19: =S19*U$19*W$19 -> 0.0001823437027 | Z19: = | AA19: =Y19*44/12 -> 0.0006685935767
B25: Emissions were not calculated for the following sources: Industrial fruits & vegetables, Industrial poultry, and Industrial pulp & paper.
B27: Emissions (MMTCO2E) | C27: 2006 | H27: Global Warming Potential
B28: Municipal CH4 | C28: =Y5 -> 0.5024132986
B29: Municipal N2O | C29: =AM14 -> 0.1415181519 | H29: CO2_GWP= | I29: ='Summ GHG Rpt Expanded'!$G4 -> 1
B30: Industrial CH4 | C30: =SUM(C31:C34) -> 0.0006685935767 | H30: CH4_GWP = | I30: ='Summ GHG Rpt Expanded'!$G5 -> 28
B31: Fruits & Vegetables | C31: 0 | H31: N2O_GWP= | I31: ='Summ GHG Rpt Expanded'!$G6 -> 265
B32: Red Meat | C32: =AA19 -> 0.0006685935767 | H32: SF6_GWP = | I32: ='Summ GHG Rpt Expanded'!$G7 -> 23500
B33: Poultry | C33: 0 | H33: PFCs_GWP= | I33: ='Summ GHG Rpt Expanded'!$G8 -> 11100
B34: Pulp & Paper | C34: 0
B35: Total Emissions | C35: =SUM(C28:C30) -> 0.6446000441
S36: =SUM(C28:C30) -> 0.6446000441

Sheet Agricultural
A1: Agricultural Emissions in Maryland
B3: Enteric Fermentation Emissions | Y3: Global Warming Potential
C4: Number of Animals ('000 head) | E4: Emission Factor (kg CH4/head) | G4: Emissions (kg CH4) | I4: Emissions (MMTCH4) | K4: Emissions (MMTCE) | M4: Emissions (MMTCO2E)
B5: Dairy Cattle | Y5: CO2_GWP= | Z5: ='Summ GHG Rpt Expanded'!$G4 -> 1
B6: Dairy Cows | C6: 70 | D6: x | E6: 129.1436282 | F6: = | G6: =C6*E6*1000 -> 9040053.977 | H6: = | I6: =G6/1000*10^-6 -> 0.009040053977 | J6: = | K6: =(I6*$Z$6)*12/44 -> 0.06903313946 | L6: = | M6: =K6/(12/44) -> 0.2531215114 | Y6: CH4_GWP = | Z6: ='Summ GHG Rpt Expanded'!$G5 -> 28
B7: Dairy Replacement Heifers | C7: 30 | D7: x | E7: 62.58009703 | F7: = | G7: 1877402.911 | H7: = | I7: 0.001877402911 | J7: = | K7: 0.01433653132 | L7: = | M7: 0.0525672815 | Y7: N2O_GWP= | Z7: ='Summ GHG Rpt Expanded'!$G6 -> 265
B8: Replacements 0-12 mos. | C8: 0 | D8: x | E8: 46.08812763 | F8: = | G8: 0 | H8: = | I8: 0 | J8: = | K8: 0 | L8: = | M8: 0 | Y8: SF6_GWP = | Z8: ='Summ GHG Rpt Expanded'!$G7 -> 23500
B9: Replacements 12-24 mos. | C9: 0 | D9: x | E9: 69.57120957 | F9: = | G9: 0 | H9: = | I9: 0 | J9: = | K9: 0 | L9: = | M9: 0 | Y9: PFCs_GWP= | Z9: ='Summ GHG Rpt Expanded'!$G8 -> 11100
B10: Beef Cattle
B11: Beef Cows | C11: 49 | D11: x | E11: 93.47313617 | F11: = | G11: =C11*E11*1000 -> 4580183.672 | H11: = | I11: =G11/1000*10^-6 -> 0.004580183672 | J11: = | K11: =(I11*$Z$6)*12/44 -> 0.03497594804 | L11: = | M11: =K11/(12/44) -> 0.1282451428
B12: Beef Replacement Heifers | C12: 13 | D12: x | E12: 65.82795377 | F12: = | G12: 855763.399 | H12: = | I12: 0.000855763399 | J12: = | K12: 0.006534920501 | L12: = | M12: 0.02396137517
B13: Replacements 0-12 mos. | C13: 0 | D13: x | E13: 59.20211122 | F13: = | G13: 0 | H13: = | I13: 0 | J13: = | K13: 0 | L13: = | M13: 0
B14: Replacements 12-24 mos. | C14: 0 | D14: x | E14: 68.60494798 | F14: = | G14: 0 | H14: = | I14: 0 | J14: = | K14: 0 | L14: = | M14: 0
B15: Heifer Stockers | C15: 10 | D15: x | E15: 59.11051117 | F15: = | G15: 591105.1117 | H15: = | I15: 0.0005911051117 | J15: = | K15: 0.004513893581 | L15: = | M15: 0.01655094313
B16: Steer Stockers | C16: 18 | D16: x | E16: 57.31538447 | F16: = | G16: 1031676.921 | H16: = | I16: 0.001031676921 | J16: = | K16: 0.007878260121 | L16: = | M16: 0.02888695378
B17: Feedlot Heifers | C17: 3.912 | D17: x | E17: 33.19870173 | F17: = | G17: 129873.3212 | H17: = | I17: 0.0001298733212 | J17: = | K17: 0.0009917599071 | L17: = | M17: 0.003636452993
B18: Feedlot Steer | C18: 7.395 | D18: x | E18: 32.16408094 | F18: = | G18: 237853.3785 | H18: = | I18: 0.0002378533785 | J18: = | K18: 0.001816334891 | L18: = | M18: 0.006659894599
B19: Bulls | C19: 3 | D19: x | E19: 53 | F19: = | G19: 159000 | H19: = | I19: 0.000159 | J19: = | K19: 0.001214181818 | L19: = | M19: 0.004452
B20: Other
B21: Sheep | C21: 22 | D21: x | E21: 8 | F21: = | G21: =C21*E21*1000 -> 176000 | H21: = | I21: =G21/1000*10^-6 -> 0.000176 | J21: = | K21: =(I21*$Z$6)*12/44 -> 0.001344 | L21: = | M21: =K21/(12/44) -> 0.004928
B22: Goats | C22: 9.601 | D22: x | E22: 5 | F22: = | G22: 48005 | H22: = | I22: 4.8005e-05 | J22: = | K22: 0.0003665836364 | L22: = | M22: 0.00134414
B23: Swine | C23: 33 | D23: x | E23: 1.5 | F23: = | G23: 49500 | H23: = | I23: 4.95e-05 | J23: = | K23: 0.000378 | L23: = | M23: 0.001386
B24: Horses | C24: 65.511 | D24: x | E24: 18 | F24: = | G24: 1179198 | H24: = | I24: 0.001179198 | J24: = | K24: 0.009004784727 | L24: = | M24: 0.033017544
B25: TOTAL | G25: =SUM(G6:G24) -> 19955615.69 | I25: =SUM(I6:I24) -> 0.01995561569 | K25: =SUM(K6:K24) -> 0.152388338 | M25: =SUM(M6:M24) -> 0.5587572394
B27: Manure Management Methane Emissions
C28: Number of Animals ('000 head) | E28: Typical Animal Mass (TAM) (kg) | G28: Volatile Solids (VS) [kg VS/1000 kg animal mass/day] | I28: Total VS (kg/yr) | K28: Max Pot. Emissions (m3 CH4/ kg VS) | M28: Weighted MCF | O28: Emissions (m3 CH4) | Q28: Emissions (Metric Tons CH4) | S28: Emissions (MMTCH4) | U28: Emissions (MMTCE) | W28: Emissions (MMTCO2E)
B29: Dairy Cattle
B30: Dairy Cows | C30: 70 | D30: x | E30: 604 | F30: x | G30: 7.75936432 | H30: = | I30: =C30*E30*G30*365 -> 119744062.1 | J30: x | K30: 0.24 | L30: x | M30: 0.1166592703 | N30: = | O30: =(I30*K30)*M30 -> 3352621.178 | P30: = | Q30: =O30*0.000662 -> 2219.43522 | R30: = | S30: =Q30/1000000 -> 0.00221943522 | T30: = | U30: =(S30*$Z$6)*12/44 -> 0.01694841441 | V30: = | W30: =U30/(12/44) -> 0.06214418616
B31: Dairy Replacement Heifers | C31: 30 | D31: x | E31: 476 | F31: x | G31: 6.695229139 | H31: = | I31: 34896873.32 | J31: x | K31: 0.17 | L31: x | M31: 0.01241510288 | N31: = | O31: 73652.20629 | P31: = | Q31: 48.75776057 | R31: = | S31: 4.875776057e-05 | T31: = | U31: 0.0003723319898 | V31: = | W31: 0.001365217296
B32: Beef Cattle
B33: Feedlot Heifers | C33: 3.912 | D33: x | E33: 420 | F33: x | G33: 3.498507435 | H33: = | I33: =C33*E33*G33*365 -> 2098088.495 | J33: x | K33: 0.33 | L33: x | M33: 0.01305809582 | N33: = | O33: =(I33*K33)*M33 -> 9041.023397 | P33: = | Q33: =O33*0.000662 -> 5.985157489 | R33: = | S33: =Q33/1000000 -> 5.985157489e-06 | T33: = | U33: =(S33*$Z$6)*12/44 -> 4.570483901e-05 | V33: = | W33: =U33/(12/44) -> 0.0001675844097
B34: Feedlot Steer | C34: 7.395 | D34: x | E34: 420 | F34: x | G34: 3.174804041 | H34: = | I34: 3599127.713 | J34: x | K34: 0.33 | L34: x | M34: 0.01296107692 | N34: = | O34: 15394.02847 | P34: = | Q34: 10.19084685 | R34: = | S34: 1.019084685e-05 | T34: = | U34: 7.782101229e-05 | V34: = | W34: 0.0002853437117
B35: Bulls | C35: 3 | D35: x | E35: 750 | F35: x | G35: 6.04 | H35: = | I35: 4960350 | J35: x | K35: 0.17 | L35: x | M35: 0.011 | N35: = | O35: 9275.8545 | P35: = | Q35: 6.140615679 | R35: = | S35: 6.140615679e-06 | T35: = | U35: 4.689197428e-05 | V35: = | W35: 0.000171937239
B36: Calves | C36: 37 | D36: x | E36: 118 | F36: x | G36: 6.41 | H36: = | I36: 10214911.9 | J36: x | K36: 0.17 | L36: x | M36: 0.011 | N36: = | O36: 19101.88525 | P36: = | Q36: 12.64544804 | R36: = | S36: 1.264544804e-05 | T36: = | U36: 9.656523956e-05 | V36: = | W36: 0.000354072545
B37: Beef Cows | C37: 49 | D37: x | E37: 533 | F37: x | G37: 6.917091451 | H37: = | I37: 65938592.26 | J37: x | K37: 0.17 | L37: x | M37: 0.011 | N37: = | O37: 123305.1675 | P37: = | Q37: 81.6280209 | R37: = | S37: 8.16280209e-05 | T37: = | U37: 0.0006233412505 | V37: = | W37: 0.002285584585
B38: Beef Replacement Heifers | C38: 13 | D38: x | E38: 420 | F38: x | G38: 7.488028089 | H38: = | I38: 14922891.18 | J38: x | K38: 0.17 | L38: x | M38: 0.011 | N38: = | O38: 27905.8065 | P38: = | Q38: 18.47364391 | R38: = | S38: 1.847364391e-05 | T38: = | U38: 0.0001410714625 | V38: = | W38: 0.0005172620293
B39: Steer Stockers | C39: 18 | D39: x | E39: 318 | F39: x | G39: 7.939109084 | H39: = | I39: 16586863.04 | J39: x | K39: 0.17 | L39: x | M39: 0.011 | N39: = | O39: 31017.43389 | P39: = | Q39: 20.53354124 | R39: = | S39: 2.053354124e-05 | T39: = | U39: 0.0001568015876 | V39: = | W39: 0.0005749391546
B40: Heifer Stockers | C40: 10 | D40: x | E40: 420 | F40: x | G40: 8.334860246 | H40: = | I40: 12777340.76 | J40: x | K40: 0.17 | L40: x | M40: 0.011 | N40: = | O40: 23893.62722 | P40: = | Q40: 15.81758122 | R40: = | S40: 1.581758122e-05 | T40: = | U40: 0.000120788802 | V40: = | W40: 0.0004428922741
B41: Swine
B42: Breeding Swine | C42: 6 | D42: x | E42: 198 | F42: x | G42: 2.6 | H42: = | I42: =C42*E42*G42*365 -> 1127412 | J42: x | K42: 0.48 | L42: x | M42: 0.2961521568 | N42: = | O42: =(I42*K42)*M42 -> 160265.0378 | P42: = | Q42: =O42*0.000662 -> 106.095455 | R42: = | S42: =Q42/1000000 -> 0.000106095455 | T42: = | U42: =(S42*$Z$6)*12/44 -> 0.0008101834748 | V42: = | W42: =U42/(12/44) -> 0.002970672741
B43: Market Under 60 lbs | C43: 10 | D43: x | E43: 15.88 | F43: x | G43: 8.8 | H43: = | I43: 510065.6 | J43: x | K43: 0.48 | L43: x | M43: 0.2966416789 | N43: = | O43: 72627.22364 | P43: = | Q43: 48.07922205 | R43: = | S43: 4.807922205e-05 | T43: = | U43: 0.0003671504229 | V43: = | W43: 0.001346218217
B44: Market 60-119 lbs | C44: 6 | D44: x | E44: 40.6 | F44: x | G44: 5.4 | H44: = | I44: 480135.6 | J44: x | K44: 0.48 | L44: x | M44: 0.2966416789 | N44: = | O44: 68365.55063 | P44: = | Q44: 45.25799452 | R44: = | S44: 4.525799452e-05 | T44: = | U44: 0.0003456065036 | V44: = | W44: 0.001267223846
B45: Market 120-179 lbs | C45: 7 | D45: x | E45: 67.82 | F45: x | G45: 5.4 | H45: = | I45: 935712.54 | J45: x | K45: 0.48 | L45: x | M45: 0.2966416789 | N45: = | O45: 133234.2426 | P45: = | Q45: 88.20106862 | R45: = | S45: 8.820106862e-05 | T45: = | U45: 0.0006735354331 | V45: = | W45: 0.002469629921
B46: Market over 180 lbs | C46: 4 | D46: x | E46: 90.75 | F46: x | G46: 5.4 | H46: = | I46: 715473 | J46: x | K46: 0.48 | L46: x | M46: 0.2966416789 | N46: = | O46: 101874.7737 | P46: = | Q46: 67.4411002 | R46: = | S46: 6.74411002e-05 | T46: = | U46: 0.0005150047652 | V46: = | W46: 0.001888350806
B47: Poultry
B48: Layers
B49: Hens > 1 yr | C49: 2560 | D49: x | E49: 1.8 | F49: x | G49: 10.8 | H49: = | I49: =C49*E49*G49*365 -> 18164736 | J49: x | K49: 0.39 | L49: x | M49: 0.05097600235 | N49: = | O49: =(I49*K49)*M49 -> 361126.5938 | P49: = | Q49: =O49*0.000662 -> 239.0658051 | R49: = | S49: =Q49/1000000 -> 0.0002390658051 | T49: = | U49: =(S49*$Z$6)*12/44 -> 0.001825593421 | V49: = | W49: =U49/(12/44) -> 0.006693842542
B50: Pullets | C50: 938 | D50: x | E50: 1.8 | F50: x | G50: 9.7 | H50: = | I50: 5977780.2 | J50: x | K50: 0.39 | L50: x | M50: 0.05097600235 | N50: = | O50: 118842.1016 | P50: = | Q50: 78.67347128 | R50: = | S50: 7.867347128e-05 | T50: = | U50: 0.0006007792352 | V50: = | W50: 0.002202857196
B51: Chickens | C51: 16 | D51: x | E51: 1.8 | F51: x | G51: 10.8 | H51: = | I51: 113529.6 | J51: x | K51: 0.39 | L51: x | M51: 0.05097600235 | N51: = | O51: 2257.041211 | P51: = | Q51: 1.494161282 | R51: = | S51: 1.494161282e-06 | T51: = | U51: 1.140995888e-05 | V51: = | W51: 4.183651589e-05
B52: Broilers | C52: 54090.909 | D52: x | E52: 0.9 | F52: x | G52: 15 | H52: = | I52: 266532954.1 | J52: x | K52: 0.36 | L52: x | M52: 0.015 | N52: = | O52: 1439277.952 | P52: = | Q52: 952.8020043 | R52: = | S52: 0.0009528020043 | T52: = | U52: 0.007275942578 | V52: = | W52: 0.02667845612
B53: Turkeys | C53: 243.333 | D53: x | E53: 6.8 | F53: x | G53: 9.7 | H53: = | I53: 5858339.308 | J53: x | K53: 0.36 | L53: x | M53: 0.015 | N53: = | O53: 31635.03226 | P53: = | Q53: 20.94239136 | R53: = | S53: 2.094239136e-05 | T53: = | U53: 0.0001599237158 | V53: = | W53: 0.0005863869581
B54: Other
B55: Sheep on Feed | C55: 0 | D55: x | E55: 27 | F55: x | G55: 9.205479452 | H55: = | I55: =C55*E55*G55*365 -> 0 | J55: x | K55: 0.3605637213 | L55: x | M55: 0.012 | N55: = | O55: =(I55*K55)*M55 -> 0 | P55: = | Q55: =O55*0.000662 -> 0 | R55: = | S55: =Q55/1000000 -> 0 | T55: = | U55: =(S55*$Z$6)*12/44 -> 0 | V55: = | W55: =U55/(12/44) -> 0
B56: Sheep Not on Feed | C56: 22 | D56: x | E56: 27 | F56: x | G56: 9.205479452 | H56: = | I56: 1995840 | J56: x | K56: 0.1899677145 | L56: x | M56: 0.011 | N56: = | O56: 4170.596797 | P56: = | Q56: 2.76093508 | R56: = | S56: 2.76093508e-06 | T56: = | U56: 2.108350424e-05 | V56: = | W56: 7.730618223e-05
B57: Goats | C57: 9.601 | D57: x | E57: 64 | F57: x | G57: 9.534246575 | H57: = | I57: 2138334.72 | J57: x | K57: 0.169971113 | L57: x | M57: 0.011 | N57: = | O57: 3998.006456 | P57: = | Q57: 2.646680274 | R57: = | S57: 2.646680274e-06 | T57: = | U57: 2.0211013e-05 | V57: = | W57: 7.410704766e-05
B58: Horses | C58: 65.511 | D58: x | E58: 450 | F58: x | G58: 10 | H58: = | I58: 107601817.5 | J58: x | K58: 0.330568819 | L58: x | M58: 0.011 | N58: = | O58: 391267.8631 | P58: = | Q58: 259.0193254 | R58: = | S58: 0.0002590193254 | T58: = | U58: 0.001977965757 | V58: = | W58: 0.00725254111
B59: TOTAL | O59: =SUM(O30:O58) -> 6574150.227 | Q59: =SUM(Q30:Q58) -> 4352.08745 | S59: =SUM(S30:S58) -> 0.00435208745 | U59: =SUM(U30:U58) -> 0.03323412235 | W59: =SUM(W30:W58) -> 0.1218584486
B61: Manure Management N20 Emissions
C62: Number of Animals ('000 head) | E62: Total K-Nitrogen Excreted (kg) | G62: Unvolatilized N from Manure in Anaerobic Lagoons and Liquid Systems (kg) | I62: Unvolatilized N from Manure in Solid Storage, Drylot & Other Systems (kg) | K62: Emissions from Anaerobic Lagoons and Liquid Systems (kg N2O-N) | M62: Emissions from Solid Storage, Drylot, & Other Systems (kg N2O-N) | O62: Total N2O Emissions (kg N2O) | Q62: Emissions (MTCE) | S62: Emissions (MMTCE) | U62: Emissions (MMTCO2E)
B63: Dairy
B64: Dairy Cows | C64: 70 | E64: 6790168 | G64: 1569976.863 | I64: 1758775.718 | K64: 1569.976863 | L64: + | M64: 35175.51437 | N64: = | O64: 57742.91479 | P64: = | Q64: =O64/1000*$Z$7*12/44 -> 4173.237933 | R64: = | S64: =Q64/10^6 -> 0.004173237933 | T64: = | U64: =S64/(12/44) -> 0.01530187242
B65: Dairy Replacement Heifers | C65: 30 | E65: 1615782 | G65: 373590.2198 | I65: 792106.838 | K65: 373.5902198 | L65: + | M65: 15842.13676 | N65: = | O65: 24894.78634 | P65: = | Q65: 1799.214103 | R65: = | S65: 0.001799214103 | T65: = | U65: 0.006597118379
B66: Beef Cattle
B67: Feedlot Heifers | C67: 3.912 | E67: 179912.88 | G67: NA | I67: 179912.88 | K67: NA | L67: + | M67: 3598.2576 | N67: = | O67: 5654.4048 | P67: = | Q67: =O67/1000*$Z$7*12/44 -> 408.659256 | R67: = | S67: =Q67/10^6 -> 0.000408659256 | T67: = | U67: =S67/(12/44) -> 0.001498417272
B68: Feedlot Steer | C68: 7.395 | E68: 340096.05 | G68: NA | I68: 340096.05 | K68: NA | L68: + | M68: 6801.921 | N68: = | O68: 10688.733 | P68: = | Q68: 772.503885 | R68: = | S68: 0.000772503885 | T68: = | U68: 0.002832514245
B69: Swine
B70: Breeding Swine | C70: 6 | E70: 101900.7 | G70: 76526.43726 | I70: 3831.762443 | K70: 76.52643726 | L70: + | M70: 76.63524887 | N70: = | O70: 240.6826496 | P70: = | Q70: =O70/1000*$Z$7*12/44 -> 17.3947915 | R70: = | S70: =Q70/10^6 -> 1.73947915e-05 | T70: = | U70: =S70/(12/44) -> 6.378090215e-05
B71: Market Under 60 lbs | C71: 10 | E71: 34777.2 | G71: 26117.33986 | I71: 1307.723783 | K71: 26.11733986 | L71: + | M71: 26.15447565 | N71: = | O71: 82.14142438 | P71: = | Q71: 5.936584762 | R71: = | S71: 5.936584762e-06 | T71: = | U71: 2.176747746e-05
B72: Market 60-119 lbs | C72: 6 | E72: 37343.88 | G72: 28044.89164 | I72: 1404.238409 | K72: 28.04489164 | L72: + | M72: 28.08476819 | N72: = | O72: 88.20375116 | P72: = | Q72: 6.374725652 | R72: = | S72: 6.374725652e-06 | T72: = | U72: 2.337399406e-05
B73: Market 120-179 lbs | C73: 7 | E73: 72777.642 | G73: 54655.3032 | I73: 2736.650831 | K73: 54.6553032 | L73: + | M73: 54.73301662 | N73: = | O73: 171.8959311 | P73: = | Q73: 12.42338775 | R73: = | S73: 1.242338775e-05 | T73: = | U73: 4.555242175e-05
B74: Market over 180 lbs | C74: 4 | E74: 55647.9 | G74: 41791.03312 | I74: 2092.522753 | K74: 41.79103312 | L74: + | M74: 41.85045506 | N74: = | O74: 131.4366243 | P74: = | Q74: 9.499283299 | R74: = | S74: 9.499283299e-06 | T74: = | U74: 3.483070543e-05
B75: Poultry
B76: Layers
B77: Hens > 1 yr | C77: 2560 | E77: 1395993.6 | G77: 69799.68 | I77: 1326193.92 | K77: 69.79968 | L77: + | M77: 6630.9696 | N77: = | O77: 10529.7803 | P77: = | Q77: =O77/1000*$Z$7*12/44 -> 761.0159397 | R77: = | S77: =Q77/10^6 -> 0.0007610159397 | T77: = | U77: =S77/(12/44) -> 0.002790391779
B78: Pullets | C78: 938 | E78: 382084.92 | G78: 19104.246 | I78: 362980.674 | K78: 19.104246 | L78: + | M78: 1814.90337 | N78: = | O78: 2882.011968 | P78: = | Q78: 208.290865 | R78: = | S78: 0.000208290865 | T78: = | U78: 0.0007637331715
B79: Chickens | C79: 16 | E79: 8724.96 | G79: 436.248 | I79: 8288.712 | K79: 0.436248 | L79: + | M79: 41.44356 | N79: = | O79: 65.81112686 | P79: = | Q79: 4.756349623 | R79: = | S79: 4.756349623e-06 | T79: = | U79: 1.743994862e-05
B80: Broilers | C80: 54090.909 | E80: 19545749.97 | G80: NA | I80: 19545749.97 | K80: NA | L80: + | M80: 390914.9993 | N80: = | O80: 614294.999 | P80: = | Q80: 44396.77493 | R80: = | S80: 0.04439677493 | T80: = | U80: 0.1627881747
B81: Turkeys | C81: 243.333 | E81: 446924.8544 | G81: NA | I81: 446924.8544 | K81: NA | L81: + | M81: 8938.497089 | N81: = | O81: 14046.20971 | P81: = | Q81: 1015.157884 | R81: = | S81: 0.001015157884 | T81: = | U81: 0.003722245573
B82: Other
B83: Sheep on Feed | C83: 0 | E83: 0 | G83: NA | I83: 0 | K83: NA | L83: + | M83: 0 | N83: = | O83: 0 | P83: = | Q83: =O83/1000*$Z$7*12/44 -> 0 | R83: = | S83: =Q83/10^6 -> 0 | T83: = | U83: =S83/(12/44) -> 0
B84: Sheep Not on Feed | C84: 22 | E84: 91060.2 | G84: NA | I84: 0 | K84: NA | L84: + | M84: 0 | N84: = | O84: 0 | P84: = | Q84: 0 | R84: = | S84: 0 | T84: = | U84: 0
B85: TOTAL | E85: 31098944.75 | G85: 2260042.262 | I85: 24772402.51 | K85: 2260.042262 | M85: 469986.1007 | O85: =SUM(O64:O84) -> 741514.0114 | Q85: =SUM(Q64:Q84) -> 53591.23991 | S85: 0.05359123991 | U85: 0.196501213
B87: Ag Soils- Plant Residues & Legumes in Maryland
B88: Legumes and Crop Residue Calculations
C89: Units | E89: Crop Production | G89: metric tons/bushel: | I89: Residue: Crop Mass Ratio | K89: Crop Production (metric tons) | M89: Residue Dry Matter Fraction | O89: Fraction Residue Applied | Q89: Nitrogen Content of Residue | S89: Nitrogen Returned to Soil | U89: N content of Aboveground Biomass for N fixing | W89: N-Fixed by Crops (kg) | Z89: EF Direct | AA89: Direct N2O Emissions (metric tons N2O) | AC89: Direct Emissions (MMTCE) | AE89: Direct Emissions (MMTCO2E)
B90: Alfalfa | C90: '000 tons | E90: 156 | G90: NA | I90: 0 | K90: =E90*0.9072*1000 -> 141523.2 | M90: 0.85 | O90: 0 | Q90: NA | S90: NA | U90: 0.03 | W90: =(K90*1000)*(1+I90)*M90*U90 -> 3608841.6 | Y90: Residues | Z90: 0.01 | AA90: =S111/1000*Z90*44/28 -> 402.0338123 | AC90: =AA90*$Z$7*12/44*10^-6 -> 0.02905608007 | AE90: 0.009270035837
B91: Corn for Grain | C91: '000 bushels | E91: 60350 | G91: 0.02540114711 | I91: 1 | K91: =E91*1000*G91 -> 1532959.228 | M91: 0.91 | O91: 0.9 | Q91: 0.0058 | S91: =(K91*1000)*I91*M91*O91*Q91 -> 7281862.925 | U91: 0.03 | W91: NA | Y91: Legumes | Z91: 0.01 | AA91: =W111/1000*Z91*44/28 -> 603.7869172 | AC91: 0.0436373272 | AE91: 0.01392202892
B92: All Wheat | C92: '000 bushels | E92: 8500 | G92: 0.02721544285 | I92: 1.3 | K92: 231331.2643 | M92: 0.93 | O92: 0.9 | Q92: 0.0062 | S92: 1560611.602 | U92: 0.03 | W92: NA
B93: Barley | C93: '000 bushels | E93: 2784 | G93: 0.021772 | I93: 1.2 | K93: 60613.248 | M93: 0.93 | O93: 0.9 | Q93: 0.0077 | S93: 468775.5864 | U93: 0.03 | W93: NA
B94: Sorghum for Grain | C94: '000 bushels | E94: 0 | G94: 0.02540116951 | I94: 1.4 | K94: 0 | M94: 0.91 | O94: 0.9 | Q94: 0.0108 | S94: 0 | U94: 0.03 | W94: NA
B95: Oats | C95: '000 bushels | E95: 0 | G95: 0.01451495922 | I95: 1.3 | K95: 0 | M95: 0.92 | O95: 0.9 | Q95: 0.007 | S95: 0 | U95: 0.03 | W95: NA
B96: Rye | C96: '000 bushels | E96: 0 | G96: 0.02540104649 | I96: 1.6 | K96: 0 | M96: 0.9 | O96: 0.9 | Q96: 0.0048 | S96: 0 | U96: 0.03 | W96: NA
B97: Millet | C97: '000 bushels | E97: 0 | G97: 0.027215 | I97: 1.4 | K97: 0 | M97: 0.89 | O97: 0.89 | Q97: 0.007 | S97: 0 | U97: 0.03 | W97: NA
B98: Rice | C98: '000 hundred weight | E98: 0 | G98: NA | I98: 1.4 | K98: =(E98*0.454)*100 -> 0 | M98: 0.91 | O98: 1 | Q98: 0.0072 | S98: 0 | U98: 0.03 | W98: NA
B99: Soybeans | C99: '000 bushels | E99: 15810 | G99: 0.02721569207 | I99: 2.1 | K99: =E99*1000*G99 -> 430280.0917 | M99: 0.87 | O99: 0.9 | Q99: 0.023 | S99: 16272719.76 | U99: 0.03 | W99: =(K99*1000)*(1+I99)*M99*U99 -> 34813962.22
B100: Peanuts | C100: '000 lbs | E100: 0 | G100: NA | I100: 1 | K100: =(E100*1000/2000*0.9072) -> 0 | M100: 0.86 | O100: 0.9 | Q100: 0.0106 | S100: 0 | U100: 0.03 | W100: 0
B101: Dry Edible Beans | C101: '000 hundred weight | E101: 0 | G101: NA | I101: 2.1 | K101: =(E101*0.454)*100 -> 0 | M101: 0.87 | O101: 1.55 | Q101: 0.0168 | S101: 0 | U101: 0.03 | W101: 0
B102: Dry Edible Peas | C102: '000 hundred weight | E102: 0 | G102: NA | I102: 1.5 | K102: 0 | M102: 0.87 | O102: 0.9 | Q102: 0.0168 | S102: 0 | U102: 0.03 | W102: 0
B103: Austrian Winter Peas | C103: '000 hundred weight | E103: 0 | G103: NA | I103: 1.5 | K103: 0 | M103: 0.87 | O103: 0.9 | Q103: 0.0168 | S103: 0 | U103: 0.03 | W103: 0
B104: Lentils | C104: '000 hundred weight | E104: 0 | G104: NA | I104: 2.1 | K104: 0 | M104: 0.87 | O104: 1.55 | Q104: 0.0168 | S104: 0 | U104: 0.03 | W104: 0
B105: Wrinkled Seed Peas | C105: '000 hundred weight | E105: 0 | G105: NA | I105: 1.5 | K105: 0 | M105: 0.87 | O105: 0.9 | Q105: 0.0168 | S105: 0 | U105: 0.03 | W105: 0
B106: Red Clover | C106: metric tons | G106: NA | K106: =E106 -> 0 | S106: NA | U106: 0.03 | W106: 0
B107: White Clover | C107: metric tons | G107: NA | K107: 0 | S107: NA | U107: 0.03 | W107: 0
B108: Birdsfoot Trefoil | C108: metric tons | G108: NA | K108: 0 | S108: NA | U108: 0.03 | W108: 0
B109: Arrowleaf Clover | C109: metric tons | G109: NA | K109: 0 | S109: NA | U109: 0.03 | W109: 0
B110: Crimson Clover | C110: metric tons | G110: NA | K110: 0 | S110: NA | U110: 0.03 | W110: 0
B111: TOTAL | K111: =SUM(K90:K110) -> 2396707.032 | S111: =SUM(S90:S105) -> 25583969.87 | W111: =SUM(W90:W110) -> 38422803.82
B113: Ag Soils Plant Fertilizer Emissions in Maryland
B114: Fertilizer Calculations | C114: 2006
B115: Growing Year Entry | C115: Total Fertilizer Use (kg N) | E115: Total N in Fertilizers (Calendar Year) | G115: Volatilzation (Percent) | I115: N Content of Non-Manure Organics | K115: Unvolatized N (kg) | M115: Volatized N (kg) | O115: Direct N2O Emissions (metric tons) | Q115: Indirect N2O Emissions (metric tons) | S115: Direct Emissions (MMTCE) | U115: Indirect Emissions (MMTCE) | W115: Direct Emissions (MMTCO2E) | Y115: Indirect Emissions (MMTCO2E)
B116: Synthetic | C116: 49456900.01 | E116: =$C116*0.65+$C132*0.35 -> 51202458.01 | G116: 0.1 | K116: =($E116*(1-G116)) -> 46082212.21 | M116: 5120245.801 | O116: =(K116+K117)/1000*0.01*44/28 -> 724.4527859 | Q116: =(M116+M117)/1000*0.01*44/28 -> 80.53693968 | S116: =O116*$Z$7*12/44*10^-6 -> 0.05235817862 | U116: =Q116*310*12/44*10^-6 -> 0.006809032173 | W116: =S116/(12/44) -> 0.1919799883 | Y116: =U116/(12/44) -> 0.0249664513
B117: Organic | C117: 572099.9879 | E117: =SUM(E118:E124) -> 592291.9876 | G117: 0.2 | I117: 0.041 | K117: =$E126*I117*(1-G117) -> 19328.71276 | M117: 4832.178191
B118: Dried Blood | E118: =$C118*0.65+$C134*0.35 -> 0
B119: Compost | E119: 0
B120: Dried Manure | C120: 2899.623487 | E120: 3001.964333
B121: Activated Sewage Sludge | C121: 494982.3474 | E121: 512452.5163
B122: Other Sewage Sludge | E122: 0
B123: Tankage | E123: 0
B124: Other | C124: 74218.017 | E124: 76837.50697
B125: Dried Manure % | C125: 0.005068385856 | E125: =IF(E117=0,0,E120/E117) -> 0.005068385856
B126: Non-Manure Organics | C126: 569200.3644 | E126: =E117*(1-E125) -> 589290.0233
B127: Manure Organics | C127: 2899.623487 | E127: =E117*E125 -> 3001.964333
B130: Fertilizer Calculations | C130: 2007
B131: Growing Year Entry | C131: Total Fertilizer Use (kg N)
B132: Synthetic | C132: 54444208.58
B133: Organic | C133: 629791.4157
B134: Dried Blood
B135: Compost
B136: Dried Manure | C136: 3192.025903
B137: Activated Sewage Sludge | C137: 544897.1157
B138: Other Sewage Sludge
B139: Tankage
B140: Other | C140: 81702.27405
B141: Dried Manure % | C141: 0.005068385856
B142: Non-Manure Organics | C142: 626599.3898
B143: Manure Organics | C143: 3192.025903
B145: Agriculture Soils - Emissions from Animals & Runoff | AH145: Percentage Breakdown of Manure Management Systems
M146: K-NITROGEN EXCRETED BY MANAGEMENT SYSTEM (kg): | S146: DIRECT EMISSIONS (MT N) | AH146: Source: US Inventory spreadsheets. See Manure-N2O.xls, WMS sheets.
C147: Number of Animals ('000 head) | E147: TAM (kg) | G147: K-Nitrogen (kg/day/1000kg) | I147: Total K-Nitrogen Excreted (kg) | K147: Indirect Animal N2O Emissions (metric tons N) | M147: Managed Systems | O147: Unmanaged Systems - Pasture, Range, and Paddock | Q147: Unmanaged Systems - Daily Spread | S147: Manure Applied to Soils | U147: Pasture, Range and Paddock | W147: Leaching and Runoff | AH147: Dairy Cows | AP147: Dairy Heifers | AU147: Feedlot Beef | AX147: NOF Beef | BA147: Swine | BH147: Layers | BN147: Broilers | BQ147: Turkeys | BU147: Sheep | BY147: Goats | CB147: Horses
B148: Dairy Cattle | AH148: Year & State | AI148: Anaerobic Lagoon | AJ148: Liquid/ Slurry | AK148: Daily Spread | AL148: Solid Storage | AM148: Pasture | AN148: Deep Pit | AP148: Year & State | AQ148: Managed | AR148: PRP | AS148: Daily Spread | AU148: STATE | AV148: Dry Lot | AX148: STATE | AY148: Pasture | BA148: Year & State | BB148: Pasture | BC148: Solid Storage | BD148: Liquid/ Slurry | BE148: Anaerobic Lagoon | BF148: Deep Pit | BH148: Year & State | BI148: Solid Storage | BJ148: Liquid/ Slurry | BK148: Anaerobic Lagoon | BL148: Poultry without bedding | BN148: State | BO148: Litter | BQ148: State | BR148: Litter | BS148: Range | BU148: Year & State | BV148: On Feed (PRP) | BW148: Not on Feed (PRP) | BY148: STATE | BZ148: Pasture, Range & Paddock | CB148: STATE | CC148: Pasture, Range & Paddock
B149: Dairy Cows | C149: 70 | E149: 604 | G149: 0.44 | I149: =C149*E149*G149*365 -> 6790168 | K149: =(I149*0.2*0.01)/1000 -> 13.580336 | M149: =C149*(AI149+AJ149+AL149+AN149)*E149*G149*365 -> 3328752.582 | O149: =C149*(AM149)*E149*G149*365 -> 447882.2125 | Q149: =C149*(AK149)*E149*G149*365 -> 3013533.206 | S149: =((M149+Q149)*(1-0.2)*0.0125)/1000 -> 63.42285787 | U149: =(O149*0.02)/1000 -> 8.957644251 | W149: =K117 -> 19328.71276 | X149: Unvolatilized N from Organic Fertilizers (kg) | AH149: 2006MD | AI149: 0.07648853506 | AJ149: 0.1547247226 | AK149: 0.4438083426 | AL149: 0.2286160574 | AM149: 0.06596040224 | AN149: 0.03040194017 | AP149: 2006MD | AQ149: =1-SUM(AR149:AS149) -> 0.4902312552 | AR149: 0.06596040224 | AS149: 0.4438083426 | AU149: 2006MD | AV149: 1 | AX149: 2006MD | AY149: 1 | BA149: 2006MD | BB149: 0.211406794 | BC149: 0.037602906 | BD149: 0.214504853 | BE149: 0.156710484 | BF149: 0.379774963 | BH149: 2006MD | BI149: 0 | BJ149: 0 | BK149: 0.05 | BL149: 0.95 | BN149: MD | BO149: 1 | BQ149: MD | BR149: 0.9 | BS149: 0.1 | BU149: MD | BV149: 0 | BW149: 1 | BY149: MD | BZ149: 1 | CB149: MD | CC149: 1
B150: Dairy Replacement Heifers | C150: 30 | E150: 476 | G150: 0.31 | I150: 1615782 | K150: 3.231564 | M150: =C150*(AQ149)*E150*G150*365 -> 792106.838 | O150: =C150*(AR149)*E150*G150*365 -> 106577.6306 | Q150: =C150*(AK149)*E150*G150*365 -> 717097.5314 | S150: 15.09204369 | U150: 2.131552613 | W150: =K116 -> 46082212.21 | X150: Unvolatilized N from Synthetic Fertilizers (kg)
B151: Beef Cattle | W151: =SUM(W149:W150)/1000*0.3 -> 13830.46228 | X151: Fertilizer Runoff/Leached (metric tons N)
B152: Feedlot Heifers | C152: 3.912 | E152: 420 | G152: 0.3 | I152: =C152*E152*G152*365 -> 179912.88 | K152: =(I152*0.2*0.01)/1000 -> 0.35982576 | M152: =C152*(AV149)*E152*G152*365 -> 179912.88 | O152: NA | Q152: NA | S152: =((M152)*(1-0.2)*0.0125)/1000 -> 1.7991288 | U152: NA
B153: Feedlot Steer | C153: 7.395 | E153: 420 | G153: 0.3 | I153: 340096.05 | K153: 0.6801921 | M153: =C153*AV149*E153*G153*365 -> 340096.05 | O153: NA | Q153: NA | S153: 3.4009605 | U153: NA | W153: =I177 -> 39420248.39 | X153: Total N excreted by Livestock (kg)
B154: Bulls | C154: 3 | E154: 750 | G154: 0.31 | I154: 254587.5 | K154: 0.509175 | M154: NA | O154: =C154*(AY$149)*E154*G154*365 -> 254587.5 | Q154: NA | S154: NA | U154: =(O154*0.02)/1000 -> 5.09175 | W154: =(W153*(1-0)*0.3)/1000 -> 11826.07452 | X154: Manure Runoff/Leached (metric tons N)
B155: Calves | C155: 37 | E155: 118 | G155: 0.3 | I155: 478077 | K155: 0.956154 | M155: NA | O155: 478077 | Q155: NA | S155: NA | U155: 9.56154
B156: Beef Cows | C156: 49 | E156: 533 | G156: 0.33 | I156: 3145792.65 | K156: 6.2915853 | M156: NA | O156: 3145792.65 | Q156: NA | S156: NA | U156: 62.915853 | W156: =SUM(W151,W154)*0.0075 -> 192.4240259 | X156: TOTAL Runoff/Leached (metric tons N2O-N)
B157: Steer Stockers | C157: 13 | E157: 318 | G157: 0.31 | I157: 467762.1 | K157: 0.9355242 | M157: NA | O157: 467762.1 | Q157: NA | S157: NA | U157: 9.355242
B158: Total Beef Heifers | C158: 23 | E158: 420 | G158: 0.31 | I158: 1093029 | K158: 2.186058 | M158: NA | O158: 1093029 | Q158: NA | S158: NA | U158: 21.86058
B159: Swine
B160: Breeding Swine | C160: 6 | E160: 198 | G160: 0.235 | I160: =C160*E160*G160*365 -> 101900.7 | K160: =(I160*0.2*0.01)/1000 -> 0.2038014 | M160: =C160*(BC149+BD149+BE149+BF149)*E160*G160*365 -> 80358.19971 | O160: =C160*(BB$149)*E160*G160*365 -> 21542.50029 | Q160: NA | S160: =((M160)*(1-0.2)*0.0125)/1000 -> 0.8035819971 | U160: =(O160*0.02)/1000 -> 0.4308500059
B161: Market Under 60 lbs | C161: 10 | E161: 15.88 | G161: 0.6 | I161: 34777.2 | K161: 0.0695544 | M161: =C161*(BC149+BD149+BE149+BF149)*E161*G161*365 -> 27425.06364 | O161: 7352.136356 | Q161: NA | S161: 0.2742506364 | U161: 0.1470427271
B162: Market 60-119 lbs | C162: 6 | E162: 40.6 | G162: 0.42 | I162: 37343.88 | K162: 0.07468776 | M162: =C162*(BC149+BD149+BE149+BF149)*E162*G162*365 -> 29449.13005 | O162: 7894.749946 | Q162: NA | S162: 0.2944913005 | U162: 0.1578949989
B163: Market 120-179 lbs | C163: 7 | E163: 67.82 | G163: 0.42 | I163: 72777.642 | K163: 0.145555284 | M163: =C163*(BC149+BD149+BE149+BF149)*E163*G163*365 -> 57391.95403 | O163: 15385.68797 | Q163: NA | S163: 0.5739195403 | U163: 0.3077137594
B164: Market over 180 lbs | C164: 4 | E164: 90.75 | G164: 0.42 | I164: 55647.9 | K164: 0.1112958 | M164: =C164*(BC149+BD149+BE149+BF149)*E164*G164*365 -> 43883.55587 | O164: 11764.34413 | Q164: NA | S164: 0.4388355587 | U164: 0.2352868826
B165: Poultry
B166: Layers
B167: Hens > 1 yr | C167: 2560 | E167: 1.8 | G167: 0.83 | I167: =C167*E167*G167*365 -> 1395993.6 | K167: =(I167*0.2*0.01)/1000 -> 2.7919872 | M167: =C167*(BI$149+BJ$149+BK$149+BL$149)*E167*G167*365 -> 1395993.6 | O167: NA | Q167: NA | S167: =((M167)*(1-0.042)*(1-0.2)*0.0125)/1000 -> 13.37361869 | U167: NA
B168: Pullets | C168: 938 | E168: 1.8 | G168: 0.62 | I168: 382084.92 | K168: 0.76416984 | M168: 382084.92 | O168: NA | Q168: NA | S168: 3.660373534 | U168: NA
B169: Chickens | C169: 16 | E169: 1.8 | G169: 0.83 | I169: 8724.96 | K169: 0.01744992 | M169: 8724.96 | O169: NA | Q169: NA | S169: =(((M169)*(0.958)*(1-0.2)*0.0125))/1000 -> 0.0835851168 | U169: NA
B170: Broilers | C170: 54090.909 | E170: 0.9 | G170: 1.1 | I170: 19545749.97 | K170: 39.09149993 | M170: 19545749.97 | O170: NA | Q170: NA | S170: 187.2482847 | U170: NA
B171: Turkeys | C171: 0 | E171: 6.8 | G171: 0.74 | I171: 0 | K171: 0 | M171: 0 | O171: =C171*(BS149)*E171*G171*365 -> 0 | Q171: NA | S171: 0 | U171: =(O171*0.02)/1000 -> 0
B172: Other
B173: Sheep on Feed | C173: 0 | E173: 27 | G173: 0.42 | I173: =C173*E173*G173*365 -> 0 | K173: =(I173*0.2*0.01)/1000 -> 0 | M173: =C173*(1-BV149)*E173*G173*365 -> 0 | O173: =C173*(BV149)*E173*G173*365 -> 0 | Q173: NA | S173: =((M173)*(1-0.2)*0.0125)/1000 -> 0 | U173: =(O173*0.02)/1000 -> 0
B174: Sheep Not on Feed | C174: 22 | E174: 27 | G174: 0.42 | I174: 91060.2 | K174: 0.1821204 | M174: =C174*(1-BW149)*E174*G174*365 -> 0 | O174: =C174*(BW149)*E174*G174*365 -> 91060.2 | Q174: NA | S174: 0 | U174: 1.821204
B175: Goats | C175: 9.601 | E175: 64 | G175: 0.45 | I175: 100925.712 | K175: 0.201851424 | M175: NA | O175: =C175*(BZ149)*E175*G175*365 -> 100925.712 | Q175: NA | S175: NA | U175: 2.01851424
B176: Horses | C176: 65.511 | E176: 450 | G176: 0.3 | I176: 3228054.525 | K176: 6.45610905 | M176: NA | O176: =C176*CC149*E176*G176*365 -> 3228054.525 | Q176: NA | S176: NA | U176: 64.5610905
B177: TOTAL | I177: =SUM(I149:I176) -> 39420248.39 | K177: =SUM(K149:K176) -> 78.84049677 | M177: =SUM(M149:M176) -> 26211929.7 | O177: =SUM(O149:O176) -> 9477687.949 | Q177: =SUM(Q149:Q176) -> 3730630.737 | S177: =SUM(S149:S176) -> 290.4659319 | U177: =SUM(U149:U176) -> 189.553759
B179: EMISSIONS SUMMARY 2006
G180: Livestock (Metric Tons N2O) | I180: Livestock (MMTCE) | K180: Livestock (MMTCO2E) | O180: Leaching and Runoff (Metric Tons N2O) | Q180: Leaching and Runoff (MMTCE) | S180: Leaching and Runoff (MMTCO2E)
C181: Indirect N2O Emissions | G181: =K177*44/28 -> 123.8922092 | I181: =G181*$Z$7*12/44*10^-6 -> 0.008954027848 | K181: =I181/(12/44) -> 0.03283143544 | N181: TOTAL Runoff/Leached | O181: =W156*44/28 -> 302.3806122 | Q181: =O181*$Z$7*12/44*10^-6 -> 0.02185387152 | S181: =Q181/(12/44) -> 0.08013086223
E182: Direct N2O Emissions - Manure Applied to Soils (including Daily Spread) | G182: =(U177+S177)*44/28 -> 754.3166571 | I182: 0.05451652204 | K182: 0.1998939141 | N182: Fertilizer Runoff/Leached | O182: =SUM(W151)*0.0075*44/28 -> 163.0018768 | Q182: 0.01178059019 | S182: 0.04319549736
E183: Direct N2O Emissions - Pasture, Range, and Paddock | G183: =U177*44/28 -> 297.8701927 | I183: 0.0215278912 | K183: 0.07893560106 | N183: Manure Runoff/Leached | O183: =SUM(W154)*0.0075*44/28 -> 139.3787354 | Q183: 0.01007328133 | S183: 0.03693536487
C184: Direct N2O Emissions | G184: =SUM(G182:G183) -> 1052.18685 | I184: 0.07604441324 | K184: 0.2788295152
B186: Agricultural Residue Burning CH4 Emissions | AH186: Percentage Breakdown of Manure Management Systems
B187: Crop | C187: Units | E187: Crop Production | G187: metric tons/bushel | I187: Crop Production (metric tons) | K187: Residue/Crop Ratio | M187: Fraction Residue Burned | O187: Dry Matter Fraction | Q187: Burning Efficiency | S187: Combustion Efficiency | U187: Carbon Content | W187: Total C Released (metric tons C) | Y187: CH4 Emissions (metric tons CH4) | AA187: CH4 Emissions (MMTCE) | AC187: CH4 Emissions (MMTCO2E)
B189: Barley | C189: '000 bushels | E189: 2784 | F189: = | G189: 0.021772 | I189: =E189*G189*1000 -> 60613.248 | J189: x | K189: 1.2 | L189: x | M189: 0.03 | N189: x | O189: 0.93 | P189: x | Q189: 0.93 | R189: x | S189: 0.88 | T189: = | U189: 0.4485 | V189: = | W189: =I189*K189*M189*O189*Q189*S189*U189 -> 744.8710133 | X189: = | Y189: 4.965806755 | Z189: = | AA189: =Y189/(10^6)*$Z$6*12/44 -> 3.792070613e-05 | AB189: = | AC189: =AA189/(12/44) -> 0.0001390425891
B190: Corn | C190: '000 bushels | E190: 60350 | F190: = | G190: 0.02540114711 | I190: 1532959.228 | J190: x | K190: 1 | L190: x | M190: 0.03 | N190: x | O190: 0.91 | P190: x | Q190: 0.93 | R190: x | S190: 0.88 | T190: = | U190: 0.4478 | V190: = | W190: 15337.08982 | X190: = | Y190: 102.2472655 | Z190: = | AA190: 0.0007807973001 | AB190: = | AC190: 0.002862923434
B191: Peanuts | C191: '000 pounds | E191: 0 | F191: = | G191: NA | I191: =(E191*1000/2000*0.9072) -> 0 | J191: x | K191: 1 | L191: x | M191: 0.03 | N191: x | O191: 0.86 | P191: x | Q191: 0.93 | R191: x | S191: 0.88 | T191: = | U191: 0.45 | V191: = | W191: 0 | X191: = | Y191: 0 | Z191: = | AA191: 0 | AB191: = | AC191: 0
B192: Rice | C192: '000 cwt | E192: 0 | F192: = | G192: NA | I192: 0 | J192: x | K192: 1.4 | L192: x | M192: 0 | N192: x | O192: 0.91 | P192: x | Q192: 0.93 | R192: x | S192: 0.88 | T192: = | U192: 0.3806 | V192: = | W192: 0 | X192: = | Y192: 0 | Z192: = | AA192: 0 | AB192: = | AC192: 0
B193: Soybeans | C193: '000 bushels | E193: 15810 | F193: = | G193: 0.02721569207 | I193: =E193*G193*1000 -> 430280.0917 | J193: x | K193: 2.1 | L193: x | M193: 0.03 | N193: x | O193: 0.87 | P193: x | Q193: 0.93 | R193: x | S193: 0.88 | T193: = | U193: 0.45 | V193: = | W193: 8685.387295 | X193: = | Y193: 57.90258196 | Z193: = | AA193: 0.0004421651714 | AB193: = | AC193: 0.001621272295
B194: Sugarcane | C194: '000 tons | E194: 0 | F194: = | G194: NA | I194: =E194*0.9072*1000 -> 0 | J194: x | K194: 0.8 | L194: x | M194: 0.03 | N194: x | O194: 0.62 | P194: x | Q194: 0.93 | R194: x | S194: 0.88 | T194: = | U194: 0.4235 | V194: = | W194: 0 | X194: = | Y194: 0 | Z194: = | AA194: 0 | AB194: = | AC194: 0
B195: Wheat | C195: '000 bushels | E195: 8500 | F195: = | G195: 0.02721544285 | I195: =E195*G195*1000 -> 231331.2643 | J195: x | K195: 1.3 | L195: x | M195: 0.03 | N195: x | O195: 0.93 | P195: x | Q195: 0.93 | R195: x | S195: 0.88 | T195: = | U195: 0.4428 | V195: = | W195: 3040.570795 | X195: = | Y195: 20.27047197 | Z195: = | AA195: 0.000154792695 | AB195: = | AC195: 0.0005675732152
B196: Other | C196: metric tons | F196: = | G196: NA | I196: =E196 -> 0 | J196: x | L196: x | N196: x | P196: x | R196: x | T196: = | V196: = | W196: 0 | X196: = | Y196: 0 | Z196: = | AA196: 0 | AB196: = | AC196: 0
B197: ___________ | C197: metric tons | F197: = | G197: NA | I197: 0 | J197: x | L197: x | N197: x | P197: x | R197: x | T197: = | V197: = | W197: 0 | X197: = | Y197: 0 | Z197: = | AA197: 0 | AB197: = | AC197: 0
B199: TOTAL | W199: =SUM(W189:W197) -> 27807.91893 | Y199: =SUM(Y189:Y197) -> 185.3861262 | AA199: =SUM(AA189:AA197) -> 0.001415675873 | AC199: =SUM(AC189:AC197) -> 0.005190811533
B201: Agricultural Residue Burning N2O Emissions | AH201: Percentage Breakdown of Manure Management Systems
B202: Crop | C202: Units | E202: Crop Production | G202: metric tons/bushel | I202: Crop Production (metric tons) | K202: Residue/Crop Ratio | M202: Fraction Residue Burned | O202: Dry Matter Fraction | Q202: Burning Efficiency | S202: Combustion Efficiency | U202: Nitrogen Content | W202: Total N Released (metric tons) | Y202: N2O Emissions (metric tons) | AA202: N2O Emissions (MMTCE) | AC202: N2O Emissions (MMTCO2E)
B204: Barley | C204: '000 bushels | E204: 2784 | F204: = | G204: 0.021772 | I204: =E204*G204*1000 -> 60613.248 | J204: x | K204: 1.2 | L204: x | M204: 0.03 | N204: x | O204: 0.93 | P204: x | Q204: 0.93 | R204: x | S204: 0.88 | T204: = | U204: 0.0077 | V204: = | W204: =I204*K204*M204*O204*Q204*S204*U204 -> 12.788198 | X204: = | Y204: 0.140670178 | Z204: = | AA204: =Y204/(10^6)*$Z$7*12/44 -> 1.016661741e-05 | AB204: = | AC204: =AA204/(12/44) -> 3.727759716e-05
B205: Corn | C205: '000 bushels | E205: 60350 | F205: = | G205: 0.02540114711 | I205: 1532959.228 | J205: x | K205: 1 | L205: x | M205: 0.03 | N205: x | O205: 0.91 | P205: x | Q205: 0.93 | R205: x | S205: 0.88 | T205: = | U205: 0.0058 | V205: = | W205: 198.6492206 | X205: = | Y205: 2.185141426 | Z205: = | AA205: 0.0001579261304 | AB205: = | AC205: 0.000579062478
B206: Peanuts | C206: '000 pounds | E206: 0 | F206: = | G206: NA | I206: =(E206*1000/2000*0.9072) -> 0 | J206: x | K206: 1 | L206: x | M206: 0.03 | N206: x | O206: 0.86 | P206: x | Q206: 0.93 | R206: x | S206: 0.88 | T206: = | U206: 0.0106 | V206: = | W206: 0 | X206: = | Y206: 0 | Z206: = | AA206: 0 | AB206: = | AC206: 0
B207: Rice | C207: '000 cwt | E207: 0 | F207: = | G207: NA | I207: 0 | J207: x | K207: 1.4 | L207: x | M207: 0 | N207: x | O207: 0.91 | P207: x | Q207: 0.93 | R207: x | S207: 0.88 | T207: = | U207: 0.0072 | V207: = | W207: 0 | X207: = | Y207: 0 | Z207: = | AA207: 0 | AB207: = | AC207: 0
B208: Soybeans | C208: '000 bushels | E208: 15810 | F208: = | G208: 0.02721569207 | I208: =E208*G208*1000 -> 430280.0917 | J208: x | K208: 2.1 | L208: x | M208: 0.03 | N208: x | O208: 0.87 | P208: x | Q208: 0.93 | R208: x | S208: 0.88 | T208: = | U208: 0.023 | V208: = | W208: 443.9197951 | X208: = | Y208: 4.883117746 | Z208: = | AA208: 0.0003529162371 | AB208: = | AC208: 0.001294026203
B209: Sugarcane | C209: '000 tons | E209: 0 | F209: = | G209: NA | I209: =E209*0.9072*1000 -> 0 | J209: x | K209: 0.8 | L209: x | M209: 0.03 | N209: x | O209: 0.62 | P209: x | Q209: 0.93 | R209: x | S209: 0.88 | T209: = | U209: 0.004 | V209: = | W209: 0 | X209: = | Y209: 0 | Z209: = | AA209: 0 | AB209: = | AC209: 0
B210: Wheat | C210: '000 bushels | E210: 8500 | F210: = | G210: 0.02721544285 | I210: =E210*G210*1000 -> 231331.2643 | J210: x | K210: 1.3 | L210: x | M210: 0.03 | N210: x | O210: 0.93 | P210: x | Q210: 0.93 | R210: x | S210: 0.88 | T210: = | U210: 0.0062 | V210: = | W210: 42.57348449 | X210: = | Y210: 0.4683083294 | Z210: = | AA210: 3.384592017e-05 | AB210: = | AC210: 0.0001241017073
B211: Other | E211: 0 | F211: = | G211: NA | I211: =E211 -> 0 | J211: x | L211: x | N211: x | P211: x | R211: x | T211: = | V211: = | W211: 0 | X211: = | Y211: 0 | Z211: = | AA211: 0 | AB211: = | AC211: 0
E212: 0 | F212: = | G212: NA | I212: 0 | J212: x | L212: x | N212: x | P212: x | R212: x | T212: = | V212: = | W212: 0 | X212: = | Y212: 0 | Z212: = | AA212: 0 | AB212: = | AC212: 0
B214: TOTAL | W214: =SUM(W204:W212) -> 697.9306981 | Y214: =SUM(Y204:Y212) -> 7.677237679 | AA214: =SUM(AA204:AA212) -> 0.000554854905 | AC214: =SUM(AC204:AC212) -> 0.002034467985
B216: TOTAL AGRICULTURE | AH216: Percentage Breakdown of Manure Management Systems
... 31 more rows

Sheet Land Use
A1: Land Use, Land-Use Change, and Forestry Emissions and Sequestration
C3: Emissions* (MMTCO2E)
D4: 1990 | E4: 1991 | F4: 1992 | G4: 1993 | H4: 1994 | I4: 1995 | J4: 1996 | K4: 1997 | L4: 1998 | M4: 1999 | N4: 2000 | O4: 2001 | P4: 2002 | Q4: 2003 | R4: 2004 | S4: 2005 | T4: 2006 | U4: 2007
C5: Forest Carbon Flux | D5: =D6+D7+D8+D9+D10+D11 -> -1.378601609 | E5: -1.378601609 | F5: -1.378601609 | G5: -1.452944263 | H5: -1.452944263 | I5: -1.452944263 | J5: -1.452944263 | K5: -1.452944263 | L5: -1.452944263 | M5: -4.876355197 | N5: -10.49799827 | O5: -10.49799827 | P5: -10.49799827 | Q5: -10.49799827 | R5: -10.49799827 | S5: -10.49799827 | T5: -10.49799827 | U5: -10.49799827
C6: Aboveground Biomass | D6: -1.189340944 | E6: -1.189340944 | F6: -1.189340944 | G6: -1.189340944 | H6: -1.189340944 | I6: -1.189340944 | J6: -1.189340944 | K6: -1.189340944 | L6: -1.189340944 | M6: -3.571348937 | N6: -7.482885997 | O6: -7.482885997 | P6: -7.482885997 | Q6: -7.482885997 | R6: -7.482885997 | S6: -7.482885997 | T6: -7.482885997 | U6: -7.482885997
C7: Belowground Biomass | D7: -0.2252070697 | E7: -0.2252070697 | F7: -0.2252070697 | G7: -0.2252070697 | H7: -0.2252070697 | I7: -0.2252070697 | J7: -0.2252070697 | K7: -0.2252070697 | L7: -0.2252070697 | M7: -0.6781987668 | N7: -1.422064369 | O7: -1.422064369 | P7: -1.422064369 | Q7: -1.422064369 | R7: -1.422064369 | S7: -1.422064369 | T7: -1.422064369 | U7: -1.422064369
C8: Dead Wood | D8: -0.0997493294 | E8: -0.0997493294 | F8: -0.0997493294 | G8: -0.0997493294 | H8: -0.0997493294 | I8: -0.0997493294 | J8: -0.0997493294 | K8: -0.0997493294 | L8: -0.0997493294 | M8: -0.2833284819 | N8: -0.5847870247 | O8: -0.5847870247 | P8: -0.5847870247 | Q8: -0.5847870247 | R8: -0.5847870247 | S8: -0.5847870247 | T8: -0.5847870247 | U8: -0.5847870247
C9: Litter | D9: 0.1874926399 | E9: 0.1874926399 | F9: 0.1874926399 | G9: 0.1874926399 | H9: 0.1874926399 | I9: 0.1874926399 | J9: 0.1874926399 | K9: 0.1874926399 | L9: 0.1874926399 | M9: 0.02870828254 | N9: -0.2320342926 | O9: -0.2320342926 | P9: -0.2320342926 | Q9: -0.2320342926 | R9: -0.2320342926 | S9: -0.2320342926 | T9: -0.2320342926 | U9: -0.2320342926
C10: Soil Organic Carbon | D10: 0.5986665818 | E10: 0.5986665818 | F10: 0.5986665818 | G10: 0.5986665818 | H10: 0.5986665818 | I10: 0.5986665818 | J10: 0.5986665818 | K10: 0.5986665818 | L10: 0.5986665818 | M10: 0.3526188486 | N10: -0.05142044495 | O10: -0.05142044495 | P10: -0.05142044495 | Q10: -0.05142044495 | R10: -0.05142044495 | S10: -0.05142044495 | T10: -0.05142044495 | U10: -0.05142044495
C11: Total wood products and landfills | D11: -0.6504634879 | E11: -0.6504634879 | F11: -0.6504634879 | G11: -0.7248061417 | H11: -0.7248061417 | I11: -0.7248061417 | J11: -0.7248061417 | K11: -0.7248061417 | L11: -0.7248061417 | M11: -0.7248061417 | N11: -0.7248061417 | O11: -0.7248061417 | P11: -0.7248061417 | Q11: -0.7248061417 | R11: -0.7248061417 | S11: -0.7248061417 | T11: -0.7248061417 | U11: -0.7248061417
C12: Liming of Agricultural Soils | D12: 0 | E12: 0 | F12: 0 | G12: 0 | H12: 0 | I12: 0 | J12: 0 | K12: 0 | L12: 0 | M12: 0 | N12: 0 | O12: 0 | P12: 0 | Q12: 0 | R12: 0 | S12: 0 | T12: 0 | U12: 0
C13: Limestone | D13: 0 | E13: 0 | F13: 0 | G13: 0 | H13: 0 | I13: 0 | J13: 0 | K13: 0 | L13: 0 | M13: 0 | N13: 0 | O13: 0 | P13: 0 | Q13: 0 | R13: 0 | S13: 0 | T13: 0 | U13: 0
C14: Dolomite | D14: 0 | E14: 0 | F14: 0 | G14: 0 | H14: 0 | I14: 0 | J14: 0 | K14: 0 | L14: 0 | M14: 0 | N14: 0 | O14: 0 | P14: 0 | Q14: 0 | R14: 0 | S14: 0 | T14: 0 | U14: 0
C15: Urea Fertilization | D15: 0.004553331398 | E15: 0.006281460703 | F15: 0.006670521878 | G15: 0.006273711573 | H15: 0.006990475551 | I15: 0.005774359672 | J15: 0.006663540476 | K15: 0.008194963742 | L15: 0.007681227252 | M15: 0.007988035078 | N15: 0.009553573679 | O15: 0.008213225559 | P15: 0.008213399861 | Q15: 0.007534249236 | R15: 0.010193972 | S15: 0.006694220327 | T15: 0.005148256796 | U15: 0.004547456759
C16: Urban Trees | D16: -1.269896023 | E16: -1.296356289 | F16: -1.322816554 | G16: -1.34927682 | H16: -1.375737086 | I16: -1.402197351 | J16: -1.428657617 | K16: -1.455117883 | L16: -1.481578149 | M16: -1.508038414 | N16: -1.53449868 | O16: -1.560958946 | P16: -1.587419211 | Q16: -1.613879477 | R16: -1.640339743 | S16: -1.666800008 | T16: -1.169459573 | U16: -1.71972054
C17: Landfilled Yard Trimmings and Food Scraps | D17: -0.4574984814 | E17: -0.4336424325 | F17: -0.4268589969 | G17: -0.3718667802 | H17: -0.3270459909 | I17: -0.268980254 | J17: -0.2199267114 | K17: -0.2326030318 | L17: -0.2292391267 | M17: -0.2123406043 | N17: -0.2123167695 | O17: -0.2180240551 | P17: -0.2226343239 | Q17: -0.1919742711 | R17: -0.187443404 | S17: -0.1867458187 | T17: -0.1846768389 | U17: -0.1628407302
C18: Grass | D18: -0.03747670084 | E18: -0.03490748699 | F18: -0.0339564331 | G18: -0.02676829454 | H18: -0.02163472373 | I18: -0.01525164204 | J18: -0.009720530523 | K18: -0.009641615384 | L18: -0.009825012949 | M18: -0.008413902729 | N18: -0.008262806854 | O18: -0.009892497462 | P18: -0.01114102671 | Q18: -0.007790610787 | R18: -0.006585339976 | S18: -0.007689820263 | T18: -0.008480252073 | U18: -0.008376949107
C19: Leaves | D19: -0.1877541319 | E19: -0.180220865 | F19: -0.1772545669 | G19: -0.1545755321 | H19: -0.1370890806 | I19: -0.1149002907 | J19: -0.0944374317 | K19: -0.09032720286 | L19: -0.0873146947 | M19: -0.07961090088 | N19: -0.07585799625 | O19: -0.07790472669 | P19: -0.07927178026 | Q19: -0.06664725046 | R19: -0.06032681461 | S19: -0.06163290981 | T19: -0.06194219886 | U19: -0.0583100814
C20: Branches | D20: -0.1869464037 | E20: -0.1789631095 | F20: -0.1757013681 | G20: -0.1521357212 | H20: -0.1339607212 | I20: -0.1109717845 | J20: -0.08979997499 | K20: -0.08551350336 | L20: -0.08236667141 | M20: -0.07439255234 | N20: -0.07050359993 | O20: -0.07259815665 | P20: -0.07399035382 | Q20: -0.06096462833 | R20: -0.05445645337 | S20: -0.05571497552 | T20: -0.05603959562 | U20: -0.05267199172
C21: Landfilled Food Scraps | D21: -0.04532124503 | E21: -0.03955097097 | F21: -0.03994662881 | G21: -0.03838723246 | H21: -0.03436146539 | I21: -0.02785653673 | J21: -0.02596877418 | K21: -0.04712071017 | L21: -0.04973274766 | M21: -0.04992324831 | N21: -0.05769236645 | O21: -0.05762867426 | P21: -0.05823116316 | Q21: -0.05657178155 | R21: -0.06607479603 | S21: -0.06170811311 | T21: -0.05821479238 | U21: -0.04348170799
C22: Forest Fires | D22: 0.000560308464 | E22: 0.000560308464 | F22: 0.000560308464 | G22: 0.000560308464 | H22: 0.000560308464 | I22: 0.000560308464 | J22: 0.000560308464 | K22: 0.000560308464 | L22: 0.000560308464 | M22: 0.000560308464 | N22: 0.000560308464 | O22: 0.000560308464 | P22: 0.000560308464 | Q22: 0.000560308464 | R22: 0.000560308464 | S22: 0.000560308464 | T22: 0.0389582475 | U22: 0
C23: CH4 | D23: 0.000466740792 | E23: 0.000466740792 | F23: 0.000466740792 | G23: 0.000466740792 | H23: 0.000466740792 | I23: 0.000466740792 | J23: 0.000466740792 | K23: 0.000466740792 | L23: 0.000466740792 | M23: 0.000466740792 | N23: 0.000466740792 | O23: 0.000466740792 | P23: 0.000466740792 | Q23: 0.000466740792 | R23: 0.000466740792 | S23: 0.000466740792 | T23: 0.03245248727 | U23: 0
C24: N2O | D24: 9.3567672e-05 | E24: 9.3567672e-05 | F24: 9.3567672e-05 | G24: 9.3567672e-05 | H24: 9.3567672e-05 | I24: 9.3567672e-05 | J24: 9.3567672e-05 | K24: 9.3567672e-05 | L24: 9.3567672e-05 | M24: 9.3567672e-05 | N24: 9.3567672e-05 | O24: 9.3567672e-05 | P24: 9.3567672e-05 | Q24: 9.3567672e-05 | R24: 9.3567672e-05 | S24: 9.3567672e-05 | T24: 0.006505760234 | U24: 0
C25: N2O from Settlement Soils | D25: 0.01978378982 | E25: 0.02593350136 | F25: 0.02843290349 | G25: 0.02480727618 | H25: 0.02580354078 | I25: 0.02893926625 | J25: 0.0287930867 | K25: 0.0280522916 | L25: 0.02416895973 | M25: 0.02889939091 | N25: 0.0364807138 | O25: 0.02794090992 | P25: 0.02632568221 | Q25: 0.02561344176 | R25: 0.03470034064 | S25: 0.02896258686 | T25: 0.02282726997 | U25: 0.02428859552
C26: Total | D26: =D12+D15+D25+D16+D17+D22+D5 -> -3.081098684 | E26: -3.07582506 | F26: -3.092613427 | G26: -3.142446567 | H26: -3.122373015 | I26: -3.088847934 | J26: -3.065511656 | K26: -3.103857614 | L26: -3.131351043 | M26: -6.559286481 | N26: -12.19821912 | O26: -12.24026683 | P26: -12.27295242 | Q26: -12.27014402 | R26: -12.2803268 | S26: -12.31532698 | T26: -11.78520091 | U26: -12.35172349
C27: * Note that parentheses indicate net sequestration.
C30: Emissions (MMTCE)*
D31: 1990 | E31: 1991 | F31: 1992 | G31: 1993 | H31: 1994 | I31: 1995 | J31: 1996 | K31: 1997 | L31: 1998 | M31: 1999 | N31: 2000 | O31: 2001 | P31: 2002 | Q31: 2003 | R31: 2004 | S31: 2005 | T31: 2006 | U31: 2007
C32: Forest Carbon Flux | D32: -0.3759822571 | E32: -0.3759822571 | F32: -0.3759822571 | G32: -0.3962575263 | H32: -0.3962575263 | I32: -0.3962575263 | J32: -0.3962575263 | K32: -0.3962575263 | L32: -0.3962575263 | M32: -1.329915054 | N32: -2.863090437 | O32: -2.863090437 | P32: -2.863090437 | Q32: -2.863090437 | R32: -2.863090437 | S32: -2.863090437 | T32: -2.863090437 | U32: -2.863090437
C33: Aboveground Biomass | D33: -0.324365712 | E33: -0.324365712 | F33: -0.324365712 | G33: -0.324365712 | H33: -0.324365712 | I33: -0.324365712 | J33: -0.324365712 | K33: -0.324365712 | L33: -0.324365712 | M33: -0.9740042557 | N33: -2.04078709 | O33: -2.04078709 | P33: -2.04078709 | Q33: -2.04078709 | R33: -2.04078709 | S33: -2.04078709 | T33: -2.04078709 | U33: -2.04078709
C34: Belowground Biomass | D34: -0.06142010992 | E34: -0.06142010992 | F34: -0.06142010992 | G34: -0.06142010992 | H34: -0.06142010992 | I34: -0.06142010992 | J34: -0.06142010992 | K34: -0.06142010992 | L34: -0.06142010992 | M34: -0.1849633 | N34: -0.3878357371 | O34: -0.3878357371 | P34: -0.3878357371 | Q34: -0.3878357371 | R34: -0.3878357371 | S34: -0.3878357371 | T34: -0.3878357371 | U34: -0.3878357371
C35: Dead Wood | D35: -0.02720436256 | E35: -0.02720436256 | F35: -0.02720436256 | G35: -0.02720436256 | H35: -0.02720436256 | I35: -0.02720436256 | J35: -0.02720436256 | K35: -0.02720436256 | L35: -0.02720436256 | M35: -0.07727140416 | N35: -0.1594873704 | O35: -0.1594873704 | P35: -0.1594873704 | Q35: -0.1594873704 | R35: -0.1594873704 | S35: -0.1594873704 | T35: -0.1594873704 | U35: -0.1594873704
C36: Litter | D36: 0.05113435632 | E36: 0.05113435632 | F36: 0.05113435632 | G36: 0.05113435632 | H36: 0.05113435632 | I36: 0.05113435632 | J36: 0.05113435632 | K36: 0.05113435632 | L36: 0.05113435632 | M36: 0.007829531602 | N36: -0.06328207979 | O36: -0.06328207979 | P36: -0.06328207979 | Q36: -0.06328207979 | R36: -0.06328207979 | S36: -0.06328207979 | T36: -0.06328207979 | U36: -0.06328207979
C37: Soil Organic Carbon | D37: 0.1632727041 | E37: 0.1632727041 | F37: 0.1632727041 | G37: 0.1632727041 | H37: 0.1632727041 | I37: 0.1632727041 | J37: 0.1632727041 | K37: 0.1632727041 | L37: 0.1632727041 | M37: 0.09616877689 | N37: -0.01402375771 | O37: -0.01402375771 | P37: -0.01402375771 | Q37: -0.01402375771 | R37: -0.01402375771 | S37: -0.01402375771 | T37: -0.01402375771 | U37: -0.01402375771
C38: Total Wood products and landfills | D38: -0.1773991331 | E38: -0.1773991331 | F38: -0.1773991331 | G38: -0.1976744023 | H38: -0.1976744023 | I38: -0.1976744023 | J38: -0.1976744023 | K38: -0.1976744023 | L38: -0.1976744023 | M38: -0.1976744023 | N38: -0.1976744023 | O38: -0.1976744023 | P38: -0.1976744023 | Q38: -0.1976744023 | R38: -0.1976744023 | S38: -0.1976744023 | T38: -0.1976744023 | U38: -0.1976744023
C39: Liming of Agricultural Soils | D39: 0 | E39: 0 | F39: 0 | G39: 0 | H39: 0 | I39: 0 | J39: 0 | K39: 0 | L39: 0 | M39: 0 | N39: 0 | O39: 0 | P39: 0 | Q39: 0 | R39: 0 | S39: 0 | T39: 0 | U39: 0
C40: Limestone | D40: 0 | E40: 0 | F40: 0 | G40: 0 | H40: 0 | I40: 0 | J40: 0 | K40: 0 | L40: 0 | M40: 0 | N40: 0 | O40: 0 | P40: 0 | Q40: 0 | R40: 0 | S40: 0 | T40: 0 | U40: 0
C41: Dolomite | D41: 0 | E41: 0 | F41: 0 | G41: 0 | H41: 0 | I41: 0 | J41: 0 | K41: 0 | L41: 0 | M41: 0 | N41: 0 | O41: 0 | P41: 0 | Q41: 0 | R41: 0 | S41: 0 | T41: 0 | U41: 0
C42: Urea Fertilization | D42: 0.001241817654 | E42: 0.001713125646 | F42: 0.00181923324 | G42: 0.001711012247 | H42: 0.001906493332 | I42: 0.001574825365 | J42: 0.001817329221 | K42: 0.002234990112 | L42: 0.00209488016 | M42: 0.002178555021 | N42: 0.002605520094 | O42: 0.002239970607 | P42: 0.002240018144 | Q42: 0.002054795246 | R42: 0.002780174181 | S42: 0.001825696453 | T42: 0.001404070035 | U42: 0.00124021548
C43: Urban Trees | D43: -0.346335279 | E43: -0.3535517151 | F43: -0.3607681512 | G43: -0.3679845873 | H43: -0.3752010234 | I43: -0.3824174595 | J43: -0.3896338956 | K43: -0.3968503317 | L43: -0.4040667678 | M43: -0.4112832039 | N43: -0.41849964 | O43: -0.4257160761 | P43: -0.4329325122 | Q43: -0.4401489483 | R43: -0.4473653844 | S43: -0.4545818205 | T43: -0.31894352 | U43: -0.4690146927
C44: Landfilled Yard Trimmings and Food Scraps | D44: -0.1247723131 | E44: -0.1182661179 | F44: -0.1164160901 | G44: -0.1014182128 | H44: -0.08919436116 | I44: -0.07335825108 | J44: -0.0599800122 | K44: -0.06343719048 | L44: -0.06251976183 | M44: -0.05791107389 | N44: -0.05790457349 | O44: -0.05946110593 | P44: -0.06071845199 | Q44: -0.0523566194 | R44: -0.05112092836 | S44: -0.05093067782 | T44: -0.05036641062 | U44: -0.04441110824
C45: Grass | D45: -0.01022091841 | E45: -0.009520223725 | F45: -0.009260845391 | G45: -0.007300443965 | H45: -0.005900379199 | I45: -0.004159538739 | J45: -0.002651053779 | K45: -0.002629531468 | L45: -0.002679548986 | M45: -0.002294700744 | N45: -0.002253492778 | O45: -0.002697953853 | P45: -0.00303846183 | Q45: -0.002124712033 | R45: -0.001796001812 | S45: -0.002097223708 | T45: -0.00231279602 | U45: -0.002284622484
C46: Leaves | D46: -0.05120567233 | E46: -0.04915114499 | F46: -0.0483421546 | G46: -0.04215696329 | H46: -0.03738793108 | I46: -0.0313364429 | J46: -0.02575566319 | K46: -0.02463469169 | L46: -0.02381309855 | M46: -0.02171206388 | N46: -0.02068854443 | O46: -0.02124674364 | P46: -0.02161957644 | Q46: -0.01817652285 | R46: -0.01645276762 | S46: -0.0168089754 | T46: -0.01689332696 | U46: -0.01590274947
C47: Branches | D47: -0.05098538281 | E47: -0.04880812078 | F47: -0.04791855495 | G47: -0.04149156032 | H47: -0.03653474214 | I47: -0.03026503215 | J47: -0.02449090227 | K47: -0.02332186455 | L47: -0.02246363766 | M47: -0.02028887791 | N47: -0.01922825453 | O47: -0.01979949727 | P47: -0.0201791874 | Q47: -0.01662671682 | R47: -0.01485176001 | S47: -0.01519499332 | T47: -0.01528352608 | U47: -0.01436508865
C48: Landfilled Food Scraps | D48: -0.01236033955 | E48: -0.01078662845 | F48: -0.01089453513 | G48: -0.01046924522 | H48: -0.009371308743 | I48: -0.007597237289 | J48: -0.007082392958 | K48: -0.01285110277 | L48: -0.01356347663 | M48: -0.01361543136 | N48: -0.01573428176 | O48: -0.01571691116 | P48: -0.01588122632 | Q48: -0.01542866769 | R48: -0.01802039892 | S48: -0.01682948539 | T48: -0.01587676156 | U48: -0.01185864763
C49: Forest Fires | D49: 0.0001528113993 | E49: 0.0001528113993 | F49: 0.0001528113993 | G49: 0.0001528113993 | H49: 0.0001528113993 | I49: 0.0001528113993 | J49: 0.0001528113993 | K49: 0.0001528113993 | L49: 0.0001528113993 | M49: 0.0001528113993 | N49: 0.0001528113993 | O49: 0.0001528113993 | P49: 0.0001528113993 | Q49: 0.0001528113993 | R49: 0.0001528113993 | S49: 0.0001528113993 | T49: 0.01062497659 | U49: 0
C50: CH4 | D50: 0.0001272929433 | E50: 0.0001272929433 | F50: 0.0001272929433 | G50: 0.0001272929433 | H50: 0.0001272929433 | I50: 0.0001272929433 | J50: 0.0001272929433 | K50: 0.0001272929433 | L50: 0.0001272929433 | M50: 0.0001272929433 | N50: 0.0001272929433 | O50: 0.0001272929433 | P50: 0.0001272929433 | Q50: 0.0001272929433 | R50: 0.0001272929433 | S50: 0.0001272929433 | T50: 0.008850678346 | U50: 0
C51: N2O | D51: 2.5518456e-05 | E51: 2.5518456e-05 | F51: 2.5518456e-05 | G51: 2.5518456e-05 | H51: 2.5518456e-05 | I51: 2.5518456e-05 | J51: 2.5518456e-05 | K51: 2.5518456e-05 | L51: 2.5518456e-05 | M51: 2.5518456e-05 | N51: 2.5518456e-05 | O51: 2.5518456e-05 | P51: 2.5518456e-05 | Q51: 2.5518456e-05 | R51: 2.5518456e-05 | S51: 2.5518456e-05 | T51: 0.001774298246 | U51: 0
C52: N2O from Settlement Soils | D52: 0.005395579043 | E52: 0.007072773097 | F52: 0.007754428225 | G52: 0.006765620776 | H52: 0.007037329305 | I52: 0.00789252716 | J52: 0.00785266001 | K52: 0.007650624983 | L52: 0.006591534472 | M52: 0.007881652065 | N52: 0.009949285582 | O52: 0.00762024816 | P52: 0.007179731513 | Q52: 0.006985484118 | R52: 0.009463729265 | S52: 0.007898887326 | T52: 0.006225619084 | U52: 0.006624162414
C53: Total | D53: -0.8402996411 | E53: -0.83886138 | F53: -0.8434400255 | G53: -0.857030882 | H53: -0.8515562769 | I53: -0.842413073 | J53: -0.8360486335 | K53: -0.846506622 | L53: -0.8540048299 | M53: -1.788896313 | N53: -3.326787034 | O53: -3.338254589 | P53: -3.34716884 | Q53: -3.346402914 | R53: -3.349180035 | S53: -3.35872554 | T53: -3.214145702 | U53: -3.36865186
C54: * Note that parentheses indicate net sequestration.
